{"text_format":"1","workbook":"xlsx","n_sheets":6,"sheets":["form-1__data-entry","1 Sep - 30 Nov","Site Summary","Charts","FuzzyLookup_AddIn_Undo_Sheet","Locations"],"not_rendered":{"charts":2,"images":0,"macros":0,"external_links":1,"defined_names":2,"comments":0,"pivot_tables":4},"unopened":[],"bounds":{"document_bytes":16777216,"sheet_cells":100000,"rows_first":2000,"rows_last":500,"rows_between":2000,"halvings":0,"cell_chars":16384,"cell_head_chars":4096},"cells_cut":0,"cells_raw":0,"read":"whole","date_system":"1900"}

{"sheet":"form-1__data-entry","index":0,"n_rows":146,"n_cols":22,"rows_kept":146,"cut":false,"hidden":true,"merged":[]}
["ec5_uuid","created_at","uploaded_at","created_by","title","lat_1_Latitude__Longitud","long_1_Latitude__Longitud","accuracy_1_Latitude__Longitud","UTM_Northing_1_Latitude__Longitud","UTM_Easting_1_Latitude__Longitud","UTM_Zone_1_Latitude__Longitud","2_Location_descripti","3_Time_24_hour","4_Date","5_Name_of_volunteer","6_Above_or_below_CSO","7_EC_micros","8_Water_Temp_deg_C","9_Nitrates_ppm","10_Phosphate_ppm","11_River_height_if_k","12_Additional_commen"]
["1f121ae4-9ec4-4998-aeec-fccc36d4ac54","2023-09-01T11:20:50.378Z","2023-09-01T11:20:54.000Z","geoffsallis55@gmail.com","Swillgate A38 31/08/2023 Helen Carver",null,null,null,null,null,null,"Swillgate A38","14:35:00","2023-08-31","Helen Carver","Na",872,15.7,8,0.65,0]
["6a96a3c3-3366-4e2f-b96b-93c4a1445c17","2023-09-11T10:28:14.176Z","2023-09-11T10:28:17.000Z","geoffsallis55@gmail.com","Carrant Bredon rd 02/09/2023 Steve G",null,null,null,null,null,null,"Carrant Bredon rd","14:30:00","2023-09-02","Steve G","Na",641,17.3,6,0.11,0]
["dc33693c-593c-4326-939e-b84448cad98f","2023-09-02T14:30:28.393Z","2023-09-02T14:30:38.000Z","geoffsallis55@gmail.com","Abbey Mill 02/09/2023 Geoff",null,null,null,null,null,null,"Abbey Mill","15:00:00","2023-09-02","Geoff","Na",1020,19.5,10,1.08,0]
["01ec9871-3da1-4ff6-9a9b-805938c26770","2023-09-04T17:44:15.000Z","2023-09-04T17:48:48.000Z","mjhtreearb@protonmail.com","Welford Boat Station 03/09/2023 Chris Fox",52.175240000000002,-1.7918700000000001,4,5781217,582613,"30U","Welford Boat Station","18:00:00","2023-09-03","Chris Fox","Below",992,20.100000000000001,4.5,0.54,0,"Calm - sunny - warm"]
["3e6083f7-549f-40c1-9686-551580a6a90d","2023-09-04T17:37:09.000Z","2023-09-04T17:48:46.000Z","mjhtreearb@protonmail.com","Hampton Lucy 03/09/2023 Martin Hicks",52.211680000000001,-1.6244400000000001,4,5785473,593984,"30U","Hampton Lucy","12:45:00","2023-09-03","Martin Hicks","NA",834,21.1,6,0.53,0]
["517dc94f-9488-4c62-83af-39092ae41367","2023-09-04T17:34:54.000Z","2023-09-04T17:48:44.000Z","mjhtreearb@protonmail.com","Hampton Wood 03/09/2023 Martin Hicks",52.238149999999997,-1.6245799999999999,4,5788417,593919,"30U","Hampton Wood","11:50:00","2023-09-03","Martin Hicks","Below",890,21.2,5,0.52,0]
["ff92751b-bfdc-420a-a829-67658b39ede1","2023-09-04T17:47:19.000Z","2023-09-04T17:48:51.000Z","mjhtreearb@protonmail.com","Weston on Avon 04/09/2023 Martin Hicks",52.167430000000003,-1.7744800000000001,4,5780368,583816,"30U","Weston on Avon","17:05:00","2023-09-04","Martin Hicks","Below",976,21.6,4,0.7,0]
["cc9edb2c-ddcf-4cbc-9a53-88cafda2642d","2023-09-06T15:10:29.946Z","2023-09-06T15:10:40.000Z","stellakhan01@gmail.com","Newbold Mill Stour 06/09/2023 Stella Khan",52.113444999999999,-1.6333759999999999,7,5774536,593579,"30U","Newbold Mill Stour","15:46:00","2023-09-06","Stella Khan","Below",694,19.7,50,0.56999999999999995,2,"Hot dry day 30C"]
["b8af2216-8351-4bc0-96b1-f9fdd2701644","2023-09-08T08:54:35.070Z","2023-09-08T08:54:39.000Z","geoffsallis55@gmail.com","Swillgate A38 07/09/2023 Helen Carver",null,null,null,null,null,null,"Swillgate A38","11:10:00","2023-09-07","Helen Carver","Na",111,20.2,8,0,0,"No phosphate test"]
["991eb9da-4b4f-4219-aca2-ace328ed78cc","2023-09-07T12:20:46.000Z","2023-10-05T13:22:45.000Z","d.orourke0453@gmail.com","Preston- on- stour river bridge 07/09/2023 Derek O'Rourke",52.146562000000003,-1.6991529999999999,4,5778137,589010,"30U","Preston- on- stour river bridge","13:17:00","2023-09-07","Derek O'Rourke","Below",712,21.4,5,0.6,4,"Outside temp 28c.mid river readings.still water."]
["9be8c473-7a1f-4891-8ee0-2498d806ae79","2023-09-16T11:48:05.000Z","2023-09-16T11:51:04.000Z","rdtclocker@gmail.com","Avonbank 09/09/2023 Richard Thomas",null,null,null,null,null,null,"Avonbank","11:15:00","2023-09-09","Richard Thomas","Above",1030,22.7,15,0.67,1]
["2ee360ba-cbe7-43f5-a3b5-59a49c43c793","2023-09-16T11:45:18.000Z","2023-09-16T11:51:06.000Z","rdtclocker@gmail.com","Pitch16 09/09/2023 Richard Thomas",null,null,null,null,null,null,"Pitch16","11:40:00","2023-09-09","Richard Thomas","Below",1010,24.4,15,0.69,1]
["7040ea96-dbd0-437b-896f-18c654dff538","2023-09-11T10:30:25.463Z","2023-09-11T10:30:28.000Z","geoffsallis55@gmail.com","Carrant Bredon rd 09/09/2023 Steve G",null,null,null,null,null,null,"Carrant Bredon rd","14:00:00","2023-09-09","Steve G","Na",684,21.3,8,0.6,0]
["962212ed-108d-41e0-a70e-37594a764c44","2023-09-20T11:08:54.000Z","2023-09-20T11:20:58.000Z","mjhtreearb@protonmail.com","Hampton Lucy 10/09/2023 Martin Hicks",52.211680000000001,-1.6244400000000001,4,5785473,593984,"30U","Hampton Lucy","12:30:00","2023-09-10","Martin Hicks","NA",964,21.6,7,0.69,0]
["d2a0f436-1fb5-45c4-9eb7-2190a13390d2","2023-09-20T11:04:44.000Z","2023-09-20T11:20:54.000Z","mjhtreearb@protonmail.com","Hampton Wood 10/09/2023 Martin Hicks",52.238149999999997,-1.6245799999999999,4,5788417,593919,"30U","Hampton Wood","11:40:00","2023-09-10","Martin Hicks","Below",984,22.3,6,0.5,0]
["3e565480-7013-4aec-97f1-4d8a7c44add1","2023-09-10T17:42:19.295Z","2023-09-10T17:42:23.000Z","geoffsallis55@gmail.com","Abbey Mill 10/09/2023 Geoff",51.99145,-2.1628319999999999,29,5760418,557482,"30U","Abbey Mill","18:07:00","2023-09-10","Geoff","Na",1020,23.3,10,0.97,0]
["78fcc4e8-7025-4426-aa2d-8c263736fd78","2023-09-11T17:56:43.768Z","2023-09-11T17:57:03.000Z","geoffsallis55@gmail.com","Stour Shipston bridge 11/09/2023 Geoff",52.062027,-1.6216390000000001,23,5768833,594492,"30U","Stour Shipston bridge","18:50:00","2023-09-11","Geoff","Na",678,20.100000000000001,4,0.69,0]
["9cb85a1c-7267-49cd-8588-fc889f2c734b","2023-09-13T15:28:04.000Z","2023-11-15T17:22:05.000Z","Olivia.Hatch@stratford-dc.gov.uk","Stour, Mill House, Newbold 13/09/2023 Olivia Hatch",52.113387000000003,-1.6333120000000001,5,5774530,593584,"30U","Stour, Mill House, Newbold","16:12:00","2023-09-13","Olivia Hatch","1m below",729,17.7,25,0.78,2.1,"Heavy rain day before"]
["f20ea913-9b8f-4e6b-884d-3f349678f523","2023-09-20T11:13:48.000Z","2023-09-20T11:21:03.000Z","mjhtreearb@protonmail.com","Welford Boat Station 14/09/2023 Chris Fox",52.175240000000002,-1.7918700000000001,4,5781217,582613,"30U","Welford Boat Station","16:00:00","2023-09-14","Chris Fox","Below",1026,18.8,5,0.56999999999999995,0,"Overcast, occasional light rain"]
["0d83ac4c-a020-42cf-a098-61d39c624f96","2023-09-14T11:03:35.000Z","2023-10-05T13:24:01.000Z","d.orourke0453@gmail.com","Preston river bridge 14/09/2023 Derek O'Rourke",52.146673999999997,-1.6993199999999999,4,5778149,588998,"30U","Preston river bridge","12:00:00","2023-09-14","Derek O'Rourke","Below",717,17.7,5,0.6,5,"Significant rainfall on 12 sept."]
["8f28044a-e54b-4286-9137-48536f4b8882","2023-09-14T10:23:57.000Z","2023-11-15T17:22:07.000Z","Olivia.Hatch@stratford-dc.gov.uk","Stour Bridge Shipston 14/09/2023 Olivia Hatch",52.062075999999998,-1.621772,6,5768838,594482,"30U","Stour Bridge Shipston","11:13:00","2023-09-14","Olivia Hatch","Below 15m",656,16.3,10,0.55000000000000004,0.5]
["1c11bb32-ddf8-4c54-816f-e625d8887e3d","2023-09-16T14:13:05.253Z","2023-11-12T15:51:54.000Z","geoffsallis55@gmail.com","Abbey mill 16/09/2023 Geoff",51.991416000000001,-2.1629619999999998,14,5760414,557473,"30U","Abbey mill","15:12:00","2023-09-16","Geoff","Na",null,20,5,1.1000000000000001,0]
["f847e8b9-d500-46e6-a4bd-969804a98039","2023-09-16T11:56:43.000Z","2023-09-16T11:57:45.000Z","rdtclocker@gmail.com","Avonbank 16/09/2023 Richard Thomas",null,null,null,null,null,null,"Avonbank","11:05:00","2023-09-16","Richard Thomas","Above",921,18.2,15,0.56000000000000005,1]
["43657ec0-b0a0-4485-b17f-d0199fba3b2b","2023-09-16T11:53:33.000Z","2023-09-16T11:57:43.000Z","rdtclocker@gmail.com","Pitch16 16/09/2023 Richard Thomas",null,null,null,null,null,null,"Pitch16","10:45:00","2023-09-16","Richard Thomas","Below",966,18.600000000000001,15,0.73,1]
["d5d336de-b7dc-46f9-8499-7f11d49e7999","2023-09-16T09:36:54.000Z","2023-09-16T09:38:19.000Z","msztymiak@gmail.com","Twyning Fleet 16/09/2023 Mike Sztymiak",52.027113,-2.1406619999999998,13,5764402,558957,"30U","Twyning Fleet","09:55:00","2023-09-16","Mike Sztymiak","Below",1010,19.8,10,1.25,0,"Dry day"]
["c7b8aee9-61a9-448f-a82a-5010cda6421b","2023-09-20T11:15:40.000Z","2023-09-20T11:21:05.000Z","mjhtreearb@protonmail.com","Welford Boat Station 17/09/2023 Chris Fox",52.175240000000002,-1.7918700000000001,4,5781217,582613,"30U","Welford Boat Station","17:00:00","2023-09-17","Chris Fox","Below",836,18.2,4,0.65,0,"Light rain"]
["d13bb693-ba94-4d86-bcb9-66ebe621057c","2023-09-20T11:10:52.000Z","2023-09-20T11:21:01.000Z","mjhtreearb@protonmail.com","Hampton Lucy 17/09/2023 Martin Hicks",52.211680000000001,-1.6244400000000001,4,5785473,593984,"30U","Hampton Lucy","12:40:00","2023-09-17","Martin Hicks","NA",854,18.600000000000001,4,0.61,0]
["e2f82034-8ee4-4122-91ce-c7d64c3a5591","2023-09-20T11:06:28.000Z","2023-09-20T11:20:56.000Z","mjhtreearb@protonmail.com","Hampton Wood 17/09/2023 Martin Hicks",52.238149999999997,-1.6245799999999999,4,5788417,593919,"30U","Hampton Wood","12:00:00","2023-09-17","Martin Hicks","Below",912,18.8,6,0.62,0]
["11f2d041-375d-4856-b733-44cd2786e013","2023-09-20T05:51:24.040Z","2023-10-03T09:38:47.000Z","geoffsallis55@gmail.com","Carrant Bredon rd 17/09/2023 Steve G",null,null,null,null,null,null,"Carrant Bredon rd","12:01:00","2023-09-17","Steve G","Na",661,16.600000000000001,7,0.68,0]
["cb69ec20-772c-4f22-b2f5-9e66d2fd9b93","2023-09-20T11:19:52.000Z","2023-09-20T11:21:07.000Z","mjhtreearb@protonmail.com","Barton 18/09/2023 Martin Hicks",52.161209999999997,-1.8301499999999999,4,5779613,580020,"30U","Barton","17:30:00","2023-09-18","Martin Hicks","NA",872,17.100000000000001,0,0.66,0,"Nitrate test failure, awaiting new equipment"]
["420affce-963a-4dba-89c1-85a53205aa79","2023-09-20T16:53:21.098Z","2023-10-04T15:35:23.000Z","stellakhan01@gmail.com","Newbold Mill Stour 20/09/2023 Stella Khan",52.113469000000002,-1.6333439999999999,5,5774539,593582,"30U","Newbold Mill Stour","17:00:00","2023-09-20","Stella Khan","Below",668,16.399999999999999,50,0.79,2.1,"Heavy rainfall"]
["a76600a3-5b04-4f75-8a13-8b898ea5626b","2023-09-23T13:39:18.724Z","2023-09-23T13:39:22.000Z","geoffsallis55@gmail.com","Swillgate A38 21/09/2023 Helen Carver",null,null,null,null,null,null,"Swillgate A38","10:15:00","2023-09-21","Helen Carver","Na",736,15.8,7,0.83,0]
["806410c6-cab8-4bf5-a8f1-b46cea828067","2023-09-21T13:02:52.000Z","2023-10-08T19:59:37.000Z","d.orourke0453@gmail.com","Preston onStour river bridge 21/09/2023 Derek O'Rourke",52.146552999999997,-1.6992370000000001,5,5778136,589004,"30U","Preston onStour river bridge","14:00:00","2023-09-21","Derek O'Rourke","Below",671,16.2,5,0.8,7,"Readings taken day after heavy rain"]
["a63678f1-9874-467e-a5fd-ca5ae6072f1c","2023-09-21T10:13:16.873Z","2023-09-21T10:13:21.000Z","geoffsallis55@gmail.com","Abbey mill 21/09/2023 Geoff",null,null,null,null,null,null,"Abbey mill","10:30:00","2023-09-21","Geoff","Na",105,17.100000000000001,8,1.04,0]
["375f367c-ce94-4904-9f51-95f00d5ce208","2023-09-28T15:08:07.837Z","2023-10-03T09:36:35.000Z","geoffsallis55@gmail.com","Carrant Bredon rd 23/09/2023 SteveG",null,null,null,null,null,null,"Carrant Bredon rd","14:30:00","2023-09-23","SteveG","Na",655,13.4,8,0.94,0]
["8deb2403-cfd2-4330-959d-cca9b336fa07","2023-09-23T11:58:54.305Z","2023-09-24T11:25:58.000Z","pfairburn@gmail.com","The Dell, TRINITY CHURCH 23/09/2023 Paul Fairburn",52.187393,-1.706607,8,5782669,588419,"30U","The Dell, TRINITY CHURCH","12:46:00","2023-09-23","Paul Fairburn","Not known",887,16.600000000000001,15,0.6,0.6,"One off test for the local paper"]
["074a8767-e1b3-4ac2-af1c-ba16d9a758d2","2023-09-23T10:53:31.142Z","2023-09-24T11:25:56.000Z","pfairburn@gmail.com","Avonbank Drive 23/09/2023 Paul Fairburn",52.177247999999999,-1.7358929999999999,7,5781505,586436,"30U","Avonbank Drive","11:44:00","2023-09-23","Paul Fairburn","Above",882,18.5,15,0.8,0.6]
["42cb884c-ccab-4725-b69c-b606fec57942","2023-09-23T10:26:15.203Z","2023-09-24T11:25:54.000Z","pfairburn@gmail.com","Pitch 16 23/09/2023 Paul Fairburn",52.172609000000001,-1.7454480000000001,5,5780978,585792,"30U","Pitch 16","11:10:00","2023-09-23","Paul Fairburn","Below",856,15.5,15,0.97,0.6,"Nitrite was zero"]
["0b0862c1-004c-496b-b3d1-43fc3a12b057","2023-09-27T15:10:24.839Z","2023-09-27T15:12:01.000Z","stellakhan01@gmail.com","Newbold Mill Stour 27/09/2023 Stella Khan",52.113517000000002,-1.633219,5,5774545,593590,"30U","Newbold Mill Stour","16:08:00","2023-09-27","Stella Khan","Below",687,16.7,25,0.7,2,"Dry day"]
["78be5301-6322-4227-b2aa-52e7e068ec92","2023-09-28T15:03:03.266Z","2023-09-28T15:03:06.000Z","geoffsallis55@gmail.com","Swillgate A38 28/09/2023 Helen Carver",null,null,null,null,null,null,"Swillgate A38","15:06:00","2023-09-28","Helen Carver","Na",813,15.6,7,0.62,0]
["9940d247-c159-4f66-b2cb-cc8c870f3d35","2023-09-28T10:18:13.000Z","2023-10-05T13:26:56.000Z","d.orourke0453@gmail.com","Preston river bridge 28/09/2023 Derek O'Rourke",52.146639,-1.6990339999999999,4,5778146,589018,"30U","Preston river bridge","11:15:00","2023-09-28","Derek O'Rourke","Below",705,15.1,5,0.6,6,"Readings taken day after heavy rain showers."]
["43321018-eab5-46c6-abae-e3960f788a59","2023-10-01T10:27:03.427Z","2023-10-01T10:27:06.000Z","geoffsallis55@gmail.com","Abbey Mill 01/10/2023 Geoff",null,null,null,null,null,null,"Abbey Mill","10:15:00","2023-10-01","Geoff","Na",870,17.5,10,0.98,0]
["61bf3403-5bbf-40a5-b116-1e742085808c","2023-10-01T09:35:09.000Z","2023-11-15T17:22:09.000Z","Olivia.Hatch@stratford-dc.gov.uk","Stour, Mill Bridge, Shipston 01/10/2023 Olivia Hatch",52.062021999999999,-1.621729,7,5768832,594486,"30U","Stour, Mill Bridge, Shipston","10:21:00","2023-10-01","Olivia Hatch","30m below",642,16,10,0.41,5]
["9f9f1eaa-2ad7-47ac-8cdd-935dd9af0f6c","2023-10-04T15:38:49.066Z","2023-11-03T16:24:13.000Z","stellakhan01@gmail.com","Mill Stour Newbold 04/10/2023 Stellakhan01@gmail.com",52.113486999999999,-1.6333500000000001,4,5774541,593581,"30U","Mill Stour Newbold","16:15:00","2023-10-04","Stellakhan01@gmail.com","Below",704,15.5,10,0.71,2,"Dry day"]
["3399fa21-f6b5-4935-b46b-0e1178d30cdf","2023-10-05T13:16:30.000Z","2023-10-08T19:57:50.000Z","d.orourke0453@gmail.com","Preston river bridge 05/10/2023 Derek O'Rourke",52.146582000000002,-1.6992160000000001,4,5778139,589005,"30U","Preston river bridge","14:13:00","2023-10-05","Derek O'Rourke","Below",692,15.8,5,0.61,6,"River height slightly elevated"]
["88a978e6-d8fb-4c5e-8596-9217373f256b","2023-10-05T12:58:11.260Z","2023-10-05T13:00:04.000Z","geoffsallis55@gmail.com","Swillgate A38 05/10/2023 Helen Carver",null,null,null,null,null,null,"Swillgate A38","10:30:00","2023-10-05","Helen Carver","Na",868,15.2,10,0.7,0]
["f188a315-9a23-468e-a7cd-a199fb41d5e5","2023-10-07T10:46:25.957Z","2023-10-07T10:49:24.000Z","geoffsallis55@gmail.com","Illmington middle st 07/10/2023 Geoff",52.090074000000001,-1.692588,13,5771862,589572,"30U","Illmington middle st","11:44:00","2023-10-07","Geoff","Na",608,17.100000000000001,1,0.18,0]
["8c09afbc-b831-45ef-b78a-e7e93eb60496","2023-10-11T13:38:13.000Z","2023-10-11T13:43:49.000Z","mjhtreearb@protonmail.com","Welford Boat Station 08/10/2023 Chris Fox",52.175240000000002,-1.7918700000000001,4,5781217,582613,"30U","Welford Boat Station","16:00:00","2023-10-08","Chris Fox","Below",830,17.600000000000001,4.5,0.56999999999999995,0,"Good weather"]
["dfc672e4-8cf7-4838-af51-5f31049c330e","2023-10-11T13:34:01.000Z","2023-10-11T13:43:47.000Z","mjhtreearb@protonmail.com","Hampton Lucy 08/10/2023 John Conchar",52.211680000000001,-1.6244400000000001,4,5785473,593984,"30U","Hampton Lucy","14:00:00","2023-10-08","John Conchar","NA",884,18,7.5,0.6,0]
["90dce08d-c7f3-48df-bf96-1b07787b9f06","2023-10-11T13:31:42.000Z","2023-10-11T13:43:45.000Z","mjhtreearb@protonmail.com","Hampton Wood 08/10/2023 Martin Hicks",52.238149999999997,-1.6245799999999999,4,5788417,593919,"30U","Hampton Wood","12:30:00","2023-10-08","Martin Hicks","Below",918,16.100000000000001,9,0.73,0]
["8c82a6ed-a29e-4e8e-9c8c-c6551a01ba30","2023-10-08T15:46:30.405Z","2023-10-08T16:56:01.000Z","geoffsallis55@gmail.com","Abbey mill 08/10/2023 Geoff",51.991534000000001,-2.1627879999999999,64,5760427,557485,"30U","Abbey mill","16:39:00","2023-10-08","Geoff","Na",811,18.100000000000001,9,1.01,0]
["efbb770e-c45d-4bf3-8c6e-f896cf34b8f0","2023-10-11T13:40:35.000Z","2023-10-11T13:43:51.000Z","mjhtreearb@protonmail.com","Weston on Avon 10/10/2023 Martin Hicks",52.167430000000003,-1.7744800000000001,4,5780368,583816,"30U","Weston on Avon","16:30:00","2023-10-10","Martin Hicks","Below",972,17.7,4,0.66,0]
["e5489438-fbb3-43bd-821a-9a7432397e7b","2023-10-11T16:00:07.000Z","2023-11-15T17:22:13.000Z","Olivia.Hatch@stratford-dc.gov.uk","Stour Shipston Mill bridge 11/10/2023 Olivia Hatch",52.062024999999998,-1.621747,15,5768833,594484,"30U","Stour Shipston Mill bridge","16:29:00","2023-10-11","Olivia Hatch","15 m below",684,15.7,10,0.42,0.5,"1st rain for a while"]
["c9125da6-fdbc-44eb-aca6-8b0b6f7ac88b","2023-10-11T15:04:08.000Z","2023-11-15T17:22:11.000Z","Olivia.Hatch@stratford-dc.gov.uk","Stour, Mill Newbold 11/10/2023 Olivia Hatch",52.113520000000001,-1.6333390000000001,4,5774545,593582,"30U","Stour, Mill Newbold","15:49:00","2023-10-11","Olivia Hatch","1m below",711,15.8,25,0.76,2.5,"Heavy rain this am, but 1st for a while"]
["785a0237-fc41-4757-bf46-7ef3f141146e","2023-10-11T13:42:24.000Z","2023-10-11T13:43:53.000Z","mjhtreearb@protonmail.com","Barton 11/10/2023 Paul Berry",52.161209999999997,-1.8301499999999999,4,5779613,580020,"30U","Barton","12:30:00","2023-10-11","Paul Berry","Below",962,16.5,4,0.84,0]
["d9a9caac-8d2d-4efd-b326-b3498b47e6a8","2023-10-13T12:37:46.231Z","2023-10-13T12:38:50.000Z","geoffsallis55@gmail.com","Swillgate A38 12/10/2023 Helen Carver",null,null,null,null,null,null,"Swillgate A38","10:30:00","2023-10-12","Helen Carver","Na",637,15,3,0.67,0,"Heavy rain overnight"]
["4035417c-d232-446a-9792-b6004802cb60","2023-10-12T13:10:38.000Z","2023-10-12T13:16:27.000Z","d.orourke0453@gmail.com","Preston River bridge 12/10/2023 Derek O'Rourke",52.146481999999999,-1.699892,4,5778127,588959,"30U","Preston River bridge","14:08:00","2023-10-12","Derek O'Rourke","Below",718,15.2,5,0.69,1.2,"Readings taken the day after sustained rainfall."]
["77da4ce6-896b-4de9-a57e-4445f78bfaa8","2023-10-13T12:22:23.000Z","2023-11-12T15:51:08.000Z","msztymiak@gmail.com","Twyning Fleet 13/10/2023 Mike Sztymiak",52.026986999999998,-2.1405219999999998,16,5764388,558967,"30U","Twyning Fleet","12:46:00","2023-10-13","Mike Sztymiak","Below",null,17.600000000000001,10,1.02,0,"Rain overnight"]
["f44c9eb5-bf6d-4f36-92e3-2e6a3a6bc30f","2023-10-16T10:44:55.068Z","2023-10-16T10:45:59.000Z","geoffsallis55@gmail.com","Carrant Bredon rd 14/10/2023 SteveG",51.994807999999999,-2.151078,11,5760800,558285,"30U","Carrant Bredon rd","12:42:00","2023-10-14","SteveG","Na",694,14.1,7,0.93,0.3,"Heavy rain"]
["e6e2689b-d66e-4b78-b856-41c3438e3c1f","2023-10-14T20:23:20.514Z","2023-10-14T20:24:40.000Z","pfairburn@gmail.com","Avonbank Drive 14/10/2023 Paul Fairburn",null,null,null,null,null,null,"Avonbank Drive","11:50:00","2023-10-14","Paul Fairburn","Above",688,15.5,10,0.86,0.9]
["ebff985e-6d41-4f09-9277-f3a4fe08e97c","2023-10-14T14:47:05.297Z","2023-10-14T14:48:38.000Z","geoffsallis55@gmail.com","Abbey mill 14/10/2023 Geoff",null,null,null,null,null,null,"Abbey mill","15:00:00","2023-10-14","Geoff","Na",906,15.6,9,1.1499999999999999,1,"Heavy rain over night"]
["d8905c11-d763-4b07-916d-6121063bf27d","2023-10-14T10:33:01.934Z","2023-10-14T20:24:38.000Z","pfairburn@gmail.com","Pitch 16 14/10/2023 Paul Fairburn",52.172694999999997,-1.745101,4,5780988,585815,"30U","Pitch 16","11:30:00","2023-10-14","Paul Fairburn","Below",679,15.3,5,0.84,0.9,"Cloudy muddy water. Nitrite zero."]
["9138680a-729a-4aab-9e06-c326493fa0e0","2023-10-21T18:52:22.000Z","2023-10-21T18:55:50.000Z","mjhtreearb@protonmail.com","Welford Boat Station 15/10/2023 Chris Fox",52.175240000000002,-1.7918700000000001,4,5781217,582613,"30U","Welford Boat Station","16:00:00","2023-10-15","Chris Fox","Below",582,13.2,2,0.78,0,"2 days rain, low temps"]
["81bedac2-d003-4550-a8a6-ceb144ce0707","2023-10-21T18:49:42.000Z","2023-10-21T18:55:48.000Z","mjhtreearb@protonmail.com","Hampton Lucy 15/10/2023 John Conchar",52.211680000000001,-1.6244400000000001,4,5785473,593984,"30U","Hampton Lucy","12:15:00","2023-10-15","John Conchar","NA",586,13.1,3,0.6,0,"River up"]
["210526a8-153f-419d-a5a2-66a4042665c3","2023-10-21T18:47:17.000Z","2023-10-21T18:55:46.000Z","mjhtreearb@protonmail.com","Hampton Wood 15/10/2023 Martin Hicks",52.238149999999997,-1.6245799999999999,4,5788417,593919,"30U","Hampton Wood","10:30:00","2023-10-15","Martin Hicks","Below",608,12.6,4,0.74,0,"Recent heavy rain, high river level"]
["135ea84a-e4e8-42a8-842a-7df1eb7f746a","2023-10-21T18:54:40.000Z","2023-10-21T18:55:52.000Z","mjhtreearb@protonmail.com","Weston on Avon 16/10/2023 Martin Hicks",52.167430000000003,-1.7744800000000001,4,5780368,583816,"30U","Weston on Avon","15:00:00","2023-10-16","Martin Hicks","Below",696,12,4,0.64,0,"River high"]
["afe4d8d4-03ce-4bb7-aa07-45d5ac9c741b","2023-10-18T12:59:10.000Z","2023-10-18T12:59:19.000Z","trevor.acreman@gmail.com","Clifford Chambers 17/10/2023 Trevor Acreman",52.166370000000001,-1.708032,4,5780329,588363,"30U","Clifford Chambers","10:15:00","2023-10-17","Trevor Acreman",null,599,12.6,8,0.42,0.5]
["0bf43174-1b8c-4f1f-9cbb-793dc7c12935","2023-10-25T09:31:01.838Z","2023-10-25T09:32:12.000Z","stellakhan01@gmail.com","Mill Stour Newbold 18/10/2023 Stella Khan",52.112833000000002,-1.6334340000000001,9,5774468,593577,"30U","Mill Stour Newbold","16:00:00","2023-10-18","Stella Khan","Below",674,11.7,25,0.52,2,"Wet and windy conditions"]
["d7063002-74ca-4dc6-ae2d-48c950474bcf","2023-10-21T14:13:29.778Z","2023-10-21T14:14:38.000Z","geoffsallis55@gmail.com","Swillgate A38 19/10/2023 Helen Carver",null,null,null,null,null,null,"Swillgate A38","10:15:00","2023-10-19","Helen Carver","Na",542,14.6,6,0.6,1,"Heavy rain night before"]
["48dd4415-8282-49c4-8be1-1873ac555b71","2023-10-19T11:33:11.000Z","2023-10-19T11:38:34.000Z","d.orourke0453@gmail.com","Preston river bridge 19/10/2023 DerekO'Rourke",52.146563,-1.6999219999999999,4,5778136,588957,"30U","Preston river bridge","12:30:00","2023-10-19","DerekO'Rourke","Below",675,14.7,5,0.61,1.5,"Fairly consistant overnight rain"]
["181fbd61-8a30-458c-8033-f4cecacb0342","2023-10-22T11:08:05.000Z","2023-11-25T16:02:14.000Z","rdtclocker@gmail.com","Avonbank 21/10/2023 Richard Thomas",null,null,null,null,null,null,"Avonbank","11:15:00","2023-10-21","Richard Thomas","Above",454,14.7,10,1.1000000000000001,1.1000000000000001,"River in flood, rainfall 60 mm in week up to 21/10 (my measurement close to sampling point"]
["8498d5bb-7e57-4e10-b44b-50fe752ea1d1","2023-10-21T15:25:31.495Z","2023-10-21T15:25:34.000Z","geoffsallis55@gmail.com","Abbey mill 21/10/2023 Geoff",null,null,null,null,null,null,"Abbey mill","15:45:00","2023-10-21","Geoff","Na",435,15.3,4,1.1499999999999999,2,"Cloudy with heavy flooding"]
["d4ec5169-2c4f-474a-9a7b-d3b75989cdda","2023-11-09T18:09:11.000Z","2023-11-09T18:23:54.000Z","mjhtreearb@protonmail.com","Hampton Lucy 22/10/2023 John Conchar",52.211680000000001,-1.6244400000000001,4,5785473,593984,"30U","Hampton Lucy","12:30:00","2023-10-22","John Conchar","NA",506,12.5,2,0.74,0]
["a5557349-697c-41a3-aa31-150475eb0be9","2023-11-09T18:01:16.000Z","2023-11-09T18:23:46.000Z","mjhtreearb@protonmail.com","Hampton Wood 22/10/2023 Martin Hicks",52.238149999999997,-1.6245799999999999,4,5788417,593919,"30U","Hampton Wood","10:40:00","2023-10-22","Martin Hicks","below",530,11.5,3,0.73,0,"heavy rain, river high"]
["8e3dd0a6-e6cf-4ecb-b351-3799ee0da48b","2023-10-22T16:54:57.000Z","2023-10-22T16:55:55.000Z","trevor.acreman@gmail.com","Clifford Chambers mill bridge 22/10/2023 Trevor Acreman",52.166370000000001,-1.708032,4,5780329,588363,"30U","Clifford Chambers mill bridge","17:11:00","2023-10-22","Trevor Acreman",null,521,14.5,5,0.28000000000000003,1.25,"River was in flood previous 2 days"]
["17164a2c-dc08-422b-a891-ae2d29b1bcb7","2023-11-09T18:19:46.000Z","2023-11-09T18:24:00.000Z","mjhtreearb@protonmail.com","Weston on Avon 24/10/2023 Martin Hicks",52.167430000000003,-1.7744800000000001,4,5780368,583816,"30U","Weston on Avon","15:30:00","2023-10-24","Martin Hicks","below",632,13,4,0.6,0]
["e7a1f84c-5936-4fe3-8ccb-0df4246bf1f2","2023-11-01T13:45:03.467Z","2023-11-01T13:46:09.000Z","stellakhan01@gmail.com","Mill Stour Newbold 24/10/2023 Stella Khan",52.112869000000003,-1.633435,15,5774472,593577,"30U","Mill Stour Newbold","16:00:00","2023-10-24","Stella Khan","Below",676,12.1,50,0.28000000000000003,2.5,"River levels were very high on preceding days. On the 20th Oct Shipston gauge recorded 3.2m and the Mill Stour paddock  was completely submerged. This could account for the lower phosphate levels due to dilution effect of substantial rain fall."]
["80b604d6-f670-4734-96ba-121858915922","2023-10-31T07:57:11.757Z","2023-10-31T07:57:17.000Z","geoffsallis55@gmail.com","Swillgate A38 26/10/2023 Helen Carver",null,null,null,null,null,null,"Swillgate A38","09:40:00","2023-10-26","Helen Carver","Na",640,12.8,3,0.83,2,"Flooding"]
["92c8867a-7ce2-4325-97f2-d83ba16f3296","2023-10-26T11:14:39.000Z","2023-10-26T11:16:27.000Z","d.orourke0453@gmail.com","Preston river bridge. 26/10/2023 Derek O'Rourke",52.146653000000001,-1.699214,8,5778147,589005,"30U","Preston river bridge.","12:12:00","2023-10-26","Derek O'Rourke","Below",665,12.1,5,0.27,1.5,"Some heavy rain over past few days"]
["96090f29-fd2e-4abf-8bda-18bf913fb5c7","2023-10-31T08:00:43.411Z","2023-10-31T08:00:46.000Z","geoffsallis55@gmail.com","Carrant Bredon rd 28/10/2023 SteveG",null,null,null,null,null,null,"Carrant Bredon rd","12:00:00","2023-10-28","SteveG","Na",635,12.8,6,0.64,1.3,"High but falling."]
["16521a20-cba5-4c5e-b3e5-e4fe6b7e728a","2023-11-09T18:11:51.000Z","2023-11-09T18:23:52.000Z","mjhtreearb@protonmail.com","Hampton Lucy 29/10/2023 John Conchar",52.211680000000001,-1.6244400000000001,4,5785473,593984,"30U","Hampton Lucy","12:40:00","2023-10-29","John Conchar","NA",758,12.6,3.5,0.71,0]
["de8ca881-ffbc-4ca2-babe-9eaa9bf7fc32","2023-11-09T18:03:49.000Z","2023-11-09T18:23:48.000Z","mjhtreearb@protonmail.com","Hampton Wood 29/10/2023 Martin Hicks",52.238149999999997,-1.6245799999999999,4,5788417,593919,"30U","Hampton Wood","11:15:00","2023-10-29","Martin Hicks","below",754,13.1,4,0.6,0]
["2ba03779-8183-4ed4-a6b6-6597b7d51f73","2023-10-29T17:01:04.000Z","2023-10-29T17:02:00.000Z","trevor.acreman@gmail.com","Clifford Chambers mill bridge 29/10/2023 Trevor Acreman",52.166370000000001,-1.708032,4,5780329,588363,"30U","Clifford Chambers mill bridge","15:11:00","2023-10-29","Trevor Acreman","Dk",416,13.4,4,0.34,1.8,"Rain the night before"]
["1caf13cd-200a-4a23-ba1a-b4634aec5846","2023-10-30T16:36:22.586Z","2023-10-30T16:36:49.000Z","marymanandhar@gmail.com","Alveston Weir 30/10/2023 Mary Manandhar",52.214388999999997,-1.6601520000000001,9,5785729,591539,"30U","Alveston Weir","15:37:00","2023-10-30","Mary Manandhar","Below",70.2,16.8,10,0.49,0]
["3634b7ae-9aa1-4e30-9571-06d3265094e3","2023-10-30T14:51:59.000Z","2023-10-31T16:39:49.000Z","rennyw@tiscali.co.uk","Swiffen Bank 30/10/2023 STEVE CURRIE",52.206477999999997,-1.653894,4,5784857,591983,"30U","Swiffen Bank","14:09:00","2023-10-30","STEVE CURRIE","Below",687,15,5,0.54,1]
["8fb016f8-c0ba-4ecb-a6e4-041eb50c7642","2023-10-31T07:50:36.908Z","2023-10-31T07:57:16.000Z","geoffsallis55@gmail.com","Abbey mill 31/10/2023 Geoff",51.991028,-2.1625719999999999,40,5760371,557500,"30U","Abbey mill","07:05:00","2023-10-31","Geoff","Na",640,13.5,10,0.41,1,"Falling floods, cloudy water"]
["ff580d46-1b49-4a24-820a-3699a3e913f4","2023-11-09T18:21:17.000Z","2023-11-09T18:24:02.000Z","mjhtreearb@protonmail.com","Weston on Avon 01/11/2023 Martin Hicks",52.167430000000003,-1.7744800000000001,4,5780368,583816,"30U","Weston on Avon","14:10:00","2023-11-01","Martin Hicks","below",800,11.6,3,0.59,0]
["f6229593-01f2-45d6-b65a-230b3e483d31","2023-11-05T09:59:52.781Z","2023-11-05T09:59:56.000Z","geoffsallis55@gmail.com","Swillgate A38 02/11/2023 Helen Carver",null,null,null,null,null,null,"Swillgate A38","09:30:00","2023-11-02","Helen Carver","Na",895,12.2,2,0.48,1.5,"Floods"]
["897cabb8-10e8-4050-a7b2-537230639910","2023-11-02T12:39:08.000Z","2023-11-02T12:40:27.000Z","d.orourke0453@gmail.com","Preston river bridge 02/11/2023 Derek O'Rourke",52.146543000000001,-1.699527,9,5778134,588984,"30U","Preston river bridge","12:36:00","2023-11-02","Derek O'Rourke","Below",610,11.9,5,0.21,2.5,"River swollen,steady rainfall overnight"]
["253ceb35-5f3e-473f-8be2-414873c389bc","2023-11-09T18:17:29.000Z","2023-11-09T18:23:58.000Z","mjhtreearb@protonmail.com","Welford Boat Station 05/11/2023 Chris Fox",52.175240000000002,-1.7918700000000001,4,5781217,582613,"30U","Welford Boat Station","16:00:00","2023-11-05","Chris Fox","below",570,10.8,2,0.37,0,"Rain - river up, brown"]
["233c0ac5-d98b-402c-9316-618f3f43793a","2023-11-09T18:14:19.000Z","2023-11-09T18:23:56.000Z","mjhtreearb@protonmail.com","Hampton Lucy 05/11/2023 John Conchar",52.211680000000001,-1.6244400000000001,4,5785473,593984,"30U","Hampton Lucy","12:50:00","2023-11-05","John Conchar","NA",570,11.4,2,0.54,0]
["59bfb2e7-e506-4569-904b-2c35835d25ad","2023-11-09T18:05:54.000Z","2023-11-09T18:23:50.000Z","mjhtreearb@protonmail.com","Hampton Wood 05/11/2023 Martin Hicks",52.238149999999997,-1.6245799999999999,4,5788417,593919,"30U","Hampton Wood","11:45:00","2023-11-05","Martin Hicks","below",568,11.1,3,0.55000000000000004,0,"river high"]
["4db7b3f7-7993-4cd0-b5dd-7717bc14ef96","2023-11-06T17:02:46.000Z","2023-11-06T17:10:12.000Z","trevor.acreman@gmail.com","Clifford Chambers mill bridge 05/11/2023 Trevor Acreman",52.166037000000003,1.708032,4,5780292,411636,"31U","Clifford Chambers mill bridge","15:11:00","2023-11-05","Trevor Acreman","Dk",486,12,7,0.42,1.7,"Rain day before"]
["eb2117c9-e72a-40b3-aae7-99c136f2a6f3","2023-11-06T06:42:37.518Z","2023-11-06T06:42:40.000Z","geoffsallis55@gmail.com","Carrant Bredon rd 05/11/2023 Steve G",null,null,null,null,null,null,"Carrant Bredon rd","12:30:00","2023-11-05","Steve G","Na",738,11.7,6,0.32,1,"Flood, noticeable current"]
["b18b967b-bf1d-4533-b271-baef20c3756c","2023-11-05T14:03:02.000Z","2023-11-25T16:02:18.000Z","rdtclocker@gmail.com","Avonbank 05/11/2023 Richard Thomas",null,null,null,null,null,null,"Avonbank","11:45:00","2023-11-05","Richard Thomas","Above",570,12.5,5,1.06,1,"River height 0.99m. CSO gushing visibly as river level is above its outflow."]
["6322c611-ef17-419e-b07a-b1dcc787fd3d","2023-11-05T14:01:03.000Z","2023-11-25T16:02:16.000Z","rdtclocker@gmail.com","Pitch16 05/11/2023 Richard Thomas",null,null,null,null,null,null,"Pitch16","11:15:00","2023-11-05","Richard Thomas","Below",565,12.5,5,1.35,1]
["d8501db5-3e92-4956-ad7e-02dd54e77320","2023-11-05T09:51:36.694Z","2023-11-05T09:55:47.000Z","geoffsallis55@gmail.com","Abbey mill 05/11/2023 Geoff",null,null,null,null,null,null,"Abbey mill","09:10:00","2023-11-05","Geoff","Na",623,13.4,9,1.07,2,"Floods"]
["b0f72158-ec32-4f28-8179-c163b971bde1","2023-11-09T18:22:45.000Z","2023-11-09T18:24:05.000Z","mjhtreearb@protonmail.com","Weston on Avon 07/11/2023 Martin Hicks",52.167430000000003,-1.7744800000000001,4,5780368,583816,"30U","Weston on Avon","15:45:00","2023-11-07","Martin Hicks","below",664,10.7,3,0.43,0]
["da686336-e3e4-4d27-9229-08aa4e1ea5bc","2023-11-07T16:25:19.000Z","2023-11-07T16:52:07.000Z","rennyw@tiscali.co.uk","Swiffen Bank 07/11/2023 Renny Wodynska",52.206339,-1.6550020000000001,32,5784840,591907,"30U","Swiffen Bank","15:05:00","2023-11-07","Renny Wodynska","Below",561,15,5,0.42,2,"River starting to recede after overflowing following heavy rain"]
["4cadf966-51ae-4bc8-801b-87bae5888a32","2023-11-07T16:02:52.000Z","2023-11-07T16:04:59.000Z","stephenjames.currie@hotmail.com","Alveston Weir 07/11/2023 Steve Currie",52.214388999999997,-1.6601520000000001,4,5785729,591539,"30U","Alveston Weir","15:00:00","2023-11-07","Steve Currie","Below",652,15.5,5,0.41,1,"No rain for 3 days, flood susiding"]
["14936ade-32e5-4893-bfd0-3f548a0fc805","2023-11-14T17:04:37.580Z","2023-11-14T17:06:25.000Z","stellakhan01@gmail.com","Newbold Mill Stour 08/11/2023 Stella Khan",52.112864999999999,-1.6334340000000001,14,5774472,593577,"30U","Newbold Mill Stour","16:00:00","2023-11-08","Stella Khan","Below",854,10.3,25,0.26,2.5,"Overcast. Raining preceding day"]
["c7290f07-1070-43a7-b434-27d8c0788462","2023-11-10T05:36:41.433Z","2023-11-10T05:38:36.000Z","geoffsallis55@gmail.com","Swillgate A38 09/11/2023 Helen Carver",null,null,null,null,null,null,"Swillgate A38","09:30:00","2023-11-09","Helen Carver","Na",836,12,4,0.42,1]
["a742d9c3-c5e7-48e5-8916-6536bd256c38","2023-11-09T17:24:13.000Z","2023-11-15T17:22:17.000Z","Olivia.Hatch@stratford-dc.gov.uk","Stour, Cherington, bridge next to treatment plant 09/11/2023 Olivia Hatch",52.030172999999998,-1.5791440000000001,6,5765347,597474,"30U","Stour, Cherington, bridge next to treatment plant","17:06:00","2023-11-09","Olivia Hatch","N/a",295,10.7,100,0.18,0.5,"Heavy rainfall"]
["122e0892-aee7-489b-a5f1-e6009a4c540d","2023-11-09T16:53:53.000Z","2023-11-15T17:22:15.000Z","Olivia.Hatch@stratford-dc.gov.uk","Stour, Shipston, Mill bridge 09/11/2023 Olivia",52.062030999999998,-1.6221080000000001,4,5768833,594460,"30U","Stour, Shipston, Mill bridge","16:02:00","2023-11-09","Olivia","N/a",585,10.199999999999999,10,0.3,1.5,"Heavy rainfall"]
["e0d76c7c-4219-4f47-b880-25d50120bc02","2023-11-09T13:48:14.000Z","2023-11-09T13:49:17.000Z","d.orourke0453@gmail.com","Preston river bridge 09/11/2023 Derek O'Rourke",52.146470999999998,-1.6997869999999999,11,5778126,588966,"30U","Preston river bridge","13:45:00","2023-11-09","Derek O'Rourke","Below",612,10.3,5,0.25,1.75,"River level fairly high"]
["f282b36f-7b7d-42b4-adaf-4ef6802b5aa6","2023-11-11T10:53:39.019Z","2023-11-11T10:54:21.000Z","geoffsallis55@gmail.com","Abbey mill 11/11/2023 Geoff",null,null,null,null,null,null,"Abbey mill","10:05:00","2023-11-11","Geoff","Na",718,10.6,7,0.59,1]
["5df15fd3-83c2-4908-b277-166e7e4fd608","2023-11-14T22:17:25.000Z","2023-11-14T22:20:04.000Z","mjhtreearb@protonmail.com","Welford Boat Station 12/11/2023 Chris Fox",52.175240000000002,-1.7918700000000001,4,5781217,582613,"30U","Welford Boat Station","16:00:00","2023-11-12","Chris Fox","below",808,9.1999999999999993,8,0.48,0,"wet - river up, slow flow"]
["633d5253-c5a1-4044-85f0-4af7a892150d","2023-11-14T22:12:57.000Z","2023-11-14T22:20:01.000Z","mjhtreearb@protonmail.com","Hampton Lucy 12/11/2023 John Conchar",52.211680000000001,-1.6244400000000001,4,5785473,593984,"30U","Hampton Lucy","12:15:00","2023-11-12","John Conchar","NA",812,9.4,5,0.9,0]
["988ff23c-d3dd-4d09-a0cd-1c81a501deef","2023-11-14T22:10:22.000Z","2023-11-14T22:19:57.000Z","mjhtreearb@protonmail.com","Hampton Wood 12/11/2023 Martin Hicks",52.238149999999997,-1.6245799999999999,4,5788417,593919,"30U","Hampton Wood","11:30:00","2023-11-12","Martin Hicks","below",822,9,7,0.53,0]
["7812fd5e-977e-491b-87ec-7e153f110769","2023-11-12T11:18:45.467Z","2023-11-12T12:25:57.000Z","pfairburn@gmail.com","Avonbank drive 12/11/2023 Paul Fairburn",52.177214999999997,-1.7357640000000001,5,5781502,586445,"30U","Avonbank drive","11:10:00","2023-11-12","Paul Fairburn","Above",855,9.3000000000000007,5,0.61,0.75]
["41df3fbe-236b-4dd0-bb57-f5ac9963f060","2023-11-12T10:54:11.629Z","2023-11-12T12:25:56.000Z","pfairburn@gmail.com","Pitch 16 12/11/2023 Paul Fairburn",52.172566000000003,-1.745363,5,5780973,585798,"30U","Pitch 16","10:43:00","2023-11-12","Paul Fairburn","Below",816,10.199999999999999,5,0.51,0.75]
["c217b04a-ea2f-442b-ae8e-c9954c0163e6","2023-11-15T15:33:29.000Z","2023-11-15T15:33:52.000Z","trevor.acreman@gmail.com","Clifford mill bridge 13/11/2023 Trevor Acreman",52.166370000000001,-1.7083200000000001,4,5780329,588343,"30U","Clifford mill bridge","12:45:00","2023-11-13","Trevor Acreman","Dk",164,14.2,8,0.36,1.6,"Some rain night before"]
["391c9c70-8794-11ee-914d-6b49437b7337","2023-11-20T11:01:57.816Z","2023-11-20T11:04:24.000Z","a.v.l.pike@gmail.com","Stour Stretton-on-Fosse sewage 14/11/2023 Anna Pike",52.045651999999997,-1.6719360000000001,4,5766948,591077,"30U","Stour Stretton-on-Fosse sewage","09:45:00","2023-11-14","Anna Pike","Below",453,10.3,5,0.64,0.3]
["ddf41fd0-8793-11ee-914d-6b49437b7337","2023-11-20T10:59:24.877Z","2023-11-20T11:01:54.000Z","a.v.l.pike@gmail.com","Stour Stretton-on-Fosse village side 14/11/2023 Anna Pike",52.046506999999998,-1.6734880000000001,4,5767041,590969,"30U","Stour Stretton-on-Fosse village side","10:15:00","2023-11-14","Anna Pike","Above",394,10.5,5,0.2,0.2]
["b45fca82-8a42-4e47-81f5-01ba85913f4a","2023-11-14T22:19:51.000Z","2023-11-14T22:20:06.000Z","mjhtreearb@protonmail.com","Weston on Avon 14/11/2023 Martin Hicks",52.167430000000003,-1.7744800000000001,4,5780368,583816,"30U","Weston on Avon","11:30:00","2023-11-14","Martin Hicks","below",640,11.3,5,0.41,0]
["d98f4eca-1824-4f76-b0cb-8cf16d73e032","2023-11-20T17:24:32.000Z","2023-11-20T17:28:56.000Z","stellakhan01@gmail.com","Newbold Mill Stour 15/11/2023 Stella Khan",null,null,null,null,null,null,"Newbold Mill Stour","16:00:00","2023-11-15","Stella Khan","Below",667,12.1,25,0.24,2.5,"Dry. Rain on preceding days"]
["3029cea9-cca6-456a-8c63-e8189adc38e5","2023-11-16T12:16:33.000Z","2023-11-27T14:46:44.000Z","d.orourke0453@gmail.com","Preston river bridge 16/11/2023 Derek O'Rourke",52.146557999999999,-1.6991499999999999,8,5778136,589010,"30U","Preston river bridge","12:14:00","2023-11-16","Derek O'Rourke","Below",609,9.4,5,0.2,1.5,"Fast flowing and swollen after sustained rainfall"]
["30eeb99c-dc1d-4c87-868a-57690e4ef7a0","2023-11-16T10:47:02.286Z","2023-11-16T10:48:14.000Z","marymanandhar@gmail.com","Swiffen Bank 16/11/2023 Mary Manandhar",null,null,null,null,null,null,"Swiffen Bank","10:40:00","2023-11-16","Mary Manandhar","Below",584,12.2,5,0.59,1,"Floods receding"]
["08d7d7ca-19e3-4ab3-8482-e62906f2aa1c","2023-11-16T10:11:37.693Z","2023-11-16T10:14:47.000Z","kathryndeaner@me.com","Alveston Weir 16/11/2023 Kathryn Deaner",52.207715999999998,-1.6586399999999999,7,5784989,591656,"30U","Alveston Weir","09:03:00","2023-11-16","Kathryn Deaner","Below",568,16.100000000000001,5,0.51,1,"Visible copious quantities white foam"]
["dcad51ed-7e2d-4870-90b8-9baf5a6501c3","2023-11-21T18:01:44.000Z","2023-11-21T18:02:59.000Z","geoffsallis55@gmail.com","Carrant Bredon rd 18/11/2023 SteveG",null,null,null,null,null,null,"Carrant Bredon rd","12:30:00","2023-11-18","SteveG","Na",652,12.1,6,0.32,1]
["72696092-20b4-47e6-b6ed-5dc874d3f5ff","2023-11-19T13:37:51.000Z","2023-11-19T13:37:58.000Z","geoffsallis55@gmail.com","Swillgate A38 18/11/2023 Helen Carver",null,null,null,null,null,null,"Swillgate A38","17:00:00","2023-11-18","Helen Carver","Na",857,14.6,5,0.42,1]
["da0474af-e15b-43de-a655-c91d6d6cf338","2023-11-18T16:40:28.000Z","2023-11-18T16:42:11.000Z","geoffsallis55@gmail.com","Abbey mill 18/11/2023 Geoff",51.991405,-2.16309,18,5760412,557464,"30U","Abbey mill","16:05:00","2023-11-18","Geoff","Na",701,11.6,8,0.81,2]
["60f36add-ea4b-4bb6-bb93-78e6a5aaed71","2023-11-22T13:09:12.000Z","2023-11-22T13:10:30.000Z","trevor.acreman@gmail.com","Clifford Chambers mill bridge 19/11/2023 Trevor Acreman",52.166370000000001,-1.708032,4,5780329,588363,"30U","Clifford Chambers mill bridge","14:00:00","2023-11-19","Trevor Acreman","Dk",493,13.5,5,0.28000000000000003,1.3]
["8fff187f-bcf1-471c-af96-d00c00e8e1e7","2023-11-20T18:44:20.000Z","2023-11-20T18:47:42.000Z","mjhtreearb@protonmail.com","Welford Boat Station 19/11/2023 Chris Fox",52.175240000000002,-1.7918700000000001,4,5781217,582613,"30U","Welford Boat Station","15:30:00","2023-11-19","Chris Fox","below",680,11.8,12,0.31,0,"Wet, river up, fast flow"]
["c8616238-dab5-4aff-a4d7-6816734a772e","2023-11-20T18:41:49.000Z","2023-11-20T18:47:40.000Z","mjhtreearb@protonmail.com","Hampton Lucy 19/11/2023 John Conchar",52.211680000000001,-1.6244400000000001,4,5785473,593984,"30U","Hampton Lucy","12:45:00","2023-11-19","John Conchar","NA",636,12.6,7,0.44,0]
["33ad9768-6294-4062-9d15-093a44f585f0","2023-11-20T18:39:29.000Z","2023-11-20T18:47:38.000Z","mjhtreearb@protonmail.com","Hampton Wood 19/11/2023 Marrin Hicks",52.238149999999997,-1.6245799999999999,4,5788417,593919,"30U","Hampton Wood","12:15:00","2023-11-19","Marrin Hicks","below",null,12.4,6,0.44,0]
["90227f33-1e30-4e86-b50f-b6e6b071d8ce","2023-11-20T18:46:21.000Z","2023-11-20T18:47:44.000Z","mjhtreearb@protonmail.com","Weston on Avon 20/11/2023 Martin Hicks",52.167430000000003,-1.7744800000000001,4,5780368,583816,"30U","Weston on Avon","15:10:00","2023-11-20","Martin Hicks","below",688,11.5,8,0.4,0]
["1f335672-8451-4b38-a7a4-7977d44c7eda","2023-11-20T10:03:23.000Z","2023-11-20T10:44:34.000Z","a.v.l.pike@gmail.com","Stour Stretton-on-Fosse sewage 20/11/2023 Anna Pike",52.045651999999997,-1.6719360000000001,6,5766948,591077,"30U","Stour Stretton-on-Fosse sewage","09:56:00","2023-11-20","Anna Pike","Below",556,10.5,3.5,1.1200000000000001,0.3]
["6cb68667-2ffe-495f-a697-e3a017a395c0","2023-11-20T09:35:53.000Z","2023-11-20T10:44:32.000Z","a.v.l.pike@gmail.com","Stour Stretton-on-Fosse village side 20/11/2023 Anna Pike",52.046506999999998,-1.6734880000000001,6,5767041,590969,"30U","Stour Stretton-on-Fosse village side","09:34:00","2023-11-20","Anna Pike","Above",573,10.199999999999999,2,0.68,0.2]
["9008626e-9af1-477d-b981-a2102e0a8598","2023-11-24T10:43:36.000Z","2023-11-24T10:44:33.000Z","geoffsallis55@gmail.com","Swillgate A38 23/11/2023 Helen Caver",null,null,null,null,null,null,"Swillgate A38","10:00:00","2023-11-23","Helen Caver","Na",879,12.4,3,0.5,1]
["c237c586-c0cf-480a-b309-4e3ceebfaf24","2023-11-23T13:17:28.000Z","2023-11-23T13:18:25.000Z","kathryndeaner@me.com","Swiffen Bank 23/11/2023 Kathryn Deaner",52.207673,-1.6584449999999999,21,5784984,591669,"30U","Swiffen Bank","10:15:00","2023-11-23","Kathryn Deaner","Below",635,13,5,0.49,0]
["94b1240e-b71e-4971-905b-812a3b5f2dae","2023-11-23T11:39:02.000Z","2023-11-23T12:44:54.000Z","rennyw@tiscali.co.uk","Alveston Weir 23/11/2023 Renny Wodynska",52.214275999999998,-1.6601459999999999,8,5785716,591539,"30U","Alveston Weir","10:42:00","2023-11-23","Renny Wodynska","Below",653,15.6,5,0.38,0,"River is quite a bit lower this week"]
["e1abf9d7-4884-4a50-9dd9-b935563ca07f","2023-11-27T10:46:44.000Z","2023-11-29T10:37:15.000Z","geoffsallis55@gmail.com","Carrant Bredon rd 25/11/2023 Steve G",null,null,null,null,null,null,"Carrant Bredon rd","12:00:00","2023-11-25","Steve G","Na",709,8.5,5,0.35,0]
["1b805132-3573-496c-8b3c-910181a08f22","2023-11-25T15:57:42.000Z","2023-11-25T16:02:20.000Z","rdtclocker@gmail.com","Pitch 16 25/11/2023 Richard Thomas",null,null,null,null,null,null,"Pitch 16","01:55:00","2023-11-25","Richard Thomas","Below",894,9.3000000000000007,10,0.46,1]
["4f7816e0-0daa-4109-95d3-62d006ed352f","2023-11-25T12:21:17.000Z","2023-11-29T10:37:13.000Z","geoffsallis55@gmail.com","Abbey mill 25/11/2023 Geoff",51.991453,-2.1629679999999998,15,5760418,557473,"30U","Abbey mill","11:39:00","2023-11-25","Geoff","Na",773,9.6999999999999993,4,0.7,0]
["d9731765-dca0-4b5f-9350-bb7760e87df4","2023-11-30T14:54:53.000Z","2023-11-30T14:56:12.000Z","trevor.acreman@gmail.com","Clifford Chambers mill bridge 26/11/2023 Trevor Acreman",52.166370000000001,-1.708032,4,5780329,588363,"30U","Clifford Chambers mill bridge","13:00:00","2023-11-26","Trevor Acreman","Dk",704,6.2,7,0.27,0.7]
["12350ba8-6e64-4500-90a8-48a2a6f6a5b1","2023-11-29T11:09:18.000Z","2023-11-29T11:12:09.000Z","mjhtreearb@protonmail.com","Barton 26/11/2023 Paul Berry",52.161209999999997,-1.8301499999999999,4,5779613,580020,"30U","Barton","15:15:00","2023-11-26","Paul Berry","below",868,7.1,7,0.67,0]
["63d664c9-744b-48e7-a420-204e44133d89","2023-11-29T11:07:28.000Z","2023-11-29T11:12:07.000Z","mjhtreearb@protonmail.com","Welford Boat Station 26/11/2023 Chris Fox",52.175240000000002,-1.7918700000000001,4,5781217,582613,"30U","Welford Boat Station","16:30:00","2023-11-26","Chris Fox","below",876,8.3000000000000007,20,0.5,0,"river down - slow flow"]
["00c6b1c0-5fc1-4c89-b7bd-1952cf466e47","2023-11-29T11:05:00.000Z","2023-11-29T11:12:05.000Z","mjhtreearb@protonmail.com","Hampton Lucy 26/11/2023 John Conchar",52.211680000000001,-1.6244400000000001,4,5785473,593984,"30U","Hampton Lucy","01:00:00","2023-11-26","John Conchar","NA",880,7.7,5,0.54,0]
["8b1a5760-d38c-4d0b-afab-7879eaff055b","2023-11-29T11:03:01.000Z","2023-11-29T11:12:03.000Z","mjhtreearb@protonmail.com","Hampton Wood 26/11/2023 Martin Hicks",52.238149999999997,-1.6245799999999999,4,5788417,593919,"30U","Hampton Wood","12:00:00","2023-11-26","Martin Hicks","below",870,7.6,8,0.81,0]
["1356f307-582f-4c81-84b7-e9546325680f","2023-11-27T14:45:37.000Z","2023-11-27T14:46:45.000Z","d.orourke0453@gmail.com","Preston river bridge 27/11/2023 Derek O:Rourke",52.134785000000001,-1.741296,2400,5776776,586149,"30U","Preston river bridge","14:43:00","2023-11-27","Derek O:Rourke","Below",659,11.1,5,0.28999999999999998,1.5]
["8b0d7c1a-0fc7-4dc5-91c2-3bb5d83ba62d","2023-11-27T10:06:46.000Z","2023-12-04T08:49:47.000Z","a.v.l.pike@gmail.com","Stour Stretton-on-Fosse sewage 27/11/2023 Anna Pike",52.045659999999998,-1.671924,6,5766949,591078,"30U","Stour Stretton-on-Fosse sewage","10:05:00","2023-11-27","Anna Pike","Below",703,8.6,4,2.5,0.3]
["756cdf58-bc67-43cd-a211-eb3d9448cf04","2023-11-27T09:49:18.000Z","2023-12-04T08:49:45.000Z","a.v.l.pike@gmail.com","Stour Stretton-on-Fosse Village side 27/11/2023 Anna Pike",52.046472000000001,-1.673438,5,5767037,590972,"30U","Stour Stretton-on-Fosse Village side","09:48:00","2023-11-27","Anna Pike","Above",668,9.3000000000000007,2,0.93,0.2]
["ceb9be50-0616-4d1d-af4d-89c6ea72fe8e","2023-11-29T11:11:14.000Z","2023-11-29T11:12:11.000Z","mjhtreearb@protonmail.com","Weston on Avon 28/11/2023 Martin Hicks",52.167430000000003,-1.7744800000000001,4,5780368,583816,"30U","Weston on Avon","15:30:00","2023-11-28","Martin Hicks","below",900,7.4,12,0.53,0]
["0b021b97-9d43-4ef8-a3fa-d1ff192ea184","2023-11-29T17:30:57.000Z","2023-11-29T17:32:01.000Z","stellakhan01@gmail.com","Newbold Mill Stour 29/11/2023 Stella Khan",52.112850999999999,-1.633435,10,5774470,593577,"30U","Newbold Mill Stour","16:00:00","2023-11-29","Stella Khan","Below",667,12,5,0.2,2.5,"Dry sunny cold"]

{"sheet":"1 Sep - 30 Nov","index":1,"n_rows":145,"n_cols":18,"rows_kept":145,"cut":false,"hidden":false,"merged":[]}
["Entry ID","Time","Date","Volunteer","Site Number","Site Name","Location Name","Latitude","Longitude","Above or Below CSO","Electrical Conductivity (Micros)","Water Temp (deg C)","Nitrates (PPM)","Nitrate Pollution Category","Phosphates (PPM)","Phosphate Pollution Category","River Height","Comments"]
[2,"14:30:00","2023-09-02","Steve G",{"$f":"_xlfn.XLOOKUP(MasterLog[[#This Row],[Entry ID]],Fuzzy[Entry ID], Fuzzy[Test Site Number])","v":1},{"$f":"_xlfn.XLOOKUP(MasterLog[[#This Row],[Site Number]],Test_sites[Test Site Number], Test_sites[Location Name])","v":"Carrant Bredon rd"},"Carrant Bredon rd",null,null,"Na",641,17.3,6,{"$f":"IF(MasterLog[[#This Row],[Nitrates (PPM)]]>2, \"Very high\", IF(MasterLog[[#This Row],[Nitrates (PPM)]]>1, \"High\", IF(MasterLog[[#This Row],[Nitrates (PPM)]]>0.5, \"Some evidence\", IF(MasterLog[[#This Row],[Nitrates (PPM)]]=0, \"\"))))","v":"Very high"},0.11,{"$f":"IF(MasterLog[[#This Row],[Phosphates (PPM)]]>0.5, \"Very high\", IF(MasterLog[[#This Row],[Phosphates (PPM)]]>0.1, \"High\", IF(MasterLog[[#This Row],[Phosphates (PPM)]]>0.05, \"Some evidence\", IF(MasterLog[[#This Row],[Phosphates (PPM)]]=0, \"\"))))","v":"High"},0]
[3,"15:00:00","2023-09-02","Geoff",{"$f":"_xlfn.XLOOKUP(MasterLog[[#This Row],[Entry ID]],Fuzzy[Entry ID], Fuzzy[Test Site Number])","v":13},{"$f":"_xlfn.XLOOKUP(MasterLog[[#This Row],[Site Number]],Test_sites[Test Site Number], Test_sites[Location Name])","v":"Abbey mill"},"Abbey Mill",null,null,"Na",1020,19.5,10,{"$f":"IF(MasterLog[[#This Row],[Nitrates (PPM)]]>2, \"Very high\", IF(MasterLog[[#This Row],[Nitrates (PPM)]]>1, \"High\", IF(MasterLog[[#This Row],[Nitrates (PPM)]]>0.5, \"Some evidence\", IF(MasterLog[[#This Row],[Nitrates (PPM)]]=0, \"\"))))","v":"Very high"},1.08,{"$f":"IF(MasterLog[[#This Row],[Phosphates (PPM)]]>0.5, \"Very high\", IF(MasterLog[[#This Row],[Phosphates (PPM)]]>0.1, \"High\", IF(MasterLog[[#This Row],[Phosphates (PPM)]]>0.05, \"Some evidence\", IF(MasterLog[[#This Row],[Phosphates (PPM)]]=0, \"\"))))","v":"Very high"},0]
[4,"18:00:00","2023-09-03","Chris Fox",{"$f":"_xlfn.XLOOKUP(MasterLog[[#This Row],[Entry ID]],Fuzzy[Entry ID], Fuzzy[Test Site Number])","v":10},{"$f":"_xlfn.XLOOKUP(MasterLog[[#This Row],[Site Number]],Test_sites[Test Site Number], Test_sites[Location Name])","v":"Welford Boat Station"},"Welford Boat Station",52.175240000000002,-1.7918700000000001,"Below",992,20.100000000000001,4.5,{"$f":"IF(MasterLog[[#This Row],[Nitrates (PPM)]]>2, \"Very high\", IF(MasterLog[[#This Row],[Nitrates (PPM)]]>1, \"High\", IF(MasterLog[[#This Row],[Nitrates (PPM)]]>0.5, \"Some evidence\", IF(MasterLog[[#This Row],[Nitrates (PPM)]]=0, \"\"))))","v":"Very high"},0.54,{"$f":"IF(MasterLog[[#This Row],[Phosphates (PPM)]]>0.5, \"Very high\", IF(MasterLog[[#This Row],[Phosphates (PPM)]]>0.1, \"High\", IF(MasterLog[[#This Row],[Phosphates (PPM)]]>0.05, \"Some evidence\", IF(MasterLog[[#This Row],[Phosphates (PPM)]]=0, \"\"))))","v":"Very high"},0,"Calm - sunny - warm"]
[5,"12:45:00","2023-09-03","Martin Hicks",{"$f":"_xlfn.XLOOKUP(MasterLog[[#This Row],[Entry ID]],Fuzzy[Entry ID], Fuzzy[Test Site Number])","v":2},{"$f":"_xlfn.XLOOKUP(MasterLog[[#This Row],[Site Number]],Test_sites[Test Site Number], Test_sites[Location Name])","v":"Hampton Lucy Allotments"},"Hampton Lucy",52.211680000000001,-1.6244400000000001,"NA",834,21.1,6,{"$f":"IF(MasterLog[[#This Row],[Nitrates (PPM)]]>2, \"Very high\", IF(MasterLog[[#This Row],[Nitrates (PPM)]]>1, \"High\", IF(MasterLog[[#This Row],[Nitrates (PPM)]]>0.5, \"Some evidence\", IF(MasterLog[[#This Row],[Nitrates (PPM)]]=0, \"\"))))","v":"Very high"},0.53,{"$f":"IF(MasterLog[[#This Row],[Phosphates (PPM)]]>0.5, \"Very high\", IF(MasterLog[[#This Row],[Phosphates (PPM)]]>0.1, \"High\", IF(MasterLog[[#This Row],[Phosphates (PPM)]]>0.05, \"Some evidence\", IF(MasterLog[[#This Row],[Phosphates (PPM)]]=0, \"\"))))","v":"Very high"},0]
[6,"11:50:00","2023-09-03","Martin Hicks",{"$f":"_xlfn.XLOOKUP(MasterLog[[#This Row],[Entry ID]],Fuzzy[Entry ID], Fuzzy[Test Site Number])","v":3},{"$f":"_xlfn.XLOOKUP(MasterLog[[#This Row],[Site Number]],Test_sites[Test Site Number], Test_sites[Location Name])","v":"Hampton Wood Nature Reserve"},"Hampton Wood",52.238149999999997,-1.6245799999999999,"Below",890,21.2,5,{"$f":"IF(MasterLog[[#This Row],[Nitrates (PPM)]]>2, \"Very high\", IF(MasterLog[[#This Row],[Nitrates (PPM)]]>1, \"High\", IF(MasterLog[[#This Row],[Nitrates (PPM)]]>0.5, \"Some evidence\", IF(MasterLog[[#This Row],[Nitrates (PPM)]]=0, \"\"))))","v":"Very high"},0.52,{"$f":"IF(MasterLog[[#This Row],[Phosphates (PPM)]]>0.5, \"Very high\", IF(MasterLog[[#This Row],[Phosphates (PPM)]]>0.1, \"High\", IF(MasterLog[[#This Row],[Phosphates (PPM)]]>0.05, \"Some evidence\", IF(MasterLog[[#This Row],[Phosphates (PPM)]]=0, \"\"))))","v":"Very high"},0]
[7,"17:05:00","2023-09-04","Martin Hicks",{"$f":"_xlfn.XLOOKUP(MasterLog[[#This Row],[Entry ID]],Fuzzy[Entry ID], Fuzzy[Test Site Number])","v":9},{"$f":"_xlfn.XLOOKUP(MasterLog[[#This Row],[Site Number]],Test_sites[Test Site Number], Test_sites[Location Name])","v":"Weston on Avon"},"Weston on Avon",52.167430000000003,-1.7744800000000001,"Below",976,21.6,4,{"$f":"IF(MasterLog[[#This Row],[Nitrates (PPM)]]>2, \"Very high\", IF(MasterLog[[#This Row],[Nitrates (PPM)]]>1, \"High\", IF(MasterLog[[#This Row],[Nitrates (PPM)]]>0.5, \"Some evidence\", IF(MasterLog[[#This Row],[Nitrates (PPM)]]=0, \"\"))))","v":"Very high"},0.7,{"$f":"IF(MasterLog[[#This Row],[Phosphates (PPM)]]>0.5, \"Very high\", IF(MasterLog[[#This Row],[Phosphates (PPM)]]>0.1, \"High\", IF(MasterLog[[#This Row],[Phosphates (PPM)]]>0.05, \"Some evidence\", IF(MasterLog[[#This Row],[Phosphates (PPM)]]=0, \"\"))))","v":"Very high"},0]
[8,"15:46:00","2023-09-06","Stella Khan",{"$f":"_xlfn.XLOOKUP(MasterLog[[#This Row],[Entry ID]],Fuzzy[Entry ID], Fuzzy[Test Site Number])","v":4},{"$f":"_xlfn.XLOOKUP(MasterLog[[#This Row],[Site Number]],Test_sites[Test Site Number], Test_sites[Location Name])","v":"Newbold Mill Stour"},"Newbold Mill Stour",52.113444999999999,-1.6333759999999999,"Below",694,19.7,null,{"$f":"IF(MasterLog[[#This Row],[Nitrates (PPM)]]>2, \"Very high\", IF(MasterLog[[#This Row],[Nitrates (PPM)]]>1, \"High\", IF(MasterLog[[#This Row],[Nitrates (PPM)]]>0.5, \"Some evidence\", IF(MasterLog[[#This Row],[Nitrates (PPM)]]=0, \"\"))))","v":""},0.56999999999999995,{"$f":"IF(MasterLog[[#This Row],[Phosphates (PPM)]]>0.5, \"Very high\", IF(MasterLog[[#This Row],[Phosphates (PPM)]]>0.1, \"High\", IF(MasterLog[[#This Row],[Phosphates (PPM)]]>0.05, \"Some evidence\", IF(MasterLog[[#This Row],[Phosphates (PPM)]]=0, \"\"))))","v":"Very high"},2,"Hot dry day 30C"]
[9,"11:10:00","2023-09-07","Helen Carver",{"$f":"_xlfn.XLOOKUP(MasterLog[[#This Row],[Entry ID]],Fuzzy[Entry ID], Fuzzy[Test Site Number])","v":14},{"$f":"_xlfn.XLOOKUP(MasterLog[[#This Row],[Site Number]],Test_sites[Test Site Number], Test_sites[Location Name])","v":"Swillgate A38"},"Swillgate A38",null,null,"Na",111,20.2,8,{"$f":"IF(MasterLog[[#This Row],[Nitrates (PPM)]]>2, \"Very high\", IF(MasterLog[[#This Row],[Nitrates (PPM)]]>1, \"High\", IF(MasterLog[[#This Row],[Nitrates (PPM)]]>0.5, \"Some evidence\", IF(MasterLog[[#This Row],[Nitrates (PPM)]]=0, \"\"))))","v":"Very high"},0,{"$f":"IF(MasterLog[[#This Row],[Phosphates (PPM)]]>0.5, \"Very high\", IF(MasterLog[[#This Row],[Phosphates (PPM)]]>0.1, \"High\", IF(MasterLog[[#This Row],[Phosphates (PPM)]]>0.05, \"Some evidence\", IF(MasterLog[[#This Row],[Phosphates (PPM)]]=0, \"\"))))","v":""},0,"No phosphate test"]
[10,"13:17:00","2023-09-07","Derek O'Rourke",{"$f":"_xlfn.XLOOKUP(MasterLog[[#This Row],[Entry ID]],Fuzzy[Entry ID], Fuzzy[Test Site Number])","v":6},{"$f":"_xlfn.XLOOKUP(MasterLog[[#This Row],[Site Number]],Test_sites[Test Site Number], Test_sites[Location Name])","v":"Preston- on- stour river bridge"},"Preston- on- stour river bridge",52.146562000000003,-1.6991529999999999,"Below",712,21.4,5,{"$f":"IF(MasterLog[[#This Row],[Nitrates (PPM)]]>2, \"Very high\", IF(MasterLog[[#This Row],[Nitrates (PPM)]]>1, \"High\", IF(MasterLog[[#This Row],[Nitrates (PPM)]]>0.5, \"Some evidence\", IF(MasterLog[[#This Row],[Nitrates (PPM)]]=0, \"\"))))","v":"Very high"},0.6,{"$f":"IF(MasterLog[[#This Row],[Phosphates (PPM)]]>0.5, \"Very high\", IF(MasterLog[[#This Row],[Phosphates (PPM)]]>0.1, \"High\", IF(MasterLog[[#This Row],[Phosphates (PPM)]]>0.05, \"Some evidence\", IF(MasterLog[[#This Row],[Phosphates (PPM)]]=0, \"\"))))","v":"Very high"},4,"Outside temp 28c.mid river readings.still water."]
[11,"11:15:00","2023-09-09","Richard Thomas",{"$f":"_xlfn.XLOOKUP(MasterLog[[#This Row],[Entry ID]],Fuzzy[Entry ID], Fuzzy[Test Site Number])","v":7},{"$f":"_xlfn.XLOOKUP(MasterLog[[#This Row],[Site Number]],Test_sites[Test Site Number], Test_sites[Location Name])","v":"Avonbank Drive"},"Avonbank",null,null,"Above",1030,22.7,15,{"$f":"IF(MasterLog[[#This Row],[Nitrates (PPM)]]>2, \"Very high\", IF(MasterLog[[#This Row],[Nitrates (PPM)]]>1, \"High\", IF(MasterLog[[#This Row],[Nitrates (PPM)]]>0.5, \"Some evidence\", IF(MasterLog[[#This Row],[Nitrates (PPM)]]=0, \"\"))))","v":"Very high"},0.67,{"$f":"IF(MasterLog[[#This Row],[Phosphates (PPM)]]>0.5, \"Very high\", IF(MasterLog[[#This Row],[Phosphates (PPM)]]>0.1, \"High\", IF(MasterLog[[#This Row],[Phosphates (PPM)]]>0.05, \"Some evidence\", IF(MasterLog[[#This Row],[Phosphates (PPM)]]=0, \"\"))))","v":"Very high"},1]
[12,"11:40:00","2023-09-09","Richard Thomas",{"$f":"_xlfn.XLOOKUP(MasterLog[[#This Row],[Entry ID]],Fuzzy[Entry ID], Fuzzy[Test Site Number])","v":8},{"$f":"_xlfn.XLOOKUP(MasterLog[[#This Row],[Site Number]],Test_sites[Test Site Number], Test_sites[Location Name])","v":"Pitch 16"},"Pitch16",null,null,"Below",1010,24.4,15,{"$f":"IF(MasterLog[[#This Row],[Nitrates (PPM)]]>2, \"Very high\", IF(MasterLog[[#This Row],[Nitrates (PPM)]]>1, \"High\", IF(MasterLog[[#This Row],[Nitrates (PPM)]]>0.5, \"Some evidence\", IF(MasterLog[[#This Row],[Nitrates (PPM)]]=0, \"\"))))","v":"Very high"},0.69,{"$f":"IF(MasterLog[[#This Row],[Phosphates (PPM)]]>0.5, \"Very high\", IF(MasterLog[[#This Row],[Phosphates (PPM)]]>0.1, \"High\", IF(MasterLog[[#This Row],[Phosphates (PPM)]]>0.05, \"Some evidence\", IF(MasterLog[[#This Row],[Phosphates (PPM)]]=0, \"\"))))","v":"Very high"},1]
[13,"14:00:00","2023-09-09","Steve G",{"$f":"_xlfn.XLOOKUP(MasterLog[[#This Row],[Entry ID]],Fuzzy[Entry ID], Fuzzy[Test Site Number])","v":1},{"$f":"_xlfn.XLOOKUP(MasterLog[[#This Row],[Site Number]],Test_sites[Test Site Number], Test_sites[Location Name])","v":"Carrant Bredon rd"},"Carrant Bredon rd",null,null,"Na",684,21.3,8,{"$f":"IF(MasterLog[[#This Row],[Nitrates (PPM)]]>2, \"Very high\", IF(MasterLog[[#This Row],[Nitrates (PPM)]]>1, \"High\", IF(MasterLog[[#This Row],[Nitrates (PPM)]]>0.5, \"Some evidence\", IF(MasterLog[[#This Row],[Nitrates (PPM)]]=0, \"\"))))","v":"Very high"},0.6,{"$f":"IF(MasterLog[[#This Row],[Phosphates (PPM)]]>0.5, \"Very high\", IF(MasterLog[[#This Row],[Phosphates (PPM)]]>0.1, \"High\", IF(MasterLog[[#This Row],[Phosphates (PPM)]]>0.05, \"Some evidence\", IF(MasterLog[[#This Row],[Phosphates (PPM)]]=0, \"\"))))","v":"Very high"},0]
[14,"12:30:00","2023-09-10","Martin Hicks",{"$f":"_xlfn.XLOOKUP(MasterLog[[#This Row],[Entry ID]],Fuzzy[Entry ID], Fuzzy[Test Site Number])","v":2},{"$f":"_xlfn.XLOOKUP(MasterLog[[#This Row],[Site Number]],Test_sites[Test Site Number], Test_sites[Location Name])","v":"Hampton Lucy Allotments"},"Hampton Lucy",52.211680000000001,-1.6244400000000001,"NA",964,21.6,7,{"$f":"IF(MasterLog[[#This Row],[Nitrates (PPM)]]>2, \"Very high\", IF(MasterLog[[#This Row],[Nitrates (PPM)]]>1, \"High\", IF(MasterLog[[#This Row],[Nitrates (PPM)]]>0.5, \"Some evidence\", IF(MasterLog[[#This Row],[Nitrates (PPM)]]=0, \"\"))))","v":"Very high"},0.69,{"$f":"IF(MasterLog[[#This Row],[Phosphates (PPM)]]>0.5, \"Very high\", IF(MasterLog[[#This Row],[Phosphates (PPM)]]>0.1, \"High\", IF(MasterLog[[#This Row],[Phosphates (PPM)]]>0.05, \"Some evidence\", IF(MasterLog[[#This Row],[Phosphates (PPM)]]=0, \"\"))))","v":"Very high"},0]
[15,"11:40:00","2023-09-10","Martin Hicks",{"$f":"_xlfn.XLOOKUP(MasterLog[[#This Row],[Entry ID]],Fuzzy[Entry ID], Fuzzy[Test Site Number])","v":3},{"$f":"_xlfn.XLOOKUP(MasterLog[[#This Row],[Site Number]],Test_sites[Test Site Number], Test_sites[Location Name])","v":"Hampton Wood Nature Reserve"},"Hampton Wood",52.238149999999997,-1.6245799999999999,"Below",984,22.3,6,{"$f":"IF(MasterLog[[#This Row],[Nitrates (PPM)]]>2, \"Very high\", IF(MasterLog[[#This Row],[Nitrates (PPM)]]>1, \"High\", IF(MasterLog[[#This Row],[Nitrates (PPM)]]>0.5, \"Some evidence\", IF(MasterLog[[#This Row],[Nitrates (PPM)]]=0, \"\"))))","v":"Very high"},0.5,{"$f":"IF(MasterLog[[#This Row],[Phosphates (PPM)]]>0.5, \"Very high\", IF(MasterLog[[#This Row],[Phosphates (PPM)]]>0.1, \"High\", IF(MasterLog[[#This Row],[Phosphates (PPM)]]>0.05, \"Some evidence\", IF(MasterLog[[#This Row],[Phosphates (PPM)]]=0, \"\"))))","v":"High"},0]
[16,"18:07:00","2023-09-10","Geoff",{"$f":"_xlfn.XLOOKUP(MasterLog[[#This Row],[Entry ID]],Fuzzy[Entry ID], Fuzzy[Test Site Number])","v":13},{"$f":"_xlfn.XLOOKUP(MasterLog[[#This Row],[Site Number]],Test_sites[Test Site Number], Test_sites[Location Name])","v":"Abbey mill"},"Abbey Mill",51.99145,-2.1628319999999999,"Na",1020,23.3,10,{"$f":"IF(MasterLog[[#This Row],[Nitrates (PPM)]]>2, \"Very high\", IF(MasterLog[[#This Row],[Nitrates (PPM)]]>1, \"High\", IF(MasterLog[[#This Row],[Nitrates (PPM)]]>0.5, \"Some evidence\", IF(MasterLog[[#This Row],[Nitrates (PPM)]]=0, \"\"))))","v":"Very high"},0.97,{"$f":"IF(MasterLog[[#This Row],[Phosphates (PPM)]]>0.5, \"Very high\", IF(MasterLog[[#This Row],[Phosphates (PPM)]]>0.1, \"High\", IF(MasterLog[[#This Row],[Phosphates (PPM)]]>0.05, \"Some evidence\", IF(MasterLog[[#This Row],[Phosphates (PPM)]]=0, \"\"))))","v":"Very high"},0]
[17,"18:50:00","2023-09-11","Geoff",{"$f":"_xlfn.XLOOKUP(MasterLog[[#This Row],[Entry ID]],Fuzzy[Entry ID], Fuzzy[Test Site Number])","v":17},{"$f":"_xlfn.XLOOKUP(MasterLog[[#This Row],[Site Number]],Test_sites[Test Site Number], Test_sites[Location Name])","v":"Shipston-on-Stour"},"Stour Shipston bridge",52.062027,-1.6216390000000001,"Na",678,20.100000000000001,4,{"$f":"IF(MasterLog[[#This Row],[Nitrates (PPM)]]>2, \"Very high\", IF(MasterLog[[#This Row],[Nitrates (PPM)]]>1, \"High\", IF(MasterLog[[#This Row],[Nitrates (PPM)]]>0.5, \"Some evidence\", IF(MasterLog[[#This Row],[Nitrates (PPM)]]=0, \"\"))))","v":"Very high"},0.69,{"$f":"IF(MasterLog[[#This Row],[Phosphates (PPM)]]>0.5, \"Very high\", IF(MasterLog[[#This Row],[Phosphates (PPM)]]>0.1, \"High\", IF(MasterLog[[#This Row],[Phosphates (PPM)]]>0.05, \"Some evidence\", IF(MasterLog[[#This Row],[Phosphates (PPM)]]=0, \"\"))))","v":"Very high"},0]
[18,"16:12:00","2023-09-13","Olivia Hatch",{"$f":"_xlfn.XLOOKUP(MasterLog[[#This Row],[Entry ID]],Fuzzy[Entry ID], Fuzzy[Test Site Number])","v":4},{"$f":"_xlfn.XLOOKUP(MasterLog[[#This Row],[Site Number]],Test_sites[Test Site Number], Test_sites[Location Name])","v":"Newbold Mill Stour"},"Stour, Mill House, Newbold",52.113387000000003,-1.6333120000000001,"1m below",729,17.7,25,{"$f":"IF(MasterLog[[#This Row],[Nitrates (PPM)]]>2, \"Very high\", IF(MasterLog[[#This Row],[Nitrates (PPM)]]>1, \"High\", IF(MasterLog[[#This Row],[Nitrates (PPM)]]>0.5, \"Some evidence\", IF(MasterLog[[#This Row],[Nitrates (PPM)]]=0, \"\"))))","v":"Very high"},0.78,{"$f":"IF(MasterLog[[#This Row],[Phosphates (PPM)]]>0.5, \"Very high\", IF(MasterLog[[#This Row],[Phosphates (PPM)]]>0.1, \"High\", IF(MasterLog[[#This Row],[Phosphates (PPM)]]>0.05, \"Some evidence\", IF(MasterLog[[#This Row],[Phosphates (PPM)]]=0, \"\"))))","v":"Very high"},2.1,"Heavy rain day before"]
[19,"16:00:00","2023-09-14","Chris Fox",{"$f":"_xlfn.XLOOKUP(MasterLog[[#This Row],[Entry ID]],Fuzzy[Entry ID], Fuzzy[Test Site Number])","v":10},{"$f":"_xlfn.XLOOKUP(MasterLog[[#This Row],[Site Number]],Test_sites[Test Site Number], Test_sites[Location Name])","v":"Welford Boat Station"},"Welford Boat Station",52.175240000000002,-1.7918700000000001,"Below",1026,18.8,5,{"$f":"IF(MasterLog[[#This Row],[Nitrates (PPM)]]>2, \"Very high\", IF(MasterLog[[#This Row],[Nitrates (PPM)]]>1, \"High\", IF(MasterLog[[#This Row],[Nitrates (PPM)]]>0.5, \"Some evidence\", IF(MasterLog[[#This Row],[Nitrates (PPM)]]=0, \"\"))))","v":"Very high"},0.56999999999999995,{"$f":"IF(MasterLog[[#This Row],[Phosphates (PPM)]]>0.5, \"Very high\", IF(MasterLog[[#This Row],[Phosphates (PPM)]]>0.1, \"High\", IF(MasterLog[[#This Row],[Phosphates (PPM)]]>0.05, \"Some evidence\", IF(MasterLog[[#This Row],[Phosphates (PPM)]]=0, \"\"))))","v":"Very high"},0,"Overcast, occasional light rain"]
[20,"12:00:00","2023-09-14","Derek O'Rourke",{"$f":"_xlfn.XLOOKUP(MasterLog[[#This Row],[Entry ID]],Fuzzy[Entry ID], Fuzzy[Test Site Number])","v":6},{"$f":"_xlfn.XLOOKUP(MasterLog[[#This Row],[Site Number]],Test_sites[Test Site Number], Test_sites[Location Name])","v":"Preston- on- stour river bridge"},"Preston river bridge",52.146673999999997,-1.6993199999999999,"Below",717,17.7,5,{"$f":"IF(MasterLog[[#This Row],[Nitrates (PPM)]]>2, \"Very high\", IF(MasterLog[[#This Row],[Nitrates (PPM)]]>1, \"High\", IF(MasterLog[[#This Row],[Nitrates (PPM)]]>0.5, \"Some evidence\", IF(MasterLog[[#This Row],[Nitrates (PPM)]]=0, \"\"))))","v":"Very high"},0.6,{"$f":"IF(MasterLog[[#This Row],[Phosphates (PPM)]]>0.5, \"Very high\", IF(MasterLog[[#This Row],[Phosphates (PPM)]]>0.1, \"High\", IF(MasterLog[[#This Row],[Phosphates (PPM)]]>0.05, \"Some evidence\", IF(MasterLog[[#This Row],[Phosphates (PPM)]]=0, \"\"))))","v":"Very high"},5,"Significant rainfall on 12 sept."]
[21,"11:13:00","2023-09-14","Olivia Hatch",{"$f":"_xlfn.XLOOKUP(MasterLog[[#This Row],[Entry ID]],Fuzzy[Entry ID], Fuzzy[Test Site Number])","v":17},{"$f":"_xlfn.XLOOKUP(MasterLog[[#This Row],[Site Number]],Test_sites[Test Site Number], Test_sites[Location Name])","v":"Shipston-on-Stour"},"Stour Bridge Shipston",52.062075999999998,-1.621772,"Below 15m",656,16.3,10,{"$f":"IF(MasterLog[[#This Row],[Nitrates (PPM)]]>2, \"Very high\", IF(MasterLog[[#This Row],[Nitrates (PPM)]]>1, \"High\", IF(MasterLog[[#This Row],[Nitrates (PPM)]]>0.5, \"Some evidence\", IF(MasterLog[[#This Row],[Nitrates (PPM)]]=0, \"\"))))","v":"Very high"},0.55000000000000004,{"$f":"IF(MasterLog[[#This Row],[Phosphates (PPM)]]>0.5, \"Very high\", IF(MasterLog[[#This Row],[Phosphates (PPM)]]>0.1, \"High\", IF(MasterLog[[#This Row],[Phosphates (PPM)]]>0.05, \"Some evidence\", IF(MasterLog[[#This Row],[Phosphates (PPM)]]=0, \"\"))))","v":"Very high"},0.5]
[22,"15:12:00","2023-09-16","Geoff",{"$f":"_xlfn.XLOOKUP(MasterLog[[#This Row],[Entry ID]],Fuzzy[Entry ID], Fuzzy[Test Site Number])","v":13},{"$f":"_xlfn.XLOOKUP(MasterLog[[#This Row],[Site Number]],Test_sites[Test Site Number], Test_sites[Location Name])","v":"Abbey mill"},"Abbey mill",51.991416000000001,-2.1629619999999998,"Na",null,20,5,{"$f":"IF(MasterLog[[#This Row],[Nitrates (PPM)]]>2, \"Very high\", IF(MasterLog[[#This Row],[Nitrates (PPM)]]>1, \"High\", IF(MasterLog[[#This Row],[Nitrates (PPM)]]>0.5, \"Some evidence\", IF(MasterLog[[#This Row],[Nitrates (PPM)]]=0, \"\"))))","v":"Very high"},1.1000000000000001,{"$f":"IF(MasterLog[[#This Row],[Phosphates (PPM)]]>0.5, \"Very high\", IF(MasterLog[[#This Row],[Phosphates (PPM)]]>0.1, \"High\", IF(MasterLog[[#This Row],[Phosphates (PPM)]]>0.05, \"Some evidence\", IF(MasterLog[[#This Row],[Phosphates (PPM)]]=0, \"\"))))","v":"Very high"},0]
[23,"11:05:00","2023-09-16","Richard Thomas",{"$f":"_xlfn.XLOOKUP(MasterLog[[#This Row],[Entry ID]],Fuzzy[Entry ID], Fuzzy[Test Site Number])","v":7},{"$f":"_xlfn.XLOOKUP(MasterLog[[#This Row],[Site Number]],Test_sites[Test Site Number], Test_sites[Location Name])","v":"Avonbank Drive"},"Avonbank",null,null,"Above",921,18.2,15,{"$f":"IF(MasterLog[[#This Row],[Nitrates (PPM)]]>2, \"Very high\", IF(MasterLog[[#This Row],[Nitrates (PPM)]]>1, \"High\", IF(MasterLog[[#This Row],[Nitrates (PPM)]]>0.5, \"Some evidence\", IF(MasterLog[[#This Row],[Nitrates (PPM)]]=0, \"\"))))","v":"Very high"},0.56000000000000005,{"$f":"IF(MasterLog[[#This Row],[Phosphates (PPM)]]>0.5, \"Very high\", IF(MasterLog[[#This Row],[Phosphates (PPM)]]>0.1, \"High\", IF(MasterLog[[#This Row],[Phosphates (PPM)]]>0.05, \"Some evidence\", IF(MasterLog[[#This Row],[Phosphates (PPM)]]=0, \"\"))))","v":"Very high"},1]
[24,"10:45:00","2023-09-16","Richard Thomas",{"$f":"_xlfn.XLOOKUP(MasterLog[[#This Row],[Entry ID]],Fuzzy[Entry ID], Fuzzy[Test Site Number])","v":8},{"$f":"_xlfn.XLOOKUP(MasterLog[[#This Row],[Site Number]],Test_sites[Test Site Number], Test_sites[Location Name])","v":"Pitch 16"},"Pitch16",null,null,"Below",966,18.600000000000001,15,{"$f":"IF(MasterLog[[#This Row],[Nitrates (PPM)]]>2, \"Very high\", IF(MasterLog[[#This Row],[Nitrates (PPM)]]>1, \"High\", IF(MasterLog[[#This Row],[Nitrates (PPM)]]>0.5, \"Some evidence\", IF(MasterLog[[#This Row],[Nitrates (PPM)]]=0, \"\"))))","v":"Very high"},0.73,{"$f":"IF(MasterLog[[#This Row],[Phosphates (PPM)]]>0.5, \"Very high\", IF(MasterLog[[#This Row],[Phosphates (PPM)]]>0.1, \"High\", IF(MasterLog[[#This Row],[Phosphates (PPM)]]>0.05, \"Some evidence\", IF(MasterLog[[#This Row],[Phosphates (PPM)]]=0, \"\"))))","v":"Very high"},1]
[25,"09:55:00","2023-09-16","Mike Sztymiak",{"$f":"_xlfn.XLOOKUP(MasterLog[[#This Row],[Entry ID]],Fuzzy[Entry ID], Fuzzy[Test Site Number])","v":12},{"$f":"_xlfn.XLOOKUP(MasterLog[[#This Row],[Site Number]],Test_sites[Test Site Number], Test_sites[Location Name])","v":"Twyning fleet"},"Twyning Fleet",52.027113,-2.1406619999999998,"Below",1010,19.8,10,{"$f":"IF(MasterLog[[#This Row],[Nitrates (PPM)]]>2, \"Very high\", IF(MasterLog[[#This Row],[Nitrates (PPM)]]>1, \"High\", IF(MasterLog[[#This Row],[Nitrates (PPM)]]>0.5, \"Some evidence\", IF(MasterLog[[#This Row],[Nitrates (PPM)]]=0, \"\"))))","v":"Very high"},1.25,{"$f":"IF(MasterLog[[#This Row],[Phosphates (PPM)]]>0.5, \"Very high\", IF(MasterLog[[#This Row],[Phosphates (PPM)]]>0.1, \"High\", IF(MasterLog[[#This Row],[Phosphates (PPM)]]>0.05, \"Some evidence\", IF(MasterLog[[#This Row],[Phosphates (PPM)]]=0, \"\"))))","v":"Very high"},0,"Dry day"]
[26,"17:00:00","2023-09-17","Chris Fox",{"$f":"_xlfn.XLOOKUP(MasterLog[[#This Row],[Entry ID]],Fuzzy[Entry ID], Fuzzy[Test Site Number])","v":10},{"$f":"_xlfn.XLOOKUP(MasterLog[[#This Row],[Site Number]],Test_sites[Test Site Number], Test_sites[Location Name])","v":"Welford Boat Station"},"Welford Boat Station",52.175240000000002,-1.7918700000000001,"Below",836,18.2,4,{"$f":"IF(MasterLog[[#This Row],[Nitrates (PPM)]]>2, \"Very high\", IF(MasterLog[[#This Row],[Nitrates (PPM)]]>1, \"High\", IF(MasterLog[[#This Row],[Nitrates (PPM)]]>0.5, \"Some evidence\", IF(MasterLog[[#This Row],[Nitrates (PPM)]]=0, \"\"))))","v":"Very high"},0.65,{"$f":"IF(MasterLog[[#This Row],[Phosphates (PPM)]]>0.5, \"Very high\", IF(MasterLog[[#This Row],[Phosphates (PPM)]]>0.1, \"High\", IF(MasterLog[[#This Row],[Phosphates (PPM)]]>0.05, \"Some evidence\", IF(MasterLog[[#This Row],[Phosphates (PPM)]]=0, \"\"))))","v":"Very high"},0,"Light rain"]
[27,"12:40:00","2023-09-17","Martin Hicks",{"$f":"_xlfn.XLOOKUP(MasterLog[[#This Row],[Entry ID]],Fuzzy[Entry ID], Fuzzy[Test Site Number])","v":2},{"$f":"_xlfn.XLOOKUP(MasterLog[[#This Row],[Site Number]],Test_sites[Test Site Number], Test_sites[Location Name])","v":"Hampton Lucy Allotments"},"Hampton Lucy",52.211680000000001,-1.6244400000000001,"NA",854,18.600000000000001,4,{"$f":"IF(MasterLog[[#This Row],[Nitrates (PPM)]]>2, \"Very high\", IF(MasterLog[[#This Row],[Nitrates (PPM)]]>1, \"High\", IF(MasterLog[[#This Row],[Nitrates (PPM)]]>0.5, \"Some evidence\", IF(MasterLog[[#This Row],[Nitrates (PPM)]]=0, \"\"))))","v":"Very high"},0.61,{"$f":"IF(MasterLog[[#This Row],[Phosphates (PPM)]]>0.5, \"Very high\", IF(MasterLog[[#This Row],[Phosphates (PPM)]]>0.1, \"High\", IF(MasterLog[[#This Row],[Phosphates (PPM)]]>0.05, \"Some evidence\", IF(MasterLog[[#This Row],[Phosphates (PPM)]]=0, \"\"))))","v":"Very high"},0]
[28,"12:00:00","2023-09-17","Martin Hicks",{"$f":"_xlfn.XLOOKUP(MasterLog[[#This Row],[Entry ID]],Fuzzy[Entry ID], Fuzzy[Test Site Number])","v":3},{"$f":"_xlfn.XLOOKUP(MasterLog[[#This Row],[Site Number]],Test_sites[Test Site Number], Test_sites[Location Name])","v":"Hampton Wood Nature Reserve"},"Hampton Wood",52.238149999999997,-1.6245799999999999,"Below",912,18.8,6,{"$f":"IF(MasterLog[[#This Row],[Nitrates (PPM)]]>2, \"Very high\", IF(MasterLog[[#This Row],[Nitrates (PPM)]]>1, \"High\", IF(MasterLog[[#This Row],[Nitrates (PPM)]]>0.5, \"Some evidence\", IF(MasterLog[[#This Row],[Nitrates (PPM)]]=0, \"\"))))","v":"Very high"},0.62,{"$f":"IF(MasterLog[[#This Row],[Phosphates (PPM)]]>0.5, \"Very high\", IF(MasterLog[[#This Row],[Phosphates (PPM)]]>0.1, \"High\", IF(MasterLog[[#This Row],[Phosphates (PPM)]]>0.05, \"Some evidence\", IF(MasterLog[[#This Row],[Phosphates (PPM)]]=0, \"\"))))","v":"Very high"},0]
[29,"12:01:00","2023-09-17","Steve G",{"$f":"_xlfn.XLOOKUP(MasterLog[[#This Row],[Entry ID]],Fuzzy[Entry ID], Fuzzy[Test Site Number])","v":1},{"$f":"_xlfn.XLOOKUP(MasterLog[[#This Row],[Site Number]],Test_sites[Test Site Number], Test_sites[Location Name])","v":"Carrant Bredon rd"},"Carrant Bredon rd",null,null,"Na",661,16.600000000000001,7,{"$f":"IF(MasterLog[[#This Row],[Nitrates (PPM)]]>2, \"Very high\", IF(MasterLog[[#This Row],[Nitrates (PPM)]]>1, \"High\", IF(MasterLog[[#This Row],[Nitrates (PPM)]]>0.5, \"Some evidence\", IF(MasterLog[[#This Row],[Nitrates (PPM)]]=0, \"\"))))","v":"Very high"},0.68,{"$f":"IF(MasterLog[[#This Row],[Phosphates (PPM)]]>0.5, \"Very high\", IF(MasterLog[[#This Row],[Phosphates (PPM)]]>0.1, \"High\", IF(MasterLog[[#This Row],[Phosphates (PPM)]]>0.05, \"Some evidence\", IF(MasterLog[[#This Row],[Phosphates (PPM)]]=0, \"\"))))","v":"Very high"},0]
[30,"17:30:00","2023-09-18","Martin Hicks",{"$f":"_xlfn.XLOOKUP(MasterLog[[#This Row],[Entry ID]],Fuzzy[Entry ID], Fuzzy[Test Site Number])","v":11},{"$f":"_xlfn.XLOOKUP(MasterLog[[#This Row],[Site Number]],Test_sites[Test Site Number], Test_sites[Location Name])","v":"Barton"},"Barton",52.161209999999997,-1.8301499999999999,"NA",872,17.100000000000001,null,{"$f":"IF(MasterLog[[#This Row],[Nitrates (PPM)]]>2, \"Very high\", IF(MasterLog[[#This Row],[Nitrates (PPM)]]>1, \"High\", IF(MasterLog[[#This Row],[Nitrates (PPM)]]>0.5, \"Some evidence\", IF(MasterLog[[#This Row],[Nitrates (PPM)]]=0, \"\"))))","v":""},0.66,{"$f":"IF(MasterLog[[#This Row],[Phosphates (PPM)]]>0.5, \"Very high\", IF(MasterLog[[#This Row],[Phosphates (PPM)]]>0.1, \"High\", IF(MasterLog[[#This Row],[Phosphates (PPM)]]>0.05, \"Some evidence\", IF(MasterLog[[#This Row],[Phosphates (PPM)]]=0, \"\"))))","v":"Very high"},0,"Nitrate test failure, awaiting new equipment"]
[31,"17:00:00","2023-09-20","Stella Khan",{"$f":"_xlfn.XLOOKUP(MasterLog[[#This Row],[Entry ID]],Fuzzy[Entry ID], Fuzzy[Test Site Number])","v":4},{"$f":"_xlfn.XLOOKUP(MasterLog[[#This Row],[Site Number]],Test_sites[Test Site Number], Test_sites[Location Name])","v":"Newbold Mill Stour"},"Newbold Mill Stour",52.113469000000002,-1.6333439999999999,"Below",668,16.399999999999999,null,{"$f":"IF(MasterLog[[#This Row],[Nitrates (PPM)]]>2, \"Very high\", IF(MasterLog[[#This Row],[Nitrates (PPM)]]>1, \"High\", IF(MasterLog[[#This Row],[Nitrates (PPM)]]>0.5, \"Some evidence\", IF(MasterLog[[#This Row],[Nitrates (PPM)]]=0, \"\"))))","v":""},0.79,{"$f":"IF(MasterLog[[#This Row],[Phosphates (PPM)]]>0.5, \"Very high\", IF(MasterLog[[#This Row],[Phosphates (PPM)]]>0.1, \"High\", IF(MasterLog[[#This Row],[Phosphates (PPM)]]>0.05, \"Some evidence\", IF(MasterLog[[#This Row],[Phosphates (PPM)]]=0, \"\"))))","v":"Very high"},2.1,"Heavy rainfall"]
[32,"10:15:00","2023-09-21","Helen Carver",{"$f":"_xlfn.XLOOKUP(MasterLog[[#This Row],[Entry ID]],Fuzzy[Entry ID], Fuzzy[Test Site Number])","v":14},{"$f":"_xlfn.XLOOKUP(MasterLog[[#This Row],[Site Number]],Test_sites[Test Site Number], Test_sites[Location Name])","v":"Swillgate A38"},"Swillgate A38",null,null,"Na",736,15.8,7,{"$f":"IF(MasterLog[[#This Row],[Nitrates (PPM)]]>2, \"Very high\", IF(MasterLog[[#This Row],[Nitrates (PPM)]]>1, \"High\", IF(MasterLog[[#This Row],[Nitrates (PPM)]]>0.5, \"Some evidence\", IF(MasterLog[[#This Row],[Nitrates (PPM)]]=0, \"\"))))","v":"Very high"},0.83,{"$f":"IF(MasterLog[[#This Row],[Phosphates (PPM)]]>0.5, \"Very high\", IF(MasterLog[[#This Row],[Phosphates (PPM)]]>0.1, \"High\", IF(MasterLog[[#This Row],[Phosphates (PPM)]]>0.05, \"Some evidence\", IF(MasterLog[[#This Row],[Phosphates (PPM)]]=0, \"\"))))","v":"Very high"},0]
[33,"14:00:00","2023-09-21","Derek O'Rourke",{"$f":"_xlfn.XLOOKUP(MasterLog[[#This Row],[Entry ID]],Fuzzy[Entry ID], Fuzzy[Test Site Number])","v":6},{"$f":"_xlfn.XLOOKUP(MasterLog[[#This Row],[Site Number]],Test_sites[Test Site Number], Test_sites[Location Name])","v":"Preston- on- stour river bridge"},"Preston onStour river bridge",52.146552999999997,-1.6992370000000001,"Below",671,16.2,5,{"$f":"IF(MasterLog[[#This Row],[Nitrates (PPM)]]>2, \"Very high\", IF(MasterLog[[#This Row],[Nitrates (PPM)]]>1, \"High\", IF(MasterLog[[#This Row],[Nitrates (PPM)]]>0.5, \"Some evidence\", IF(MasterLog[[#This Row],[Nitrates (PPM)]]=0, \"\"))))","v":"Very high"},0.8,{"$f":"IF(MasterLog[[#This Row],[Phosphates (PPM)]]>0.5, \"Very high\", IF(MasterLog[[#This Row],[Phosphates (PPM)]]>0.1, \"High\", IF(MasterLog[[#This Row],[Phosphates (PPM)]]>0.05, \"Some evidence\", IF(MasterLog[[#This Row],[Phosphates (PPM)]]=0, \"\"))))","v":"Very high"},7,"Readings taken day after heavy rain"]
[34,"10:30:00","2023-09-21","Geoff",{"$f":"_xlfn.XLOOKUP(MasterLog[[#This Row],[Entry ID]],Fuzzy[Entry ID], Fuzzy[Test Site Number])","v":13},{"$f":"_xlfn.XLOOKUP(MasterLog[[#This Row],[Site Number]],Test_sites[Test Site Number], Test_sites[Location Name])","v":"Abbey mill"},"Abbey mill",null,null,"Na",105,17.100000000000001,8,{"$f":"IF(MasterLog[[#This Row],[Nitrates (PPM)]]>2, \"Very high\", IF(MasterLog[[#This Row],[Nitrates (PPM)]]>1, \"High\", IF(MasterLog[[#This Row],[Nitrates (PPM)]]>0.5, \"Some evidence\", IF(MasterLog[[#This Row],[Nitrates (PPM)]]=0, \"\"))))","v":"Very high"},1.04,{"$f":"IF(MasterLog[[#This Row],[Phosphates (PPM)]]>0.5, \"Very high\", IF(MasterLog[[#This Row],[Phosphates (PPM)]]>0.1, \"High\", IF(MasterLog[[#This Row],[Phosphates (PPM)]]>0.05, \"Some evidence\", IF(MasterLog[[#This Row],[Phosphates (PPM)]]=0, \"\"))))","v":"Very high"},0]
[35,"14:30:00","2023-09-23","Steve G",{"$f":"_xlfn.XLOOKUP(MasterLog[[#This Row],[Entry ID]],Fuzzy[Entry ID], Fuzzy[Test Site Number])","v":1},{"$f":"_xlfn.XLOOKUP(MasterLog[[#This Row],[Site Number]],Test_sites[Test Site Number], Test_sites[Location Name])","v":"Carrant Bredon rd"},"Carrant Bredon rd",null,null,"Na",655,13.4,8,{"$f":"IF(MasterLog[[#This Row],[Nitrates (PPM)]]>2, \"Very high\", IF(MasterLog[[#This Row],[Nitrates (PPM)]]>1, \"High\", IF(MasterLog[[#This Row],[Nitrates (PPM)]]>0.5, \"Some evidence\", IF(MasterLog[[#This Row],[Nitrates (PPM)]]=0, \"\"))))","v":"Very high"},0.94,{"$f":"IF(MasterLog[[#This Row],[Phosphates (PPM)]]>0.5, \"Very high\", IF(MasterLog[[#This Row],[Phosphates (PPM)]]>0.1, \"High\", IF(MasterLog[[#This Row],[Phosphates (PPM)]]>0.05, \"Some evidence\", IF(MasterLog[[#This Row],[Phosphates (PPM)]]=0, \"\"))))","v":"Very high"},0]
[36,"12:46:00","2023-09-23","Paul Fairburn",{"$f":"_xlfn.XLOOKUP(MasterLog[[#This Row],[Entry ID]],Fuzzy[Entry ID], Fuzzy[Test Site Number])","v":18},{"$f":"_xlfn.XLOOKUP(MasterLog[[#This Row],[Site Number]],Test_sites[Test Site Number], Test_sites[Location Name])","v":"Trinity Church Stratford"},"The Dell, TRINITY CHURCH",52.187393,-1.706607,"Not known",887,16.600000000000001,15,{"$f":"IF(MasterLog[[#This Row],[Nitrates (PPM)]]>2, \"Very high\", IF(MasterLog[[#This Row],[Nitrates (PPM)]]>1, \"High\", IF(MasterLog[[#This Row],[Nitrates (PPM)]]>0.5, \"Some evidence\", IF(MasterLog[[#This Row],[Nitrates (PPM)]]=0, \"\"))))","v":"Very high"},0.6,{"$f":"IF(MasterLog[[#This Row],[Phosphates (PPM)]]>0.5, \"Very high\", IF(MasterLog[[#This Row],[Phosphates (PPM)]]>0.1, \"High\", IF(MasterLog[[#This Row],[Phosphates (PPM)]]>0.05, \"Some evidence\", IF(MasterLog[[#This Row],[Phosphates (PPM)]]=0, \"\"))))","v":"Very high"},0.6,"One off test for the local paper"]
[37,"11:44:00","2023-09-23","Paul Fairburn",{"$f":"_xlfn.XLOOKUP(MasterLog[[#This Row],[Entry ID]],Fuzzy[Entry ID], Fuzzy[Test Site Number])","v":7},{"$f":"_xlfn.XLOOKUP(MasterLog[[#This Row],[Site Number]],Test_sites[Test Site Number], Test_sites[Location Name])","v":"Avonbank Drive"},"Avonbank Drive",52.177247999999999,-1.7358929999999999,"Above",882,18.5,15,{"$f":"IF(MasterLog[[#This Row],[Nitrates (PPM)]]>2, \"Very high\", IF(MasterLog[[#This Row],[Nitrates (PPM)]]>1, \"High\", IF(MasterLog[[#This Row],[Nitrates (PPM)]]>0.5, \"Some evidence\", IF(MasterLog[[#This Row],[Nitrates (PPM)]]=0, \"\"))))","v":"Very high"},0.8,{"$f":"IF(MasterLog[[#This Row],[Phosphates (PPM)]]>0.5, \"Very high\", IF(MasterLog[[#This Row],[Phosphates (PPM)]]>0.1, \"High\", IF(MasterLog[[#This Row],[Phosphates (PPM)]]>0.05, \"Some evidence\", IF(MasterLog[[#This Row],[Phosphates (PPM)]]=0, \"\"))))","v":"Very high"},0.6]
[38,"11:10:00","2023-09-23","Paul Fairburn",{"$f":"_xlfn.XLOOKUP(MasterLog[[#This Row],[Entry ID]],Fuzzy[Entry ID], Fuzzy[Test Site Number])","v":8},{"$f":"_xlfn.XLOOKUP(MasterLog[[#This Row],[Site Number]],Test_sites[Test Site Number], Test_sites[Location Name])","v":"Pitch 16"},"Pitch 16",52.172609000000001,-1.7454480000000001,"Below",856,15.5,15,{"$f":"IF(MasterLog[[#This Row],[Nitrates (PPM)]]>2, \"Very high\", IF(MasterLog[[#This Row],[Nitrates (PPM)]]>1, \"High\", IF(MasterLog[[#This Row],[Nitrates (PPM)]]>0.5, \"Some evidence\", IF(MasterLog[[#This Row],[Nitrates (PPM)]]=0, \"\"))))","v":"Very high"},0.97,{"$f":"IF(MasterLog[[#This Row],[Phosphates (PPM)]]>0.5, \"Very high\", IF(MasterLog[[#This Row],[Phosphates (PPM)]]>0.1, \"High\", IF(MasterLog[[#This Row],[Phosphates (PPM)]]>0.05, \"Some evidence\", IF(MasterLog[[#This Row],[Phosphates (PPM)]]=0, \"\"))))","v":"Very high"},0.6,"Nitrite was zero"]
[39,"16:08:00","2023-09-27","Stella Khan",{"$f":"_xlfn.XLOOKUP(MasterLog[[#This Row],[Entry ID]],Fuzzy[Entry ID], Fuzzy[Test Site Number])","v":4},{"$f":"_xlfn.XLOOKUP(MasterLog[[#This Row],[Site Number]],Test_sites[Test Site Number], Test_sites[Location Name])","v":"Newbold Mill Stour"},"Newbold Mill Stour",52.113517000000002,-1.633219,"Below",687,16.7,25,{"$f":"IF(MasterLog[[#This Row],[Nitrates (PPM)]]>2, \"Very high\", IF(MasterLog[[#This Row],[Nitrates (PPM)]]>1, \"High\", IF(MasterLog[[#This Row],[Nitrates (PPM)]]>0.5, \"Some evidence\", IF(MasterLog[[#This Row],[Nitrates (PPM)]]=0, \"\"))))","v":"Very high"},0.7,{"$f":"IF(MasterLog[[#This Row],[Phosphates (PPM)]]>0.5, \"Very high\", IF(MasterLog[[#This Row],[Phosphates (PPM)]]>0.1, \"High\", IF(MasterLog[[#This Row],[Phosphates (PPM)]]>0.05, \"Some evidence\", IF(MasterLog[[#This Row],[Phosphates (PPM)]]=0, \"\"))))","v":"Very high"},2,"Dry day"]
[40,"15:06:00","2023-09-28","Helen Carver",{"$f":"_xlfn.XLOOKUP(MasterLog[[#This Row],[Entry ID]],Fuzzy[Entry ID], Fuzzy[Test Site Number])","v":14},{"$f":"_xlfn.XLOOKUP(MasterLog[[#This Row],[Site Number]],Test_sites[Test Site Number], Test_sites[Location Name])","v":"Swillgate A38"},"Swillgate A38",null,null,"Na",813,15.6,7,{"$f":"IF(MasterLog[[#This Row],[Nitrates (PPM)]]>2, \"Very high\", IF(MasterLog[[#This Row],[Nitrates (PPM)]]>1, \"High\", IF(MasterLog[[#This Row],[Nitrates (PPM)]]>0.5, \"Some evidence\", IF(MasterLog[[#This Row],[Nitrates (PPM)]]=0, \"\"))))","v":"Very high"},0.62,{"$f":"IF(MasterLog[[#This Row],[Phosphates (PPM)]]>0.5, \"Very high\", IF(MasterLog[[#This Row],[Phosphates (PPM)]]>0.1, \"High\", IF(MasterLog[[#This Row],[Phosphates (PPM)]]>0.05, \"Some evidence\", IF(MasterLog[[#This Row],[Phosphates (PPM)]]=0, \"\"))))","v":"Very high"},0]
[41,"11:15:00","2023-09-28","Derek O'Rourke",{"$f":"_xlfn.XLOOKUP(MasterLog[[#This Row],[Entry ID]],Fuzzy[Entry ID], Fuzzy[Test Site Number])","v":6},{"$f":"_xlfn.XLOOKUP(MasterLog[[#This Row],[Site Number]],Test_sites[Test Site Number], Test_sites[Location Name])","v":"Preston- on- stour river bridge"},"Preston river bridge",52.146639,-1.6990339999999999,"Below",705,15.1,5,{"$f":"IF(MasterLog[[#This Row],[Nitrates (PPM)]]>2, \"Very high\", IF(MasterLog[[#This Row],[Nitrates (PPM)]]>1, \"High\", IF(MasterLog[[#This Row],[Nitrates (PPM)]]>0.5, \"Some evidence\", IF(MasterLog[[#This Row],[Nitrates (PPM)]]=0, \"\"))))","v":"Very high"},0.6,{"$f":"IF(MasterLog[[#This Row],[Phosphates (PPM)]]>0.5, \"Very high\", IF(MasterLog[[#This Row],[Phosphates (PPM)]]>0.1, \"High\", IF(MasterLog[[#This Row],[Phosphates (PPM)]]>0.05, \"Some evidence\", IF(MasterLog[[#This Row],[Phosphates (PPM)]]=0, \"\"))))","v":"Very high"},6,"Readings taken day after heavy rain showers."]
[42,"10:15:00","2023-10-01","Geoff",{"$f":"_xlfn.XLOOKUP(MasterLog[[#This Row],[Entry ID]],Fuzzy[Entry ID], Fuzzy[Test Site Number])","v":13},{"$f":"_xlfn.XLOOKUP(MasterLog[[#This Row],[Site Number]],Test_sites[Test Site Number], Test_sites[Location Name])","v":"Abbey mill"},"Abbey Mill",null,null,"Na",870,17.5,10,{"$f":"IF(MasterLog[[#This Row],[Nitrates (PPM)]]>2, \"Very high\", IF(MasterLog[[#This Row],[Nitrates (PPM)]]>1, \"High\", IF(MasterLog[[#This Row],[Nitrates (PPM)]]>0.5, \"Some evidence\", IF(MasterLog[[#This Row],[Nitrates (PPM)]]=0, \"\"))))","v":"Very high"},0.98,{"$f":"IF(MasterLog[[#This Row],[Phosphates (PPM)]]>0.5, \"Very high\", IF(MasterLog[[#This Row],[Phosphates (PPM)]]>0.1, \"High\", IF(MasterLog[[#This Row],[Phosphates (PPM)]]>0.05, \"Some evidence\", IF(MasterLog[[#This Row],[Phosphates (PPM)]]=0, \"\"))))","v":"Very high"},0]
[43,"10:21:00","2023-10-01","Olivia Hatch",{"$f":"_xlfn.XLOOKUP(MasterLog[[#This Row],[Entry ID]],Fuzzy[Entry ID], Fuzzy[Test Site Number])","v":17},{"$f":"_xlfn.XLOOKUP(MasterLog[[#This Row],[Site Number]],Test_sites[Test Site Number], Test_sites[Location Name])","v":"Shipston-on-Stour"},"Stour, Mill Bridge, Shipston",52.062021999999999,-1.621729,"30m below",642,16,10,{"$f":"IF(MasterLog[[#This Row],[Nitrates (PPM)]]>2, \"Very high\", IF(MasterLog[[#This Row],[Nitrates (PPM)]]>1, \"High\", IF(MasterLog[[#This Row],[Nitrates (PPM)]]>0.5, \"Some evidence\", IF(MasterLog[[#This Row],[Nitrates (PPM)]]=0, \"\"))))","v":"Very high"},0.41,{"$f":"IF(MasterLog[[#This Row],[Phosphates (PPM)]]>0.5, \"Very high\", IF(MasterLog[[#This Row],[Phosphates (PPM)]]>0.1, \"High\", IF(MasterLog[[#This Row],[Phosphates (PPM)]]>0.05, \"Some evidence\", IF(MasterLog[[#This Row],[Phosphates (PPM)]]=0, \"\"))))","v":"High"},5]
[44,"16:15:00","2023-10-04","Stella Khan",{"$f":"_xlfn.XLOOKUP(MasterLog[[#This Row],[Entry ID]],Fuzzy[Entry ID], Fuzzy[Test Site Number])","v":4},{"$f":"_xlfn.XLOOKUP(MasterLog[[#This Row],[Site Number]],Test_sites[Test Site Number], Test_sites[Location Name])","v":"Newbold Mill Stour"},"Mill Stour Newbold",52.113486999999999,-1.6333500000000001,"Below",704,15.5,10,{"$f":"IF(MasterLog[[#This Row],[Nitrates (PPM)]]>2, \"Very high\", IF(MasterLog[[#This Row],[Nitrates (PPM)]]>1, \"High\", IF(MasterLog[[#This Row],[Nitrates (PPM)]]>0.5, \"Some evidence\", IF(MasterLog[[#This Row],[Nitrates (PPM)]]=0, \"\"))))","v":"Very high"},0.71,{"$f":"IF(MasterLog[[#This Row],[Phosphates (PPM)]]>0.5, \"Very high\", IF(MasterLog[[#This Row],[Phosphates (PPM)]]>0.1, \"High\", IF(MasterLog[[#This Row],[Phosphates (PPM)]]>0.05, \"Some evidence\", IF(MasterLog[[#This Row],[Phosphates (PPM)]]=0, \"\"))))","v":"Very high"},2,"Dry day"]
[45,"14:13:00","2023-10-05","Derek O'Rourke",{"$f":"_xlfn.XLOOKUP(MasterLog[[#This Row],[Entry ID]],Fuzzy[Entry ID], Fuzzy[Test Site Number])","v":6},{"$f":"_xlfn.XLOOKUP(MasterLog[[#This Row],[Site Number]],Test_sites[Test Site Number], Test_sites[Location Name])","v":"Preston- on- stour river bridge"},"Preston river bridge",52.146582000000002,-1.6992160000000001,"Below",692,15.8,5,{"$f":"IF(MasterLog[[#This Row],[Nitrates (PPM)]]>2, \"Very high\", IF(MasterLog[[#This Row],[Nitrates (PPM)]]>1, \"High\", IF(MasterLog[[#This Row],[Nitrates (PPM)]]>0.5, \"Some evidence\", IF(MasterLog[[#This Row],[Nitrates (PPM)]]=0, \"\"))))","v":"Very high"},0.61,{"$f":"IF(MasterLog[[#This Row],[Phosphates (PPM)]]>0.5, \"Very high\", IF(MasterLog[[#This Row],[Phosphates (PPM)]]>0.1, \"High\", IF(MasterLog[[#This Row],[Phosphates (PPM)]]>0.05, \"Some evidence\", IF(MasterLog[[#This Row],[Phosphates (PPM)]]=0, \"\"))))","v":"Very high"},6,"River height slightly elevated"]
[46,"10:30:00","2023-10-05","Helen Carver",{"$f":"_xlfn.XLOOKUP(MasterLog[[#This Row],[Entry ID]],Fuzzy[Entry ID], Fuzzy[Test Site Number])","v":14},{"$f":"_xlfn.XLOOKUP(MasterLog[[#This Row],[Site Number]],Test_sites[Test Site Number], Test_sites[Location Name])","v":"Swillgate A38"},"Swillgate A38",null,null,"Na",868,15.2,10,{"$f":"IF(MasterLog[[#This Row],[Nitrates (PPM)]]>2, \"Very high\", IF(MasterLog[[#This Row],[Nitrates (PPM)]]>1, \"High\", IF(MasterLog[[#This Row],[Nitrates (PPM)]]>0.5, \"Some evidence\", IF(MasterLog[[#This Row],[Nitrates (PPM)]]=0, \"\"))))","v":"Very high"},0.7,{"$f":"IF(MasterLog[[#This Row],[Phosphates (PPM)]]>0.5, \"Very high\", IF(MasterLog[[#This Row],[Phosphates (PPM)]]>0.1, \"High\", IF(MasterLog[[#This Row],[Phosphates (PPM)]]>0.05, \"Some evidence\", IF(MasterLog[[#This Row],[Phosphates (PPM)]]=0, \"\"))))","v":"Very high"},0]
[47,"11:44:00","2023-10-07","Geoff",{"$f":"_xlfn.XLOOKUP(MasterLog[[#This Row],[Entry ID]],Fuzzy[Entry ID], Fuzzy[Test Site Number])","v":16},{"$f":"_xlfn.XLOOKUP(MasterLog[[#This Row],[Site Number]],Test_sites[Test Site Number], Test_sites[Location Name])","v":"Ilmington"},"Illmington middle st",52.090074000000001,-1.692588,"Na",608,17.100000000000001,1,{"$f":"IF(MasterLog[[#This Row],[Nitrates (PPM)]]>2, \"Very high\", IF(MasterLog[[#This Row],[Nitrates (PPM)]]>1, \"High\", IF(MasterLog[[#This Row],[Nitrates (PPM)]]>0.5, \"Some evidence\", IF(MasterLog[[#This Row],[Nitrates (PPM)]]=0, \"\"))))","v":"Some evidence"},0.18,{"$f":"IF(MasterLog[[#This Row],[Phosphates (PPM)]]>0.5, \"Very high\", IF(MasterLog[[#This Row],[Phosphates (PPM)]]>0.1, \"High\", IF(MasterLog[[#This Row],[Phosphates (PPM)]]>0.05, \"Some evidence\", IF(MasterLog[[#This Row],[Phosphates (PPM)]]=0, \"\"))))","v":"High"},0]
[48,"16:00:00","2023-10-08","Chris Fox",{"$f":"_xlfn.XLOOKUP(MasterLog[[#This Row],[Entry ID]],Fuzzy[Entry ID], Fuzzy[Test Site Number])","v":10},{"$f":"_xlfn.XLOOKUP(MasterLog[[#This Row],[Site Number]],Test_sites[Test Site Number], Test_sites[Location Name])","v":"Welford Boat Station"},"Welford Boat Station",52.175240000000002,-1.7918700000000001,"Below",830,17.600000000000001,4.5,{"$f":"IF(MasterLog[[#This Row],[Nitrates (PPM)]]>2, \"Very high\", IF(MasterLog[[#This Row],[Nitrates (PPM)]]>1, \"High\", IF(MasterLog[[#This Row],[Nitrates (PPM)]]>0.5, \"Some evidence\", IF(MasterLog[[#This Row],[Nitrates (PPM)]]=0, \"\"))))","v":"Very high"},0.56999999999999995,{"$f":"IF(MasterLog[[#This Row],[Phosphates (PPM)]]>0.5, \"Very high\", IF(MasterLog[[#This Row],[Phosphates (PPM)]]>0.1, \"High\", IF(MasterLog[[#This Row],[Phosphates (PPM)]]>0.05, \"Some evidence\", IF(MasterLog[[#This Row],[Phosphates (PPM)]]=0, \"\"))))","v":"Very high"},0,"Good weather"]
[49,"14:00:00","2023-10-08","John Conchar",{"$f":"_xlfn.XLOOKUP(MasterLog[[#This Row],[Entry ID]],Fuzzy[Entry ID], Fuzzy[Test Site Number])","v":2},{"$f":"_xlfn.XLOOKUP(MasterLog[[#This Row],[Site Number]],Test_sites[Test Site Number], Test_sites[Location Name])","v":"Hampton Lucy Allotments"},"Hampton Lucy",52.211680000000001,-1.6244400000000001,"NA",884,18,7.5,{"$f":"IF(MasterLog[[#This Row],[Nitrates (PPM)]]>2, \"Very high\", IF(MasterLog[[#This Row],[Nitrates (PPM)]]>1, \"High\", IF(MasterLog[[#This Row],[Nitrates (PPM)]]>0.5, \"Some evidence\", IF(MasterLog[[#This Row],[Nitrates (PPM)]]=0, \"\"))))","v":"Very high"},0.6,{"$f":"IF(MasterLog[[#This Row],[Phosphates (PPM)]]>0.5, \"Very high\", IF(MasterLog[[#This Row],[Phosphates (PPM)]]>0.1, \"High\", IF(MasterLog[[#This Row],[Phosphates (PPM)]]>0.05, \"Some evidence\", IF(MasterLog[[#This Row],[Phosphates (PPM)]]=0, \"\"))))","v":"Very high"},0]
[50,"12:30:00","2023-10-08","Martin Hicks",{"$f":"_xlfn.XLOOKUP(MasterLog[[#This Row],[Entry ID]],Fuzzy[Entry ID], Fuzzy[Test Site Number])","v":3},{"$f":"_xlfn.XLOOKUP(MasterLog[[#This Row],[Site Number]],Test_sites[Test Site Number], Test_sites[Location Name])","v":"Hampton Wood Nature Reserve"},"Hampton Wood",52.238149999999997,-1.6245799999999999,"Below",918,16.100000000000001,9,{"$f":"IF(MasterLog[[#This Row],[Nitrates (PPM)]]>2, \"Very high\", IF(MasterLog[[#This Row],[Nitrates (PPM)]]>1, \"High\", IF(MasterLog[[#This Row],[Nitrates (PPM)]]>0.5, \"Some evidence\", IF(MasterLog[[#This Row],[Nitrates (PPM)]]=0, \"\"))))","v":"Very high"},0.73,{"$f":"IF(MasterLog[[#This Row],[Phosphates (PPM)]]>0.5, \"Very high\", IF(MasterLog[[#This Row],[Phosphates (PPM)]]>0.1, \"High\", IF(MasterLog[[#This Row],[Phosphates (PPM)]]>0.05, \"Some evidence\", IF(MasterLog[[#This Row],[Phosphates (PPM)]]=0, \"\"))))","v":"Very high"},0]
[51,"16:39:00","2023-10-08","Geoff",{"$f":"_xlfn.XLOOKUP(MasterLog[[#This Row],[Entry ID]],Fuzzy[Entry ID], Fuzzy[Test Site Number])","v":13},{"$f":"_xlfn.XLOOKUP(MasterLog[[#This Row],[Site Number]],Test_sites[Test Site Number], Test_sites[Location Name])","v":"Abbey mill"},"Abbey mill",51.991534000000001,-2.1627879999999999,"Na",811,18.100000000000001,9,{"$f":"IF(MasterLog[[#This Row],[Nitrates (PPM)]]>2, \"Very high\", IF(MasterLog[[#This Row],[Nitrates (PPM)]]>1, \"High\", IF(MasterLog[[#This Row],[Nitrates (PPM)]]>0.5, \"Some evidence\", IF(MasterLog[[#This Row],[Nitrates (PPM)]]=0, \"\"))))","v":"Very high"},1.01,{"$f":"IF(MasterLog[[#This Row],[Phosphates (PPM)]]>0.5, \"Very high\", IF(MasterLog[[#This Row],[Phosphates (PPM)]]>0.1, \"High\", IF(MasterLog[[#This Row],[Phosphates (PPM)]]>0.05, \"Some evidence\", IF(MasterLog[[#This Row],[Phosphates (PPM)]]=0, \"\"))))","v":"Very high"},0]
[52,"16:30:00","2023-10-10","Martin Hicks",{"$f":"_xlfn.XLOOKUP(MasterLog[[#This Row],[Entry ID]],Fuzzy[Entry ID], Fuzzy[Test Site Number])","v":9},{"$f":"_xlfn.XLOOKUP(MasterLog[[#This Row],[Site Number]],Test_sites[Test Site Number], Test_sites[Location Name])","v":"Weston on Avon"},"Weston on Avon",52.167430000000003,-1.7744800000000001,"Below",972,17.7,4,{"$f":"IF(MasterLog[[#This Row],[Nitrates (PPM)]]>2, \"Very high\", IF(MasterLog[[#This Row],[Nitrates (PPM)]]>1, \"High\", IF(MasterLog[[#This Row],[Nitrates (PPM)]]>0.5, \"Some evidence\", IF(MasterLog[[#This Row],[Nitrates (PPM)]]=0, \"\"))))","v":"Very high"},0.66,{"$f":"IF(MasterLog[[#This Row],[Phosphates (PPM)]]>0.5, \"Very high\", IF(MasterLog[[#This Row],[Phosphates (PPM)]]>0.1, \"High\", IF(MasterLog[[#This Row],[Phosphates (PPM)]]>0.05, \"Some evidence\", IF(MasterLog[[#This Row],[Phosphates (PPM)]]=0, \"\"))))","v":"Very high"},0]
[53,"16:29:00","2023-10-11","Olivia Hatch",{"$f":"_xlfn.XLOOKUP(MasterLog[[#This Row],[Entry ID]],Fuzzy[Entry ID], Fuzzy[Test Site Number])","v":17},{"$f":"_xlfn.XLOOKUP(MasterLog[[#This Row],[Site Number]],Test_sites[Test Site Number], Test_sites[Location Name])","v":"Shipston-on-Stour"},"Stour Shipston Mill bridge",52.062024999999998,-1.621747,"15 m below",684,15.7,10,{"$f":"IF(MasterLog[[#This Row],[Nitrates (PPM)]]>2, \"Very high\", IF(MasterLog[[#This Row],[Nitrates (PPM)]]>1, \"High\", IF(MasterLog[[#This Row],[Nitrates (PPM)]]>0.5, \"Some evidence\", IF(MasterLog[[#This Row],[Nitrates (PPM)]]=0, \"\"))))","v":"Very high"},0.42,{"$f":"IF(MasterLog[[#This Row],[Phosphates (PPM)]]>0.5, \"Very high\", IF(MasterLog[[#This Row],[Phosphates (PPM)]]>0.1, \"High\", IF(MasterLog[[#This Row],[Phosphates (PPM)]]>0.05, \"Some evidence\", IF(MasterLog[[#This Row],[Phosphates (PPM)]]=0, \"\"))))","v":"High"},0.5,"1st rain for a while"]
[54,"15:49:00","2023-10-11","Olivia Hatch",{"$f":"_xlfn.XLOOKUP(MasterLog[[#This Row],[Entry ID]],Fuzzy[Entry ID], Fuzzy[Test Site Number])","v":4},{"$f":"_xlfn.XLOOKUP(MasterLog[[#This Row],[Site Number]],Test_sites[Test Site Number], Test_sites[Location Name])","v":"Newbold Mill Stour"},"Stour, Mill Newbold",52.113520000000001,-1.6333390000000001,"1m below",711,15.8,25,{"$f":"IF(MasterLog[[#This Row],[Nitrates (PPM)]]>2, \"Very high\", IF(MasterLog[[#This Row],[Nitrates (PPM)]]>1, \"High\", IF(MasterLog[[#This Row],[Nitrates (PPM)]]>0.5, \"Some evidence\", IF(MasterLog[[#This Row],[Nitrates (PPM)]]=0, \"\"))))","v":"Very high"},0.76,{"$f":"IF(MasterLog[[#This Row],[Phosphates (PPM)]]>0.5, \"Very high\", IF(MasterLog[[#This Row],[Phosphates (PPM)]]>0.1, \"High\", IF(MasterLog[[#This Row],[Phosphates (PPM)]]>0.05, \"Some evidence\", IF(MasterLog[[#This Row],[Phosphates (PPM)]]=0, \"\"))))","v":"Very high"},2.5,"Heavy rain this am, but 1st for a while"]
[55,"12:30:00","2023-10-11","Paul Berry",{"$f":"_xlfn.XLOOKUP(MasterLog[[#This Row],[Entry ID]],Fuzzy[Entry ID], Fuzzy[Test Site Number])","v":11},{"$f":"_xlfn.XLOOKUP(MasterLog[[#This Row],[Site Number]],Test_sites[Test Site Number], Test_sites[Location Name])","v":"Barton"},"Barton",52.161209999999997,-1.8301499999999999,"Below",962,16.5,4,{"$f":"IF(MasterLog[[#This Row],[Nitrates (PPM)]]>2, \"Very high\", IF(MasterLog[[#This Row],[Nitrates (PPM)]]>1, \"High\", IF(MasterLog[[#This Row],[Nitrates (PPM)]]>0.5, \"Some evidence\", IF(MasterLog[[#This Row],[Nitrates (PPM)]]=0, \"\"))))","v":"Very high"},0.84,{"$f":"IF(MasterLog[[#This Row],[Phosphates (PPM)]]>0.5, \"Very high\", IF(MasterLog[[#This Row],[Phosphates (PPM)]]>0.1, \"High\", IF(MasterLog[[#This Row],[Phosphates (PPM)]]>0.05, \"Some evidence\", IF(MasterLog[[#This Row],[Phosphates (PPM)]]=0, \"\"))))","v":"Very high"},0]
[56,"10:30:00","2023-10-12","Helen Carver",{"$f":"_xlfn.XLOOKUP(MasterLog[[#This Row],[Entry ID]],Fuzzy[Entry ID], Fuzzy[Test Site Number])","v":14},{"$f":"_xlfn.XLOOKUP(MasterLog[[#This Row],[Site Number]],Test_sites[Test Site Number], Test_sites[Location Name])","v":"Swillgate A38"},"Swillgate A38",null,null,"Na",637,15,3,{"$f":"IF(MasterLog[[#This Row],[Nitrates (PPM)]]>2, \"Very high\", IF(MasterLog[[#This Row],[Nitrates (PPM)]]>1, \"High\", IF(MasterLog[[#This Row],[Nitrates (PPM)]]>0.5, \"Some evidence\", IF(MasterLog[[#This Row],[Nitrates (PPM)]]=0, \"\"))))","v":"Very high"},0.67,{"$f":"IF(MasterLog[[#This Row],[Phosphates (PPM)]]>0.5, \"Very high\", IF(MasterLog[[#This Row],[Phosphates (PPM)]]>0.1, \"High\", IF(MasterLog[[#This Row],[Phosphates (PPM)]]>0.05, \"Some evidence\", IF(MasterLog[[#This Row],[Phosphates (PPM)]]=0, \"\"))))","v":"Very high"},0,"Heavy rain overnight"]
[57,"14:08:00","2023-10-12","Derek O'Rourke",{"$f":"_xlfn.XLOOKUP(MasterLog[[#This Row],[Entry ID]],Fuzzy[Entry ID], Fuzzy[Test Site Number])","v":6},{"$f":"_xlfn.XLOOKUP(MasterLog[[#This Row],[Site Number]],Test_sites[Test Site Number], Test_sites[Location Name])","v":"Preston- on- stour river bridge"},"Preston River bridge",52.146481999999999,-1.699892,"Below",718,15.2,5,{"$f":"IF(MasterLog[[#This Row],[Nitrates (PPM)]]>2, \"Very high\", IF(MasterLog[[#This Row],[Nitrates (PPM)]]>1, \"High\", IF(MasterLog[[#This Row],[Nitrates (PPM)]]>0.5, \"Some evidence\", IF(MasterLog[[#This Row],[Nitrates (PPM)]]=0, \"\"))))","v":"Very high"},0.69,{"$f":"IF(MasterLog[[#This Row],[Phosphates (PPM)]]>0.5, \"Very high\", IF(MasterLog[[#This Row],[Phosphates (PPM)]]>0.1, \"High\", IF(MasterLog[[#This Row],[Phosphates (PPM)]]>0.05, \"Some evidence\", IF(MasterLog[[#This Row],[Phosphates (PPM)]]=0, \"\"))))","v":"Very high"},1.2,"Readings taken the day after sustained rainfall."]
[58,"12:46:00","2023-10-13","Mike Sztymiak",{"$f":"_xlfn.XLOOKUP(MasterLog[[#This Row],[Entry ID]],Fuzzy[Entry ID], Fuzzy[Test Site Number])","v":12},{"$f":"_xlfn.XLOOKUP(MasterLog[[#This Row],[Site Number]],Test_sites[Test Site Number], Test_sites[Location Name])","v":"Twyning fleet"},"Twyning Fleet",52.026986999999998,-2.1405219999999998,"Below",null,17.600000000000001,10,{"$f":"IF(MasterLog[[#This Row],[Nitrates (PPM)]]>2, \"Very high\", IF(MasterLog[[#This Row],[Nitrates (PPM)]]>1, \"High\", IF(MasterLog[[#This Row],[Nitrates (PPM)]]>0.5, \"Some evidence\", IF(MasterLog[[#This Row],[Nitrates (PPM)]]=0, \"\"))))","v":"Very high"},1.02,{"$f":"IF(MasterLog[[#This Row],[Phosphates (PPM)]]>0.5, \"Very high\", IF(MasterLog[[#This Row],[Phosphates (PPM)]]>0.1, \"High\", IF(MasterLog[[#This Row],[Phosphates (PPM)]]>0.05, \"Some evidence\", IF(MasterLog[[#This Row],[Phosphates (PPM)]]=0, \"\"))))","v":"Very high"},0,"Rain overnight"]
[59,"12:42:00","2023-10-14","Steve G",{"$f":"_xlfn.XLOOKUP(MasterLog[[#This Row],[Entry ID]],Fuzzy[Entry ID], Fuzzy[Test Site Number])","v":1},{"$f":"_xlfn.XLOOKUP(MasterLog[[#This Row],[Site Number]],Test_sites[Test Site Number], Test_sites[Location Name])","v":"Carrant Bredon rd"},"Carrant Bredon rd",51.994807999999999,-2.151078,"Na",694,14.1,7,{"$f":"IF(MasterLog[[#This Row],[Nitrates (PPM)]]>2, \"Very high\", IF(MasterLog[[#This Row],[Nitrates (PPM)]]>1, \"High\", IF(MasterLog[[#This Row],[Nitrates (PPM)]]>0.5, \"Some evidence\", IF(MasterLog[[#This Row],[Nitrates (PPM)]]=0, \"\"))))","v":"Very high"},0.93,{"$f":"IF(MasterLog[[#This Row],[Phosphates (PPM)]]>0.5, \"Very high\", IF(MasterLog[[#This Row],[Phosphates (PPM)]]>0.1, \"High\", IF(MasterLog[[#This Row],[Phosphates (PPM)]]>0.05, \"Some evidence\", IF(MasterLog[[#This Row],[Phosphates (PPM)]]=0, \"\"))))","v":"Very high"},0.3,"Heavy rain"]
[60,"11:50:00","2023-10-14","Paul Fairburn",{"$f":"_xlfn.XLOOKUP(MasterLog[[#This Row],[Entry ID]],Fuzzy[Entry ID], Fuzzy[Test Site Number])","v":7},{"$f":"_xlfn.XLOOKUP(MasterLog[[#This Row],[Site Number]],Test_sites[Test Site Number], Test_sites[Location Name])","v":"Avonbank Drive"},"Avonbank Drive",null,null,"Above",688,15.5,10,{"$f":"IF(MasterLog[[#This Row],[Nitrates (PPM)]]>2, \"Very high\", IF(MasterLog[[#This Row],[Nitrates (PPM)]]>1, \"High\", IF(MasterLog[[#This Row],[Nitrates (PPM)]]>0.5, \"Some evidence\", IF(MasterLog[[#This Row],[Nitrates (PPM)]]=0, \"\"))))","v":"Very high"},0.86,{"$f":"IF(MasterLog[[#This Row],[Phosphates (PPM)]]>0.5, \"Very high\", IF(MasterLog[[#This Row],[Phosphates (PPM)]]>0.1, \"High\", IF(MasterLog[[#This Row],[Phosphates (PPM)]]>0.05, \"Some evidence\", IF(MasterLog[[#This Row],[Phosphates (PPM)]]=0, \"\"))))","v":"Very high"},0.9]
[61,"15:00:00","2023-10-14","Geoff",{"$f":"_xlfn.XLOOKUP(MasterLog[[#This Row],[Entry ID]],Fuzzy[Entry ID], Fuzzy[Test Site Number])","v":13},{"$f":"_xlfn.XLOOKUP(MasterLog[[#This Row],[Site Number]],Test_sites[Test Site Number], Test_sites[Location Name])","v":"Abbey mill"},"Abbey mill",null,null,"Na",906,15.6,9,{"$f":"IF(MasterLog[[#This Row],[Nitrates (PPM)]]>2, \"Very high\", IF(MasterLog[[#This Row],[Nitrates (PPM)]]>1, \"High\", IF(MasterLog[[#This Row],[Nitrates (PPM)]]>0.5, \"Some evidence\", IF(MasterLog[[#This Row],[Nitrates (PPM)]]=0, \"\"))))","v":"Very high"},1.1499999999999999,{"$f":"IF(MasterLog[[#This Row],[Phosphates (PPM)]]>0.5, \"Very high\", IF(MasterLog[[#This Row],[Phosphates (PPM)]]>0.1, \"High\", IF(MasterLog[[#This Row],[Phosphates (PPM)]]>0.05, \"Some evidence\", IF(MasterLog[[#This Row],[Phosphates (PPM)]]=0, \"\"))))","v":"Very high"},1,"Heavy rain over night"]
[62,"11:30:00","2023-10-14","Paul Fairburn",{"$f":"_xlfn.XLOOKUP(MasterLog[[#This Row],[Entry ID]],Fuzzy[Entry ID], Fuzzy[Test Site Number])","v":8},{"$f":"_xlfn.XLOOKUP(MasterLog[[#This Row],[Site Number]],Test_sites[Test Site Number], Test_sites[Location Name])","v":"Pitch 16"},"Pitch 16",52.172694999999997,-1.745101,"Below",679,15.3,5,{"$f":"IF(MasterLog[[#This Row],[Nitrates (PPM)]]>2, \"Very high\", IF(MasterLog[[#This Row],[Nitrates (PPM)]]>1, \"High\", IF(MasterLog[[#This Row],[Nitrates (PPM)]]>0.5, \"Some evidence\", IF(MasterLog[[#This Row],[Nitrates (PPM)]]=0, \"\"))))","v":"Very high"},0.84,{"$f":"IF(MasterLog[[#This Row],[Phosphates (PPM)]]>0.5, \"Very high\", IF(MasterLog[[#This Row],[Phosphates (PPM)]]>0.1, \"High\", IF(MasterLog[[#This Row],[Phosphates (PPM)]]>0.05, \"Some evidence\", IF(MasterLog[[#This Row],[Phosphates (PPM)]]=0, \"\"))))","v":"Very high"},0.9,"Cloudy muddy water. Nitrite zero."]
[63,"16:00:00","2023-10-15","Chris Fox",{"$f":"_xlfn.XLOOKUP(MasterLog[[#This Row],[Entry ID]],Fuzzy[Entry ID], Fuzzy[Test Site Number])","v":10},{"$f":"_xlfn.XLOOKUP(MasterLog[[#This Row],[Site Number]],Test_sites[Test Site Number], Test_sites[Location Name])","v":"Welford Boat Station"},"Welford Boat Station",52.175240000000002,-1.7918700000000001,"Below",582,13.2,2,{"$f":"IF(MasterLog[[#This Row],[Nitrates (PPM)]]>2, \"Very high\", IF(MasterLog[[#This Row],[Nitrates (PPM)]]>1, \"High\", IF(MasterLog[[#This Row],[Nitrates (PPM)]]>0.5, \"Some evidence\", IF(MasterLog[[#This Row],[Nitrates (PPM)]]=0, \"\"))))","v":"High"},0.78,{"$f":"IF(MasterLog[[#This Row],[Phosphates (PPM)]]>0.5, \"Very high\", IF(MasterLog[[#This Row],[Phosphates (PPM)]]>0.1, \"High\", IF(MasterLog[[#This Row],[Phosphates (PPM)]]>0.05, \"Some evidence\", IF(MasterLog[[#This Row],[Phosphates (PPM)]]=0, \"\"))))","v":"Very high"},0,"2 days rain, low temps"]
[64,"12:15:00","2023-10-15","John Conchar",{"$f":"_xlfn.XLOOKUP(MasterLog[[#This Row],[Entry ID]],Fuzzy[Entry ID], Fuzzy[Test Site Number])","v":2},{"$f":"_xlfn.XLOOKUP(MasterLog[[#This Row],[Site Number]],Test_sites[Test Site Number], Test_sites[Location Name])","v":"Hampton Lucy Allotments"},"Hampton Lucy",52.211680000000001,-1.6244400000000001,"NA",586,13.1,3,{"$f":"IF(MasterLog[[#This Row],[Nitrates (PPM)]]>2, \"Very high\", IF(MasterLog[[#This Row],[Nitrates (PPM)]]>1, \"High\", IF(MasterLog[[#This Row],[Nitrates (PPM)]]>0.5, \"Some evidence\", IF(MasterLog[[#This Row],[Nitrates (PPM)]]=0, \"\"))))","v":"Very high"},0.6,{"$f":"IF(MasterLog[[#This Row],[Phosphates (PPM)]]>0.5, \"Very high\", IF(MasterLog[[#This Row],[Phosphates (PPM)]]>0.1, \"High\", IF(MasterLog[[#This Row],[Phosphates (PPM)]]>0.05, \"Some evidence\", IF(MasterLog[[#This Row],[Phosphates (PPM)]]=0, \"\"))))","v":"Very high"},0,"River up"]
[65,"10:30:00","2023-10-15","Martin Hicks",{"$f":"_xlfn.XLOOKUP(MasterLog[[#This Row],[Entry ID]],Fuzzy[Entry ID], Fuzzy[Test Site Number])","v":3},{"$f":"_xlfn.XLOOKUP(MasterLog[[#This Row],[Site Number]],Test_sites[Test Site Number], Test_sites[Location Name])","v":"Hampton Wood Nature Reserve"},"Hampton Wood",52.238149999999997,-1.6245799999999999,"Below",608,12.6,4,{"$f":"IF(MasterLog[[#This Row],[Nitrates (PPM)]]>2, \"Very high\", IF(MasterLog[[#This Row],[Nitrates (PPM)]]>1, \"High\", IF(MasterLog[[#This Row],[Nitrates (PPM)]]>0.5, \"Some evidence\", IF(MasterLog[[#This Row],[Nitrates (PPM)]]=0, \"\"))))","v":"Very high"},0.74,{"$f":"IF(MasterLog[[#This Row],[Phosphates (PPM)]]>0.5, \"Very high\", IF(MasterLog[[#This Row],[Phosphates (PPM)]]>0.1, \"High\", IF(MasterLog[[#This Row],[Phosphates (PPM)]]>0.05, \"Some evidence\", IF(MasterLog[[#This Row],[Phosphates (PPM)]]=0, \"\"))))","v":"Very high"},0,"Recent heavy rain, high river level"]
[66,"15:00:00","2023-10-16","Martin Hicks",{"$f":"_xlfn.XLOOKUP(MasterLog[[#This Row],[Entry ID]],Fuzzy[Entry ID], Fuzzy[Test Site Number])","v":9},{"$f":"_xlfn.XLOOKUP(MasterLog[[#This Row],[Site Number]],Test_sites[Test Site Number], Test_sites[Location Name])","v":"Weston on Avon"},"Weston on Avon",52.167430000000003,-1.7744800000000001,"Below",696,12,4,{"$f":"IF(MasterLog[[#This Row],[Nitrates (PPM)]]>2, \"Very high\", IF(MasterLog[[#This Row],[Nitrates (PPM)]]>1, \"High\", IF(MasterLog[[#This Row],[Nitrates (PPM)]]>0.5, \"Some evidence\", IF(MasterLog[[#This Row],[Nitrates (PPM)]]=0, \"\"))))","v":"Very high"},0.64,{"$f":"IF(MasterLog[[#This Row],[Phosphates (PPM)]]>0.5, \"Very high\", IF(MasterLog[[#This Row],[Phosphates (PPM)]]>0.1, \"High\", IF(MasterLog[[#This Row],[Phosphates (PPM)]]>0.05, \"Some evidence\", IF(MasterLog[[#This Row],[Phosphates (PPM)]]=0, \"\"))))","v":"Very high"},0,"River high"]
[67,"10:15:00","2023-10-17","Trevor Acreman",{"$f":"_xlfn.XLOOKUP(MasterLog[[#This Row],[Entry ID]],Fuzzy[Entry ID], Fuzzy[Test Site Number])","v":15},{"$f":"_xlfn.XLOOKUP(MasterLog[[#This Row],[Site Number]],Test_sites[Test Site Number], Test_sites[Location Name])","v":"Clifford Chambers"},"Clifford Chambers",52.166370000000001,-1.708032,null,599,12.6,8,{"$f":"IF(MasterLog[[#This Row],[Nitrates (PPM)]]>2, \"Very high\", IF(MasterLog[[#This Row],[Nitrates (PPM)]]>1, \"High\", IF(MasterLog[[#This Row],[Nitrates (PPM)]]>0.5, \"Some evidence\", IF(MasterLog[[#This Row],[Nitrates (PPM)]]=0, \"\"))))","v":"Very high"},0.42,{"$f":"IF(MasterLog[[#This Row],[Phosphates (PPM)]]>0.5, \"Very high\", IF(MasterLog[[#This Row],[Phosphates (PPM)]]>0.1, \"High\", IF(MasterLog[[#This Row],[Phosphates (PPM)]]>0.05, \"Some evidence\", IF(MasterLog[[#This Row],[Phosphates (PPM)]]=0, \"\"))))","v":"High"},0.5]
[68,"16:00:00","2023-10-18","Stella Khan",{"$f":"_xlfn.XLOOKUP(MasterLog[[#This Row],[Entry ID]],Fuzzy[Entry ID], Fuzzy[Test Site Number])","v":4},{"$f":"_xlfn.XLOOKUP(MasterLog[[#This Row],[Site Number]],Test_sites[Test Site Number], Test_sites[Location Name])","v":"Newbold Mill Stour"},"Mill Stour Newbold",52.112833000000002,-1.6334340000000001,"Below",674,11.7,25,{"$f":"IF(MasterLog[[#This Row],[Nitrates (PPM)]]>2, \"Very high\", IF(MasterLog[[#This Row],[Nitrates (PPM)]]>1, \"High\", IF(MasterLog[[#This Row],[Nitrates (PPM)]]>0.5, \"Some evidence\", IF(MasterLog[[#This Row],[Nitrates (PPM)]]=0, \"\"))))","v":"Very high"},0.52,{"$f":"IF(MasterLog[[#This Row],[Phosphates (PPM)]]>0.5, \"Very high\", IF(MasterLog[[#This Row],[Phosphates (PPM)]]>0.1, \"High\", IF(MasterLog[[#This Row],[Phosphates (PPM)]]>0.05, \"Some evidence\", IF(MasterLog[[#This Row],[Phosphates (PPM)]]=0, \"\"))))","v":"Very high"},2,"Wet and windy conditions"]
[69,"10:15:00","2023-10-19","Helen Carver",{"$f":"_xlfn.XLOOKUP(MasterLog[[#This Row],[Entry ID]],Fuzzy[Entry ID], Fuzzy[Test Site Number])","v":14},{"$f":"_xlfn.XLOOKUP(MasterLog[[#This Row],[Site Number]],Test_sites[Test Site Number], Test_sites[Location Name])","v":"Swillgate A38"},"Swillgate A38",null,null,"Na",542,14.6,6,{"$f":"IF(MasterLog[[#This Row],[Nitrates (PPM)]]>2, \"Very high\", IF(MasterLog[[#This Row],[Nitrates (PPM)]]>1, \"High\", IF(MasterLog[[#This Row],[Nitrates (PPM)]]>0.5, \"Some evidence\", IF(MasterLog[[#This Row],[Nitrates (PPM)]]=0, \"\"))))","v":"Very high"},0.6,{"$f":"IF(MasterLog[[#This Row],[Phosphates (PPM)]]>0.5, \"Very high\", IF(MasterLog[[#This Row],[Phosphates (PPM)]]>0.1, \"High\", IF(MasterLog[[#This Row],[Phosphates (PPM)]]>0.05, \"Some evidence\", IF(MasterLog[[#This Row],[Phosphates (PPM)]]=0, \"\"))))","v":"Very high"},1,"Heavy rain night before"]
[70,"12:30:00","2023-10-19","Derek O'Rourke",{"$f":"_xlfn.XLOOKUP(MasterLog[[#This Row],[Entry ID]],Fuzzy[Entry ID], Fuzzy[Test Site Number])","v":6},{"$f":"_xlfn.XLOOKUP(MasterLog[[#This Row],[Site Number]],Test_sites[Test Site Number], Test_sites[Location Name])","v":"Preston- on- stour river bridge"},"Preston river bridge",52.146563,-1.6999219999999999,"Below",675,14.7,5,{"$f":"IF(MasterLog[[#This Row],[Nitrates (PPM)]]>2, \"Very high\", IF(MasterLog[[#This Row],[Nitrates (PPM)]]>1, \"High\", IF(MasterLog[[#This Row],[Nitrates (PPM)]]>0.5, \"Some evidence\", IF(MasterLog[[#This Row],[Nitrates (PPM)]]=0, \"\"))))","v":"Very high"},0.61,{"$f":"IF(MasterLog[[#This Row],[Phosphates (PPM)]]>0.5, \"Very high\", IF(MasterLog[[#This Row],[Phosphates (PPM)]]>0.1, \"High\", IF(MasterLog[[#This Row],[Phosphates (PPM)]]>0.05, \"Some evidence\", IF(MasterLog[[#This Row],[Phosphates (PPM)]]=0, \"\"))))","v":"Very high"},1.5,"Fairly consistant overnight rain"]
[71,"11:15:00","2023-10-21","Richard Thomas",{"$f":"_xlfn.XLOOKUP(MasterLog[[#This Row],[Entry ID]],Fuzzy[Entry ID], Fuzzy[Test Site Number])","v":7},{"$f":"_xlfn.XLOOKUP(MasterLog[[#This Row],[Site Number]],Test_sites[Test Site Number], Test_sites[Location Name])","v":"Avonbank Drive"},"Avonbank",null,null,"Above",454,14.7,10,{"$f":"IF(MasterLog[[#This Row],[Nitrates (PPM)]]>2, \"Very high\", IF(MasterLog[[#This Row],[Nitrates (PPM)]]>1, \"High\", IF(MasterLog[[#This Row],[Nitrates (PPM)]]>0.5, \"Some evidence\", IF(MasterLog[[#This Row],[Nitrates (PPM)]]=0, \"\"))))","v":"Very high"},1.1000000000000001,{"$f":"IF(MasterLog[[#This Row],[Phosphates (PPM)]]>0.5, \"Very high\", IF(MasterLog[[#This Row],[Phosphates (PPM)]]>0.1, \"High\", IF(MasterLog[[#This Row],[Phosphates (PPM)]]>0.05, \"Some evidence\", IF(MasterLog[[#This Row],[Phosphates (PPM)]]=0, \"\"))))","v":"Very high"},1.1000000000000001,"River in flood, rainfall 60 mm in week up to 21/10 (my measurement close to sampling point"]
[72,"15:45:00","2023-10-21","Geoff",{"$f":"_xlfn.XLOOKUP(MasterLog[[#This Row],[Entry ID]],Fuzzy[Entry ID], Fuzzy[Test Site Number])","v":13},{"$f":"_xlfn.XLOOKUP(MasterLog[[#This Row],[Site Number]],Test_sites[Test Site Number], Test_sites[Location Name])","v":"Abbey mill"},"Abbey mill",null,null,"Na",435,15.3,4,{"$f":"IF(MasterLog[[#This Row],[Nitrates (PPM)]]>2, \"Very high\", IF(MasterLog[[#This Row],[Nitrates (PPM)]]>1, \"High\", IF(MasterLog[[#This Row],[Nitrates (PPM)]]>0.5, \"Some evidence\", IF(MasterLog[[#This Row],[Nitrates (PPM)]]=0, \"\"))))","v":"Very high"},1.1499999999999999,{"$f":"IF(MasterLog[[#This Row],[Phosphates (PPM)]]>0.5, \"Very high\", IF(MasterLog[[#This Row],[Phosphates (PPM)]]>0.1, \"High\", IF(MasterLog[[#This Row],[Phosphates (PPM)]]>0.05, \"Some evidence\", IF(MasterLog[[#This Row],[Phosphates (PPM)]]=0, \"\"))))","v":"Very high"},2,"Cloudy with heavy flooding"]
[73,"12:30:00","2023-10-22","John Conchar",{"$f":"_xlfn.XLOOKUP(MasterLog[[#This Row],[Entry ID]],Fuzzy[Entry ID], Fuzzy[Test Site Number])","v":2},{"$f":"_xlfn.XLOOKUP(MasterLog[[#This Row],[Site Number]],Test_sites[Test Site Number], Test_sites[Location Name])","v":"Hampton Lucy Allotments"},"Hampton Lucy",52.211680000000001,-1.6244400000000001,"NA",506,12.5,2,{"$f":"IF(MasterLog[[#This Row],[Nitrates (PPM)]]>2, \"Very high\", IF(MasterLog[[#This Row],[Nitrates (PPM)]]>1, \"High\", IF(MasterLog[[#This Row],[Nitrates (PPM)]]>0.5, \"Some evidence\", IF(MasterLog[[#This Row],[Nitrates (PPM)]]=0, \"\"))))","v":"High"},0.74,{"$f":"IF(MasterLog[[#This Row],[Phosphates (PPM)]]>0.5, \"Very high\", IF(MasterLog[[#This Row],[Phosphates (PPM)]]>0.1, \"High\", IF(MasterLog[[#This Row],[Phosphates (PPM)]]>0.05, \"Some evidence\", IF(MasterLog[[#This Row],[Phosphates (PPM)]]=0, \"\"))))","v":"Very high"},0]
[74,"10:40:00","2023-10-22","Martin Hicks",{"$f":"_xlfn.XLOOKUP(MasterLog[[#This Row],[Entry ID]],Fuzzy[Entry ID], Fuzzy[Test Site Number])","v":3},{"$f":"_xlfn.XLOOKUP(MasterLog[[#This Row],[Site Number]],Test_sites[Test Site Number], Test_sites[Location Name])","v":"Hampton Wood Nature Reserve"},"Hampton Wood",52.238149999999997,-1.6245799999999999,"below",530,11.5,3,{"$f":"IF(MasterLog[[#This Row],[Nitrates (PPM)]]>2, \"Very high\", IF(MasterLog[[#This Row],[Nitrates (PPM)]]>1, \"High\", IF(MasterLog[[#This Row],[Nitrates (PPM)]]>0.5, \"Some evidence\", IF(MasterLog[[#This Row],[Nitrates (PPM)]]=0, \"\"))))","v":"Very high"},0.73,{"$f":"IF(MasterLog[[#This Row],[Phosphates (PPM)]]>0.5, \"Very high\", IF(MasterLog[[#This Row],[Phosphates (PPM)]]>0.1, \"High\", IF(MasterLog[[#This Row],[Phosphates (PPM)]]>0.05, \"Some evidence\", IF(MasterLog[[#This Row],[Phosphates (PPM)]]=0, \"\"))))","v":"Very high"},0,"heavy rain, river high"]
[75,"17:11:00","2023-10-22","Trevor Acreman",{"$f":"_xlfn.XLOOKUP(MasterLog[[#This Row],[Entry ID]],Fuzzy[Entry ID], Fuzzy[Test Site Number])","v":15},{"$f":"_xlfn.XLOOKUP(MasterLog[[#This Row],[Site Number]],Test_sites[Test Site Number], Test_sites[Location Name])","v":"Clifford Chambers"},"Clifford Chambers mill bridge",52.166370000000001,-1.708032,null,521,14.5,5,{"$f":"IF(MasterLog[[#This Row],[Nitrates (PPM)]]>2, \"Very high\", IF(MasterLog[[#This Row],[Nitrates (PPM)]]>1, \"High\", IF(MasterLog[[#This Row],[Nitrates (PPM)]]>0.5, \"Some evidence\", IF(MasterLog[[#This Row],[Nitrates (PPM)]]=0, \"\"))))","v":"Very high"},0.28000000000000003,{"$f":"IF(MasterLog[[#This Row],[Phosphates (PPM)]]>0.5, \"Very high\", IF(MasterLog[[#This Row],[Phosphates (PPM)]]>0.1, \"High\", IF(MasterLog[[#This Row],[Phosphates (PPM)]]>0.05, \"Some evidence\", IF(MasterLog[[#This Row],[Phosphates (PPM)]]=0, \"\"))))","v":"High"},1.25,"River was in flood previous 2 days"]
[76,"15:30:00","2023-10-24","Martin Hicks",{"$f":"_xlfn.XLOOKUP(MasterLog[[#This Row],[Entry ID]],Fuzzy[Entry ID], Fuzzy[Test Site Number])","v":9},{"$f":"_xlfn.XLOOKUP(MasterLog[[#This Row],[Site Number]],Test_sites[Test Site Number], Test_sites[Location Name])","v":"Weston on Avon"},"Weston on Avon",52.167430000000003,-1.7744800000000001,"below",632,13,4,{"$f":"IF(MasterLog[[#This Row],[Nitrates (PPM)]]>2, \"Very high\", IF(MasterLog[[#This Row],[Nitrates (PPM)]]>1, \"High\", IF(MasterLog[[#This Row],[Nitrates (PPM)]]>0.5, \"Some evidence\", IF(MasterLog[[#This Row],[Nitrates (PPM)]]=0, \"\"))))","v":"Very high"},0.6,{"$f":"IF(MasterLog[[#This Row],[Phosphates (PPM)]]>0.5, \"Very high\", IF(MasterLog[[#This Row],[Phosphates (PPM)]]>0.1, \"High\", IF(MasterLog[[#This Row],[Phosphates (PPM)]]>0.05, \"Some evidence\", IF(MasterLog[[#This Row],[Phosphates (PPM)]]=0, \"\"))))","v":"Very high"},0]
[77,"16:00:00","2023-10-24","Stella Khan",{"$f":"_xlfn.XLOOKUP(MasterLog[[#This Row],[Entry ID]],Fuzzy[Entry ID], Fuzzy[Test Site Number])","v":4},{"$f":"_xlfn.XLOOKUP(MasterLog[[#This Row],[Site Number]],Test_sites[Test Site Number], Test_sites[Location Name])","v":"Newbold Mill Stour"},"Mill Stour Newbold",52.112869000000003,-1.633435,"Below",676,12.1,null,{"$f":"IF(MasterLog[[#This Row],[Nitrates (PPM)]]>2, \"Very high\", IF(MasterLog[[#This Row],[Nitrates (PPM)]]>1, \"High\", IF(MasterLog[[#This Row],[Nitrates (PPM)]]>0.5, \"Some evidence\", IF(MasterLog[[#This Row],[Nitrates (PPM)]]=0, \"\"))))","v":""},0.28000000000000003,{"$f":"IF(MasterLog[[#This Row],[Phosphates (PPM)]]>0.5, \"Very high\", IF(MasterLog[[#This Row],[Phosphates (PPM)]]>0.1, \"High\", IF(MasterLog[[#This Row],[Phosphates (PPM)]]>0.05, \"Some evidence\", IF(MasterLog[[#This Row],[Phosphates (PPM)]]=0, \"\"))))","v":"High"},2.5,"River levels were very high on preceding days. On the 20th Oct Shipston gauge recorded 3.2m and the Mill Stour paddock  was completely submerged. This could account for the lower phosphate levels due to dilution effect of substantial rain fall."]
[78,"09:40:00","2023-10-26","Helen Carver",{"$f":"_xlfn.XLOOKUP(MasterLog[[#This Row],[Entry ID]],Fuzzy[Entry ID], Fuzzy[Test Site Number])","v":14},{"$f":"_xlfn.XLOOKUP(MasterLog[[#This Row],[Site Number]],Test_sites[Test Site Number], Test_sites[Location Name])","v":"Swillgate A38"},"Swillgate A38",null,null,"Na",640,12.8,3,{"$f":"IF(MasterLog[[#This Row],[Nitrates (PPM)]]>2, \"Very high\", IF(MasterLog[[#This Row],[Nitrates (PPM)]]>1, \"High\", IF(MasterLog[[#This Row],[Nitrates (PPM)]]>0.5, \"Some evidence\", IF(MasterLog[[#This Row],[Nitrates (PPM)]]=0, \"\"))))","v":"Very high"},0.83,{"$f":"IF(MasterLog[[#This Row],[Phosphates (PPM)]]>0.5, \"Very high\", IF(MasterLog[[#This Row],[Phosphates (PPM)]]>0.1, \"High\", IF(MasterLog[[#This Row],[Phosphates (PPM)]]>0.05, \"Some evidence\", IF(MasterLog[[#This Row],[Phosphates (PPM)]]=0, \"\"))))","v":"Very high"},2,"Flooding"]
[79,"12:12:00","2023-10-26","Derek O'Rourke",{"$f":"_xlfn.XLOOKUP(MasterLog[[#This Row],[Entry ID]],Fuzzy[Entry ID], Fuzzy[Test Site Number])","v":6},{"$f":"_xlfn.XLOOKUP(MasterLog[[#This Row],[Site Number]],Test_sites[Test Site Number], Test_sites[Location Name])","v":"Preston- on- stour river bridge"},"Preston river bridge.",52.146653000000001,-1.699214,"Below",665,12.1,5,{"$f":"IF(MasterLog[[#This Row],[Nitrates (PPM)]]>2, \"Very high\", IF(MasterLog[[#This Row],[Nitrates (PPM)]]>1, \"High\", IF(MasterLog[[#This Row],[Nitrates (PPM)]]>0.5, \"Some evidence\", IF(MasterLog[[#This Row],[Nitrates (PPM)]]=0, \"\"))))","v":"Very high"},0.27,{"$f":"IF(MasterLog[[#This Row],[Phosphates (PPM)]]>0.5, \"Very high\", IF(MasterLog[[#This Row],[Phosphates (PPM)]]>0.1, \"High\", IF(MasterLog[[#This Row],[Phosphates (PPM)]]>0.05, \"Some evidence\", IF(MasterLog[[#This Row],[Phosphates (PPM)]]=0, \"\"))))","v":"High"},1.5,"Some heavy rain over past few days"]
[80,"12:00:00","2023-10-28","Steve G",{"$f":"_xlfn.XLOOKUP(MasterLog[[#This Row],[Entry ID]],Fuzzy[Entry ID], Fuzzy[Test Site Number])","v":1},{"$f":"_xlfn.XLOOKUP(MasterLog[[#This Row],[Site Number]],Test_sites[Test Site Number], Test_sites[Location Name])","v":"Carrant Bredon rd"},"Carrant Bredon rd",null,null,"Na",635,12.8,6,{"$f":"IF(MasterLog[[#This Row],[Nitrates (PPM)]]>2, \"Very high\", IF(MasterLog[[#This Row],[Nitrates (PPM)]]>1, \"High\", IF(MasterLog[[#This Row],[Nitrates (PPM)]]>0.5, \"Some evidence\", IF(MasterLog[[#This Row],[Nitrates (PPM)]]=0, \"\"))))","v":"Very high"},0.64,{"$f":"IF(MasterLog[[#This Row],[Phosphates (PPM)]]>0.5, \"Very high\", IF(MasterLog[[#This Row],[Phosphates (PPM)]]>0.1, \"High\", IF(MasterLog[[#This Row],[Phosphates (PPM)]]>0.05, \"Some evidence\", IF(MasterLog[[#This Row],[Phosphates (PPM)]]=0, \"\"))))","v":"Very high"},1.3,"High but falling."]
[81,"12:40:00","2023-10-29","John Conchar",{"$f":"_xlfn.XLOOKUP(MasterLog[[#This Row],[Entry ID]],Fuzzy[Entry ID], Fuzzy[Test Site Number])","v":2},{"$f":"_xlfn.XLOOKUP(MasterLog[[#This Row],[Site Number]],Test_sites[Test Site Number], Test_sites[Location Name])","v":"Hampton Lucy Allotments"},"Hampton Lucy",52.211680000000001,-1.6244400000000001,"NA",758,12.6,3.5,{"$f":"IF(MasterLog[[#This Row],[Nitrates (PPM)]]>2, \"Very high\", IF(MasterLog[[#This Row],[Nitrates (PPM)]]>1, \"High\", IF(MasterLog[[#This Row],[Nitrates (PPM)]]>0.5, \"Some evidence\", IF(MasterLog[[#This Row],[Nitrates (PPM)]]=0, \"\"))))","v":"Very high"},0.71,{"$f":"IF(MasterLog[[#This Row],[Phosphates (PPM)]]>0.5, \"Very high\", IF(MasterLog[[#This Row],[Phosphates (PPM)]]>0.1, \"High\", IF(MasterLog[[#This Row],[Phosphates (PPM)]]>0.05, \"Some evidence\", IF(MasterLog[[#This Row],[Phosphates (PPM)]]=0, \"\"))))","v":"Very high"},0]
[82,"11:15:00","2023-10-29","Martin Hicks",{"$f":"_xlfn.XLOOKUP(MasterLog[[#This Row],[Entry ID]],Fuzzy[Entry ID], Fuzzy[Test Site Number])","v":3},{"$f":"_xlfn.XLOOKUP(MasterLog[[#This Row],[Site Number]],Test_sites[Test Site Number], Test_sites[Location Name])","v":"Hampton Wood Nature Reserve"},"Hampton Wood",52.238149999999997,-1.6245799999999999,"below",754,13.1,4,{"$f":"IF(MasterLog[[#This Row],[Nitrates (PPM)]]>2, \"Very high\", IF(MasterLog[[#This Row],[Nitrates (PPM)]]>1, \"High\", IF(MasterLog[[#This Row],[Nitrates (PPM)]]>0.5, \"Some evidence\", IF(MasterLog[[#This Row],[Nitrates (PPM)]]=0, \"\"))))","v":"Very high"},0.6,{"$f":"IF(MasterLog[[#This Row],[Phosphates (PPM)]]>0.5, \"Very high\", IF(MasterLog[[#This Row],[Phosphates (PPM)]]>0.1, \"High\", IF(MasterLog[[#This Row],[Phosphates (PPM)]]>0.05, \"Some evidence\", IF(MasterLog[[#This Row],[Phosphates (PPM)]]=0, \"\"))))","v":"Very high"},0]
[83,"15:11:00","2023-10-29","Trevor Acreman",{"$f":"_xlfn.XLOOKUP(MasterLog[[#This Row],[Entry ID]],Fuzzy[Entry ID], Fuzzy[Test Site Number])","v":15},{"$f":"_xlfn.XLOOKUP(MasterLog[[#This Row],[Site Number]],Test_sites[Test Site Number], Test_sites[Location Name])","v":"Clifford Chambers"},"Clifford Chambers mill bridge",52.166370000000001,-1.708032,"Dk",416,13.4,4,{"$f":"IF(MasterLog[[#This Row],[Nitrates (PPM)]]>2, \"Very high\", IF(MasterLog[[#This Row],[Nitrates (PPM)]]>1, \"High\", IF(MasterLog[[#This Row],[Nitrates (PPM)]]>0.5, \"Some evidence\", IF(MasterLog[[#This Row],[Nitrates (PPM)]]=0, \"\"))))","v":"Very high"},0.34,{"$f":"IF(MasterLog[[#This Row],[Phosphates (PPM)]]>0.5, \"Very high\", IF(MasterLog[[#This Row],[Phosphates (PPM)]]>0.1, \"High\", IF(MasterLog[[#This Row],[Phosphates (PPM)]]>0.05, \"Some evidence\", IF(MasterLog[[#This Row],[Phosphates (PPM)]]=0, \"\"))))","v":"High"},1.8,"Rain the night before"]
[84,"15:37:00","2023-10-30","Mary Manandhar",{"$f":"_xlfn.XLOOKUP(MasterLog[[#This Row],[Entry ID]],Fuzzy[Entry ID], Fuzzy[Test Site Number])","v":20},{"$f":"_xlfn.XLOOKUP(MasterLog[[#This Row],[Site Number]],Test_sites[Test Site Number], Test_sites[Location Name])","v":"Alveston Weir"},"Alveston Weir",52.214388999999997,-1.6601520000000001,"Below",70.2,16.8,10,{"$f":"IF(MasterLog[[#This Row],[Nitrates (PPM)]]>2, \"Very high\", IF(MasterLog[[#This Row],[Nitrates (PPM)]]>1, \"High\", IF(MasterLog[[#This Row],[Nitrates (PPM)]]>0.5, \"Some evidence\", IF(MasterLog[[#This Row],[Nitrates (PPM)]]=0, \"\"))))","v":"Very high"},0.49,{"$f":"IF(MasterLog[[#This Row],[Phosphates (PPM)]]>0.5, \"Very high\", IF(MasterLog[[#This Row],[Phosphates (PPM)]]>0.1, \"High\", IF(MasterLog[[#This Row],[Phosphates (PPM)]]>0.05, \"Some evidence\", IF(MasterLog[[#This Row],[Phosphates (PPM)]]=0, \"\"))))","v":"High"},0]
[85,"14:09:00","2023-10-30","Steve Currie",{"$f":"_xlfn.XLOOKUP(MasterLog[[#This Row],[Entry ID]],Fuzzy[Entry ID], Fuzzy[Test Site Number])","v":19},{"$f":"_xlfn.XLOOKUP(MasterLog[[#This Row],[Site Number]],Test_sites[Test Site Number], Test_sites[Location Name])","v":"Swiffen Bank"},"Swiffen Bank",52.206477999999997,-1.653894,"Below",687,15,5,{"$f":"IF(MasterLog[[#This Row],[Nitrates (PPM)]]>2, \"Very high\", IF(MasterLog[[#This Row],[Nitrates (PPM)]]>1, \"High\", IF(MasterLog[[#This Row],[Nitrates (PPM)]]>0.5, \"Some evidence\", IF(MasterLog[[#This Row],[Nitrates (PPM)]]=0, \"\"))))","v":"Very high"},0.54,{"$f":"IF(MasterLog[[#This Row],[Phosphates (PPM)]]>0.5, \"Very high\", IF(MasterLog[[#This Row],[Phosphates (PPM)]]>0.1, \"High\", IF(MasterLog[[#This Row],[Phosphates (PPM)]]>0.05, \"Some evidence\", IF(MasterLog[[#This Row],[Phosphates (PPM)]]=0, \"\"))))","v":"Very high"},1]
[86,"07:05:00","2023-10-31","Geoff",{"$f":"_xlfn.XLOOKUP(MasterLog[[#This Row],[Entry ID]],Fuzzy[Entry ID], Fuzzy[Test Site Number])","v":13},{"$f":"_xlfn.XLOOKUP(MasterLog[[#This Row],[Site Number]],Test_sites[Test Site Number], Test_sites[Location Name])","v":"Abbey mill"},"Abbey mill",51.991028,-2.1625719999999999,"Na",640,13.5,10,{"$f":"IF(MasterLog[[#This Row],[Nitrates (PPM)]]>2, \"Very high\", IF(MasterLog[[#This Row],[Nitrates (PPM)]]>1, \"High\", IF(MasterLog[[#This Row],[Nitrates (PPM)]]>0.5, \"Some evidence\", IF(MasterLog[[#This Row],[Nitrates (PPM)]]=0, \"\"))))","v":"Very high"},0.41,{"$f":"IF(MasterLog[[#This Row],[Phosphates (PPM)]]>0.5, \"Very high\", IF(MasterLog[[#This Row],[Phosphates (PPM)]]>0.1, \"High\", IF(MasterLog[[#This Row],[Phosphates (PPM)]]>0.05, \"Some evidence\", IF(MasterLog[[#This Row],[Phosphates (PPM)]]=0, \"\"))))","v":"High"},1,"Falling floods, cloudy water"]
[87,"14:10:00","2023-11-01","Martin Hicks",{"$f":"_xlfn.XLOOKUP(MasterLog[[#This Row],[Entry ID]],Fuzzy[Entry ID], Fuzzy[Test Site Number])","v":9},{"$f":"_xlfn.XLOOKUP(MasterLog[[#This Row],[Site Number]],Test_sites[Test Site Number], Test_sites[Location Name])","v":"Weston on Avon"},"Weston on Avon",52.167430000000003,-1.7744800000000001,"below",800,11.6,3,{"$f":"IF(MasterLog[[#This Row],[Nitrates (PPM)]]>2, \"Very high\", IF(MasterLog[[#This Row],[Nitrates (PPM)]]>1, \"High\", IF(MasterLog[[#This Row],[Nitrates (PPM)]]>0.5, \"Some evidence\", IF(MasterLog[[#This Row],[Nitrates (PPM)]]=0, \"\"))))","v":"Very high"},0.59,{"$f":"IF(MasterLog[[#This Row],[Phosphates (PPM)]]>0.5, \"Very high\", IF(MasterLog[[#This Row],[Phosphates (PPM)]]>0.1, \"High\", IF(MasterLog[[#This Row],[Phosphates (PPM)]]>0.05, \"Some evidence\", IF(MasterLog[[#This Row],[Phosphates (PPM)]]=0, \"\"))))","v":"Very high"},0]
[88,"09:30:00","2023-11-02","Helen Carver",{"$f":"_xlfn.XLOOKUP(MasterLog[[#This Row],[Entry ID]],Fuzzy[Entry ID], Fuzzy[Test Site Number])","v":14},{"$f":"_xlfn.XLOOKUP(MasterLog[[#This Row],[Site Number]],Test_sites[Test Site Number], Test_sites[Location Name])","v":"Swillgate A38"},"Swillgate A38",null,null,"Na",895,12.2,2,{"$f":"IF(MasterLog[[#This Row],[Nitrates (PPM)]]>2, \"Very high\", IF(MasterLog[[#This Row],[Nitrates (PPM)]]>1, \"High\", IF(MasterLog[[#This Row],[Nitrates (PPM)]]>0.5, \"Some evidence\", IF(MasterLog[[#This Row],[Nitrates (PPM)]]=0, \"\"))))","v":"High"},0.48,{"$f":"IF(MasterLog[[#This Row],[Phosphates (PPM)]]>0.5, \"Very high\", IF(MasterLog[[#This Row],[Phosphates (PPM)]]>0.1, \"High\", IF(MasterLog[[#This Row],[Phosphates (PPM)]]>0.05, \"Some evidence\", IF(MasterLog[[#This Row],[Phosphates (PPM)]]=0, \"\"))))","v":"High"},1.5,"Floods"]
[89,"12:36:00","2023-11-02","Derek O'Rourke",{"$f":"_xlfn.XLOOKUP(MasterLog[[#This Row],[Entry ID]],Fuzzy[Entry ID], Fuzzy[Test Site Number])","v":6},{"$f":"_xlfn.XLOOKUP(MasterLog[[#This Row],[Site Number]],Test_sites[Test Site Number], Test_sites[Location Name])","v":"Preston- on- stour river bridge"},"Preston river bridge",52.146543000000001,-1.699527,"Below",610,11.9,5,{"$f":"IF(MasterLog[[#This Row],[Nitrates (PPM)]]>2, \"Very high\", IF(MasterLog[[#This Row],[Nitrates (PPM)]]>1, \"High\", IF(MasterLog[[#This Row],[Nitrates (PPM)]]>0.5, \"Some evidence\", IF(MasterLog[[#This Row],[Nitrates (PPM)]]=0, \"\"))))","v":"Very high"},0.21,{"$f":"IF(MasterLog[[#This Row],[Phosphates (PPM)]]>0.5, \"Very high\", IF(MasterLog[[#This Row],[Phosphates (PPM)]]>0.1, \"High\", IF(MasterLog[[#This Row],[Phosphates (PPM)]]>0.05, \"Some evidence\", IF(MasterLog[[#This Row],[Phosphates (PPM)]]=0, \"\"))))","v":"High"},2.5,"River swollen,steady rainfall overnight"]
[90,"16:00:00","2023-11-05","Chris Fox",{"$f":"_xlfn.XLOOKUP(MasterLog[[#This Row],[Entry ID]],Fuzzy[Entry ID], Fuzzy[Test Site Number])","v":10},{"$f":"_xlfn.XLOOKUP(MasterLog[[#This Row],[Site Number]],Test_sites[Test Site Number], Test_sites[Location Name])","v":"Welford Boat Station"},"Welford Boat Station",52.175240000000002,-1.7918700000000001,"below",570,10.8,2,{"$f":"IF(MasterLog[[#This Row],[Nitrates (PPM)]]>2, \"Very high\", IF(MasterLog[[#This Row],[Nitrates (PPM)]]>1, \"High\", IF(MasterLog[[#This Row],[Nitrates (PPM)]]>0.5, \"Some evidence\", IF(MasterLog[[#This Row],[Nitrates (PPM)]]=0, \"\"))))","v":"High"},0.37,{"$f":"IF(MasterLog[[#This Row],[Phosphates (PPM)]]>0.5, \"Very high\", IF(MasterLog[[#This Row],[Phosphates (PPM)]]>0.1, \"High\", IF(MasterLog[[#This Row],[Phosphates (PPM)]]>0.05, \"Some evidence\", IF(MasterLog[[#This Row],[Phosphates (PPM)]]=0, \"\"))))","v":"High"},0,"Rain - river up, brown"]
[91,"12:50:00","2023-11-05","John Conchar",{"$f":"_xlfn.XLOOKUP(MasterLog[[#This Row],[Entry ID]],Fuzzy[Entry ID], Fuzzy[Test Site Number])","v":2},{"$f":"_xlfn.XLOOKUP(MasterLog[[#This Row],[Site Number]],Test_sites[Test Site Number], Test_sites[Location Name])","v":"Hampton Lucy Allotments"},"Hampton Lucy",52.211680000000001,-1.6244400000000001,"NA",570,11.4,2,{"$f":"IF(MasterLog[[#This Row],[Nitrates (PPM)]]>2, \"Very high\", IF(MasterLog[[#This Row],[Nitrates (PPM)]]>1, \"High\", IF(MasterLog[[#This Row],[Nitrates (PPM)]]>0.5, \"Some evidence\", IF(MasterLog[[#This Row],[Nitrates (PPM)]]=0, \"\"))))","v":"High"},0.54,{"$f":"IF(MasterLog[[#This Row],[Phosphates (PPM)]]>0.5, \"Very high\", IF(MasterLog[[#This Row],[Phosphates (PPM)]]>0.1, \"High\", IF(MasterLog[[#This Row],[Phosphates (PPM)]]>0.05, \"Some evidence\", IF(MasterLog[[#This Row],[Phosphates (PPM)]]=0, \"\"))))","v":"Very high"},0]
[92,"11:45:00","2023-11-05","Martin Hicks",{"$f":"_xlfn.XLOOKUP(MasterLog[[#This Row],[Entry ID]],Fuzzy[Entry ID], Fuzzy[Test Site Number])","v":3},{"$f":"_xlfn.XLOOKUP(MasterLog[[#This Row],[Site Number]],Test_sites[Test Site Number], Test_sites[Location Name])","v":"Hampton Wood Nature Reserve"},"Hampton Wood",52.238149999999997,-1.6245799999999999,"below",568,11.1,3,{"$f":"IF(MasterLog[[#This Row],[Nitrates (PPM)]]>2, \"Very high\", IF(MasterLog[[#This Row],[Nitrates (PPM)]]>1, \"High\", IF(MasterLog[[#This Row],[Nitrates (PPM)]]>0.5, \"Some evidence\", IF(MasterLog[[#This Row],[Nitrates (PPM)]]=0, \"\"))))","v":"Very high"},0.55000000000000004,{"$f":"IF(MasterLog[[#This Row],[Phosphates (PPM)]]>0.5, \"Very high\", IF(MasterLog[[#This Row],[Phosphates (PPM)]]>0.1, \"High\", IF(MasterLog[[#This Row],[Phosphates (PPM)]]>0.05, \"Some evidence\", IF(MasterLog[[#This Row],[Phosphates (PPM)]]=0, \"\"))))","v":"Very high"},0,"river high"]
[93,"15:11:00","2023-11-05","Trevor Acreman",{"$f":"_xlfn.XLOOKUP(MasterLog[[#This Row],[Entry ID]],Fuzzy[Entry ID], Fuzzy[Test Site Number])","v":15},{"$f":"_xlfn.XLOOKUP(MasterLog[[#This Row],[Site Number]],Test_sites[Test Site Number], Test_sites[Location Name])","v":"Clifford Chambers"},"Clifford Chambers mill bridge",52.166037000000003,1.708032,"Dk",486,12,7,{"$f":"IF(MasterLog[[#This Row],[Nitrates (PPM)]]>2, \"Very high\", IF(MasterLog[[#This Row],[Nitrates (PPM)]]>1, \"High\", IF(MasterLog[[#This Row],[Nitrates (PPM)]]>0.5, \"Some evidence\", IF(MasterLog[[#This Row],[Nitrates (PPM)]]=0, \"\"))))","v":"Very high"},0.42,{"$f":"IF(MasterLog[[#This Row],[Phosphates (PPM)]]>0.5, \"Very high\", IF(MasterLog[[#This Row],[Phosphates (PPM)]]>0.1, \"High\", IF(MasterLog[[#This Row],[Phosphates (PPM)]]>0.05, \"Some evidence\", IF(MasterLog[[#This Row],[Phosphates (PPM)]]=0, \"\"))))","v":"High"},1.7,"Rain day before"]
[94,"12:30:00","2023-11-05","Steve G",{"$f":"_xlfn.XLOOKUP(MasterLog[[#This Row],[Entry ID]],Fuzzy[Entry ID], Fuzzy[Test Site Number])","v":1},{"$f":"_xlfn.XLOOKUP(MasterLog[[#This Row],[Site Number]],Test_sites[Test Site Number], Test_sites[Location Name])","v":"Carrant Bredon rd"},"Carrant Bredon rd",null,null,"Na",738,11.7,6,{"$f":"IF(MasterLog[[#This Row],[Nitrates (PPM)]]>2, \"Very high\", IF(MasterLog[[#This Row],[Nitrates (PPM)]]>1, \"High\", IF(MasterLog[[#This Row],[Nitrates (PPM)]]>0.5, \"Some evidence\", IF(MasterLog[[#This Row],[Nitrates (PPM)]]=0, \"\"))))","v":"Very high"},0.32,{"$f":"IF(MasterLog[[#This Row],[Phosphates (PPM)]]>0.5, \"Very high\", IF(MasterLog[[#This Row],[Phosphates (PPM)]]>0.1, \"High\", IF(MasterLog[[#This Row],[Phosphates (PPM)]]>0.05, \"Some evidence\", IF(MasterLog[[#This Row],[Phosphates (PPM)]]=0, \"\"))))","v":"High"},1,"Flood, noticeable current"]
[95,"11:45:00","2023-11-05","Richard Thomas",{"$f":"_xlfn.XLOOKUP(MasterLog[[#This Row],[Entry ID]],Fuzzy[Entry ID], Fuzzy[Test Site Number])","v":7},{"$f":"_xlfn.XLOOKUP(MasterLog[[#This Row],[Site Number]],Test_sites[Test Site Number], Test_sites[Location Name])","v":"Avonbank Drive"},"Avonbank",null,null,"Above",570,12.5,5,{"$f":"IF(MasterLog[[#This Row],[Nitrates (PPM)]]>2, \"Very high\", IF(MasterLog[[#This Row],[Nitrates (PPM)]]>1, \"High\", IF(MasterLog[[#This Row],[Nitrates (PPM)]]>0.5, \"Some evidence\", IF(MasterLog[[#This Row],[Nitrates (PPM)]]=0, \"\"))))","v":"Very high"},1.06,{"$f":"IF(MasterLog[[#This Row],[Phosphates (PPM)]]>0.5, \"Very high\", IF(MasterLog[[#This Row],[Phosphates (PPM)]]>0.1, \"High\", IF(MasterLog[[#This Row],[Phosphates (PPM)]]>0.05, \"Some evidence\", IF(MasterLog[[#This Row],[Phosphates (PPM)]]=0, \"\"))))","v":"Very high"},1,"River height 0.99m. CSO gushing visibly as river level is above its outflow."]
[96,"11:15:00","2023-11-05","Richard Thomas",{"$f":"_xlfn.XLOOKUP(MasterLog[[#This Row],[Entry ID]],Fuzzy[Entry ID], Fuzzy[Test Site Number])","v":8},{"$f":"_xlfn.XLOOKUP(MasterLog[[#This Row],[Site Number]],Test_sites[Test Site Number], Test_sites[Location Name])","v":"Pitch 16"},"Pitch16",null,null,"Below",565,12.5,5,{"$f":"IF(MasterLog[[#This Row],[Nitrates (PPM)]]>2, \"Very high\", IF(MasterLog[[#This Row],[Nitrates (PPM)]]>1, \"High\", IF(MasterLog[[#This Row],[Nitrates (PPM)]]>0.5, \"Some evidence\", IF(MasterLog[[#This Row],[Nitrates (PPM)]]=0, \"\"))))","v":"Very high"},1.35,{"$f":"IF(MasterLog[[#This Row],[Phosphates (PPM)]]>0.5, \"Very high\", IF(MasterLog[[#This Row],[Phosphates (PPM)]]>0.1, \"High\", IF(MasterLog[[#This Row],[Phosphates (PPM)]]>0.05, \"Some evidence\", IF(MasterLog[[#This Row],[Phosphates (PPM)]]=0, \"\"))))","v":"Very high"},1]
[97,"09:10:00","2023-11-05","Geoff",{"$f":"_xlfn.XLOOKUP(MasterLog[[#This Row],[Entry ID]],Fuzzy[Entry ID], Fuzzy[Test Site Number])","v":13},{"$f":"_xlfn.XLOOKUP(MasterLog[[#This Row],[Site Number]],Test_sites[Test Site Number], Test_sites[Location Name])","v":"Abbey mill"},"Abbey mill",null,null,"Na",623,13.4,9,{"$f":"IF(MasterLog[[#This Row],[Nitrates (PPM)]]>2, \"Very high\", IF(MasterLog[[#This Row],[Nitrates (PPM)]]>1, \"High\", IF(MasterLog[[#This Row],[Nitrates (PPM)]]>0.5, \"Some evidence\", IF(MasterLog[[#This Row],[Nitrates (PPM)]]=0, \"\"))))","v":"Very high"},1.07,{"$f":"IF(MasterLog[[#This Row],[Phosphates (PPM)]]>0.5, \"Very high\", IF(MasterLog[[#This Row],[Phosphates (PPM)]]>0.1, \"High\", IF(MasterLog[[#This Row],[Phosphates (PPM)]]>0.05, \"Some evidence\", IF(MasterLog[[#This Row],[Phosphates (PPM)]]=0, \"\"))))","v":"Very high"},2,"Floods"]
[98,"15:45:00","2023-11-07","Martin Hicks",{"$f":"_xlfn.XLOOKUP(MasterLog[[#This Row],[Entry ID]],Fuzzy[Entry ID], Fuzzy[Test Site Number])","v":9},{"$f":"_xlfn.XLOOKUP(MasterLog[[#This Row],[Site Number]],Test_sites[Test Site Number], Test_sites[Location Name])","v":"Weston on Avon"},"Weston on Avon",52.167430000000003,-1.7744800000000001,"below",664,10.7,3,{"$f":"IF(MasterLog[[#This Row],[Nitrates (PPM)]]>2, \"Very high\", IF(MasterLog[[#This Row],[Nitrates (PPM)]]>1, \"High\", IF(MasterLog[[#This Row],[Nitrates (PPM)]]>0.5, \"Some evidence\", IF(MasterLog[[#This Row],[Nitrates (PPM)]]=0, \"\"))))","v":"Very high"},0.43,{"$f":"IF(MasterLog[[#This Row],[Phosphates (PPM)]]>0.5, \"Very high\", IF(MasterLog[[#This Row],[Phosphates (PPM)]]>0.1, \"High\", IF(MasterLog[[#This Row],[Phosphates (PPM)]]>0.05, \"Some evidence\", IF(MasterLog[[#This Row],[Phosphates (PPM)]]=0, \"\"))))","v":"High"},0]
[99,"15:05:00","2023-11-07","Renny Wodynska",{"$f":"_xlfn.XLOOKUP(MasterLog[[#This Row],[Entry ID]],Fuzzy[Entry ID], Fuzzy[Test Site Number])","v":19},{"$f":"_xlfn.XLOOKUP(MasterLog[[#This Row],[Site Number]],Test_sites[Test Site Number], Test_sites[Location Name])","v":"Swiffen Bank"},"Swiffen Bank",52.206339,-1.6550020000000001,"Below",561,15,5,{"$f":"IF(MasterLog[[#This Row],[Nitrates (PPM)]]>2, \"Very high\", IF(MasterLog[[#This Row],[Nitrates (PPM)]]>1, \"High\", IF(MasterLog[[#This Row],[Nitrates (PPM)]]>0.5, \"Some evidence\", IF(MasterLog[[#This Row],[Nitrates (PPM)]]=0, \"\"))))","v":"Very high"},0.42,{"$f":"IF(MasterLog[[#This Row],[Phosphates (PPM)]]>0.5, \"Very high\", IF(MasterLog[[#This Row],[Phosphates (PPM)]]>0.1, \"High\", IF(MasterLog[[#This Row],[Phosphates (PPM)]]>0.05, \"Some evidence\", IF(MasterLog[[#This Row],[Phosphates (PPM)]]=0, \"\"))))","v":"High"},2,"River starting to recede after overflowing following heavy rain"]
[100,"15:00:00","2023-11-07","Steve Currie",{"$f":"_xlfn.XLOOKUP(MasterLog[[#This Row],[Entry ID]],Fuzzy[Entry ID], Fuzzy[Test Site Number])","v":20},{"$f":"_xlfn.XLOOKUP(MasterLog[[#This Row],[Site Number]],Test_sites[Test Site Number], Test_sites[Location Name])","v":"Alveston Weir"},"Alveston Weir",52.214388999999997,-1.6601520000000001,"Below",652,15.5,5,{"$f":"IF(MasterLog[[#This Row],[Nitrates (PPM)]]>2, \"Very high\", IF(MasterLog[[#This Row],[Nitrates (PPM)]]>1, \"High\", IF(MasterLog[[#This Row],[Nitrates (PPM)]]>0.5, \"Some evidence\", IF(MasterLog[[#This Row],[Nitrates (PPM)]]=0, \"\"))))","v":"Very high"},0.41,{"$f":"IF(MasterLog[[#This Row],[Phosphates (PPM)]]>0.5, \"Very high\", IF(MasterLog[[#This Row],[Phosphates (PPM)]]>0.1, \"High\", IF(MasterLog[[#This Row],[Phosphates (PPM)]]>0.05, \"Some evidence\", IF(MasterLog[[#This Row],[Phosphates (PPM)]]=0, \"\"))))","v":"High"},1,"No rain for 3 days, flood susiding"]
[101,"16:00:00","2023-11-08","Stella Khan",{"$f":"_xlfn.XLOOKUP(MasterLog[[#This Row],[Entry ID]],Fuzzy[Entry ID], Fuzzy[Test Site Number])","v":4},{"$f":"_xlfn.XLOOKUP(MasterLog[[#This Row],[Site Number]],Test_sites[Test Site Number], Test_sites[Location Name])","v":"Newbold Mill Stour"},"Newbold Mill Stour",52.112864999999999,-1.6334340000000001,"Below",854,10.3,25,{"$f":"IF(MasterLog[[#This Row],[Nitrates (PPM)]]>2, \"Very high\", IF(MasterLog[[#This Row],[Nitrates (PPM)]]>1, \"High\", IF(MasterLog[[#This Row],[Nitrates (PPM)]]>0.5, \"Some evidence\", IF(MasterLog[[#This Row],[Nitrates (PPM)]]=0, \"\"))))","v":"Very high"},0.26,{"$f":"IF(MasterLog[[#This Row],[Phosphates (PPM)]]>0.5, \"Very high\", IF(MasterLog[[#This Row],[Phosphates (PPM)]]>0.1, \"High\", IF(MasterLog[[#This Row],[Phosphates (PPM)]]>0.05, \"Some evidence\", IF(MasterLog[[#This Row],[Phosphates (PPM)]]=0, \"\"))))","v":"High"},2.5,"Overcast. Raining preceding day"]
[102,"09:30:00","2023-11-09","Helen Carver",{"$f":"_xlfn.XLOOKUP(MasterLog[[#This Row],[Entry ID]],Fuzzy[Entry ID], Fuzzy[Test Site Number])","v":14},{"$f":"_xlfn.XLOOKUP(MasterLog[[#This Row],[Site Number]],Test_sites[Test Site Number], Test_sites[Location Name])","v":"Swillgate A38"},"Swillgate A38",null,null,"Na",836,12,4,{"$f":"IF(MasterLog[[#This Row],[Nitrates (PPM)]]>2, \"Very high\", IF(MasterLog[[#This Row],[Nitrates (PPM)]]>1, \"High\", IF(MasterLog[[#This Row],[Nitrates (PPM)]]>0.5, \"Some evidence\", IF(MasterLog[[#This Row],[Nitrates (PPM)]]=0, \"\"))))","v":"Very high"},0.42,{"$f":"IF(MasterLog[[#This Row],[Phosphates (PPM)]]>0.5, \"Very high\", IF(MasterLog[[#This Row],[Phosphates (PPM)]]>0.1, \"High\", IF(MasterLog[[#This Row],[Phosphates (PPM)]]>0.05, \"Some evidence\", IF(MasterLog[[#This Row],[Phosphates (PPM)]]=0, \"\"))))","v":"High"},1]
[103,"17:06:00","2023-11-09","Olivia Hatch",{"$f":"_xlfn.XLOOKUP(MasterLog[[#This Row],[Entry ID]],Fuzzy[Entry ID], Fuzzy[Test Site Number])","v":23},{"$f":"_xlfn.XLOOKUP(MasterLog[[#This Row],[Site Number]],Test_sites[Test Site Number], Test_sites[Location Name])","v":"Cherington"},"Stour, Cherington, bridge next to treatment plant",52.030172999999998,-1.5791440000000001,"N/a",295,10.7,null,{"$f":"IF(MasterLog[[#This Row],[Nitrates (PPM)]]>2, \"Very high\", IF(MasterLog[[#This Row],[Nitrates (PPM)]]>1, \"High\", IF(MasterLog[[#This Row],[Nitrates (PPM)]]>0.5, \"Some evidence\", IF(MasterLog[[#This Row],[Nitrates (PPM)]]=0, \"\"))))","v":""},0.18,{"$f":"IF(MasterLog[[#This Row],[Phosphates (PPM)]]>0.5, \"Very high\", IF(MasterLog[[#This Row],[Phosphates (PPM)]]>0.1, \"High\", IF(MasterLog[[#This Row],[Phosphates (PPM)]]>0.05, \"Some evidence\", IF(MasterLog[[#This Row],[Phosphates (PPM)]]=0, \"\"))))","v":"High"},0.5,"Heavy rainfall"]
[104,"16:02:00","2023-11-09","Olivia Hatch",{"$f":"_xlfn.XLOOKUP(MasterLog[[#This Row],[Entry ID]],Fuzzy[Entry ID], Fuzzy[Test Site Number])","v":17},{"$f":"_xlfn.XLOOKUP(MasterLog[[#This Row],[Site Number]],Test_sites[Test Site Number], Test_sites[Location Name])","v":"Shipston-on-Stour"},"Stour, Shipston, Mill bridge",52.062030999999998,-1.6221080000000001,"N/a",585,10.199999999999999,10,{"$f":"IF(MasterLog[[#This Row],[Nitrates (PPM)]]>2, \"Very high\", IF(MasterLog[[#This Row],[Nitrates (PPM)]]>1, \"High\", IF(MasterLog[[#This Row],[Nitrates (PPM)]]>0.5, \"Some evidence\", IF(MasterLog[[#This Row],[Nitrates (PPM)]]=0, \"\"))))","v":"Very high"},0.3,{"$f":"IF(MasterLog[[#This Row],[Phosphates (PPM)]]>0.5, \"Very high\", IF(MasterLog[[#This Row],[Phosphates (PPM)]]>0.1, \"High\", IF(MasterLog[[#This Row],[Phosphates (PPM)]]>0.05, \"Some evidence\", IF(MasterLog[[#This Row],[Phosphates (PPM)]]=0, \"\"))))","v":"High"},1.5,"Heavy rainfall"]
[105,"13:45:00","2023-11-09","Derek O'Rourke",{"$f":"_xlfn.XLOOKUP(MasterLog[[#This Row],[Entry ID]],Fuzzy[Entry ID], Fuzzy[Test Site Number])","v":6},{"$f":"_xlfn.XLOOKUP(MasterLog[[#This Row],[Site Number]],Test_sites[Test Site Number], Test_sites[Location Name])","v":"Preston- on- stour river bridge"},"Preston river bridge",52.146470999999998,-1.6997869999999999,"Below",612,10.3,5,{"$f":"IF(MasterLog[[#This Row],[Nitrates (PPM)]]>2, \"Very high\", IF(MasterLog[[#This Row],[Nitrates (PPM)]]>1, \"High\", IF(MasterLog[[#This Row],[Nitrates (PPM)]]>0.5, \"Some evidence\", IF(MasterLog[[#This Row],[Nitrates (PPM)]]=0, \"\"))))","v":"Very high"},0.25,{"$f":"IF(MasterLog[[#This Row],[Phosphates (PPM)]]>0.5, \"Very high\", IF(MasterLog[[#This Row],[Phosphates (PPM)]]>0.1, \"High\", IF(MasterLog[[#This Row],[Phosphates (PPM)]]>0.05, \"Some evidence\", IF(MasterLog[[#This Row],[Phosphates (PPM)]]=0, \"\"))))","v":"High"},1.75,"River level fairly high"]
[106,"10:05:00","2023-11-11","Geoff",{"$f":"_xlfn.XLOOKUP(MasterLog[[#This Row],[Entry ID]],Fuzzy[Entry ID], Fuzzy[Test Site Number])","v":13},{"$f":"_xlfn.XLOOKUP(MasterLog[[#This Row],[Site Number]],Test_sites[Test Site Number], Test_sites[Location Name])","v":"Abbey mill"},"Abbey mill",null,null,"Na",718,10.6,7,{"$f":"IF(MasterLog[[#This Row],[Nitrates (PPM)]]>2, \"Very high\", IF(MasterLog[[#This Row],[Nitrates (PPM)]]>1, \"High\", IF(MasterLog[[#This Row],[Nitrates (PPM)]]>0.5, \"Some evidence\", IF(MasterLog[[#This Row],[Nitrates (PPM)]]=0, \"\"))))","v":"Very high"},0.59,{"$f":"IF(MasterLog[[#This Row],[Phosphates (PPM)]]>0.5, \"Very high\", IF(MasterLog[[#This Row],[Phosphates (PPM)]]>0.1, \"High\", IF(MasterLog[[#This Row],[Phosphates (PPM)]]>0.05, \"Some evidence\", IF(MasterLog[[#This Row],[Phosphates (PPM)]]=0, \"\"))))","v":"Very high"},1]
[107,"16:00:00","2023-11-12","Chris Fox",{"$f":"_xlfn.XLOOKUP(MasterLog[[#This Row],[Entry ID]],Fuzzy[Entry ID], Fuzzy[Test Site Number])","v":10},{"$f":"_xlfn.XLOOKUP(MasterLog[[#This Row],[Site Number]],Test_sites[Test Site Number], Test_sites[Location Name])","v":"Welford Boat Station"},"Welford Boat Station",52.175240000000002,-1.7918700000000001,"below",808,9.1999999999999993,8,{"$f":"IF(MasterLog[[#This Row],[Nitrates (PPM)]]>2, \"Very high\", IF(MasterLog[[#This Row],[Nitrates (PPM)]]>1, \"High\", IF(MasterLog[[#This Row],[Nitrates (PPM)]]>0.5, \"Some evidence\", IF(MasterLog[[#This Row],[Nitrates (PPM)]]=0, \"\"))))","v":"Very high"},0.48,{"$f":"IF(MasterLog[[#This Row],[Phosphates (PPM)]]>0.5, \"Very high\", IF(MasterLog[[#This Row],[Phosphates (PPM)]]>0.1, \"High\", IF(MasterLog[[#This Row],[Phosphates (PPM)]]>0.05, \"Some evidence\", IF(MasterLog[[#This Row],[Phosphates (PPM)]]=0, \"\"))))","v":"High"},0,"wet - river up, slow flow"]
[108,"12:15:00","2023-11-12","John Conchar",{"$f":"_xlfn.XLOOKUP(MasterLog[[#This Row],[Entry ID]],Fuzzy[Entry ID], Fuzzy[Test Site Number])","v":2},{"$f":"_xlfn.XLOOKUP(MasterLog[[#This Row],[Site Number]],Test_sites[Test Site Number], Test_sites[Location Name])","v":"Hampton Lucy Allotments"},"Hampton Lucy",52.211680000000001,-1.6244400000000001,"NA",812,9.4,5,{"$f":"IF(MasterLog[[#This Row],[Nitrates (PPM)]]>2, \"Very high\", IF(MasterLog[[#This Row],[Nitrates (PPM)]]>1, \"High\", IF(MasterLog[[#This Row],[Nitrates (PPM)]]>0.5, \"Some evidence\", IF(MasterLog[[#This Row],[Nitrates (PPM)]]=0, \"\"))))","v":"Very high"},0.9,{"$f":"IF(MasterLog[[#This Row],[Phosphates (PPM)]]>0.5, \"Very high\", IF(MasterLog[[#This Row],[Phosphates (PPM)]]>0.1, \"High\", IF(MasterLog[[#This Row],[Phosphates (PPM)]]>0.05, \"Some evidence\", IF(MasterLog[[#This Row],[Phosphates (PPM)]]=0, \"\"))))","v":"Very high"},0]
[109,"11:30:00","2023-11-12","Martin Hicks",{"$f":"_xlfn.XLOOKUP(MasterLog[[#This Row],[Entry ID]],Fuzzy[Entry ID], Fuzzy[Test Site Number])","v":3},{"$f":"_xlfn.XLOOKUP(MasterLog[[#This Row],[Site Number]],Test_sites[Test Site Number], Test_sites[Location Name])","v":"Hampton Wood Nature Reserve"},"Hampton Wood",52.238149999999997,-1.6245799999999999,"below",822,9,7,{"$f":"IF(MasterLog[[#This Row],[Nitrates (PPM)]]>2, \"Very high\", IF(MasterLog[[#This Row],[Nitrates (PPM)]]>1, \"High\", IF(MasterLog[[#This Row],[Nitrates (PPM)]]>0.5, \"Some evidence\", IF(MasterLog[[#This Row],[Nitrates (PPM)]]=0, \"\"))))","v":"Very high"},0.53,{"$f":"IF(MasterLog[[#This Row],[Phosphates (PPM)]]>0.5, \"Very high\", IF(MasterLog[[#This Row],[Phosphates (PPM)]]>0.1, \"High\", IF(MasterLog[[#This Row],[Phosphates (PPM)]]>0.05, \"Some evidence\", IF(MasterLog[[#This Row],[Phosphates (PPM)]]=0, \"\"))))","v":"Very high"},0]
[110,"11:10:00","2023-11-12","Paul Fairburn",{"$f":"_xlfn.XLOOKUP(MasterLog[[#This Row],[Entry ID]],Fuzzy[Entry ID], Fuzzy[Test Site Number])","v":7},{"$f":"_xlfn.XLOOKUP(MasterLog[[#This Row],[Site Number]],Test_sites[Test Site Number], Test_sites[Location Name])","v":"Avonbank Drive"},"Avonbank drive",52.177214999999997,-1.7357640000000001,"Above",855,9.3000000000000007,5,{"$f":"IF(MasterLog[[#This Row],[Nitrates (PPM)]]>2, \"Very high\", IF(MasterLog[[#This Row],[Nitrates (PPM)]]>1, \"High\", IF(MasterLog[[#This Row],[Nitrates (PPM)]]>0.5, \"Some evidence\", IF(MasterLog[[#This Row],[Nitrates (PPM)]]=0, \"\"))))","v":"Very high"},0.61,{"$f":"IF(MasterLog[[#This Row],[Phosphates (PPM)]]>0.5, \"Very high\", IF(MasterLog[[#This Row],[Phosphates (PPM)]]>0.1, \"High\", IF(MasterLog[[#This Row],[Phosphates (PPM)]]>0.05, \"Some evidence\", IF(MasterLog[[#This Row],[Phosphates (PPM)]]=0, \"\"))))","v":"Very high"},0.75]
[111,"10:43:00","2023-11-12","Paul Fairburn",{"$f":"_xlfn.XLOOKUP(MasterLog[[#This Row],[Entry ID]],Fuzzy[Entry ID], Fuzzy[Test Site Number])","v":8},{"$f":"_xlfn.XLOOKUP(MasterLog[[#This Row],[Site Number]],Test_sites[Test Site Number], Test_sites[Location Name])","v":"Pitch 16"},"Pitch 16",52.172566000000003,-1.745363,"Below",816,10.199999999999999,5,{"$f":"IF(MasterLog[[#This Row],[Nitrates (PPM)]]>2, \"Very high\", IF(MasterLog[[#This Row],[Nitrates (PPM)]]>1, \"High\", IF(MasterLog[[#This Row],[Nitrates (PPM)]]>0.5, \"Some evidence\", IF(MasterLog[[#This Row],[Nitrates (PPM)]]=0, \"\"))))","v":"Very high"},0.51,{"$f":"IF(MasterLog[[#This Row],[Phosphates (PPM)]]>0.5, \"Very high\", IF(MasterLog[[#This Row],[Phosphates (PPM)]]>0.1, \"High\", IF(MasterLog[[#This Row],[Phosphates (PPM)]]>0.05, \"Some evidence\", IF(MasterLog[[#This Row],[Phosphates (PPM)]]=0, \"\"))))","v":"Very high"},0.75]
[112,"12:45:00","2023-11-13","Trevor Acreman",{"$f":"_xlfn.XLOOKUP(MasterLog[[#This Row],[Entry ID]],Fuzzy[Entry ID], Fuzzy[Test Site Number])","v":24},{"$f":"_xlfn.XLOOKUP(MasterLog[[#This Row],[Site Number]],Test_sites[Test Site Number], Test_sites[Location Name])","v":"Clifford Mill Bridge"},"Clifford mill bridge",52.166370000000001,-1.7083200000000001,"Dk",164,14.2,8,{"$f":"IF(MasterLog[[#This Row],[Nitrates (PPM)]]>2, \"Very high\", IF(MasterLog[[#This Row],[Nitrates (PPM)]]>1, \"High\", IF(MasterLog[[#This Row],[Nitrates (PPM)]]>0.5, \"Some evidence\", IF(MasterLog[[#This Row],[Nitrates (PPM)]]=0, \"\"))))","v":"Very high"},0.36,{"$f":"IF(MasterLog[[#This Row],[Phosphates (PPM)]]>0.5, \"Very high\", IF(MasterLog[[#This Row],[Phosphates (PPM)]]>0.1, \"High\", IF(MasterLog[[#This Row],[Phosphates (PPM)]]>0.05, \"Some evidence\", IF(MasterLog[[#This Row],[Phosphates (PPM)]]=0, \"\"))))","v":"High"},1.6,"Some rain night before"]
[113,"09:45:00","2023-11-14","Anna Pike",{"$f":"_xlfn.XLOOKUP(MasterLog[[#This Row],[Entry ID]],Fuzzy[Entry ID], Fuzzy[Test Site Number])","v":21},{"$f":"_xlfn.XLOOKUP(MasterLog[[#This Row],[Site Number]],Test_sites[Test Site Number], Test_sites[Location Name])","v":"Stretton-on-Fosse Sewage"},"Stour Stretton-on-Fosse sewage",52.045651999999997,-1.6719360000000001,"Below",453,10.3,5,{"$f":"IF(MasterLog[[#This Row],[Nitrates (PPM)]]>2, \"Very high\", IF(MasterLog[[#This Row],[Nitrates (PPM)]]>1, \"High\", IF(MasterLog[[#This Row],[Nitrates (PPM)]]>0.5, \"Some evidence\", IF(MasterLog[[#This Row],[Nitrates (PPM)]]=0, \"\"))))","v":"Very high"},0.64,{"$f":"IF(MasterLog[[#This Row],[Phosphates (PPM)]]>0.5, \"Very high\", IF(MasterLog[[#This Row],[Phosphates (PPM)]]>0.1, \"High\", IF(MasterLog[[#This Row],[Phosphates (PPM)]]>0.05, \"Some evidence\", IF(MasterLog[[#This Row],[Phosphates (PPM)]]=0, \"\"))))","v":"Very high"},0.3]
[114,"10:15:00","2023-11-14","Anna Pike",{"$f":"_xlfn.XLOOKUP(MasterLog[[#This Row],[Entry ID]],Fuzzy[Entry ID], Fuzzy[Test Site Number])","v":22},{"$f":"_xlfn.XLOOKUP(MasterLog[[#This Row],[Site Number]],Test_sites[Test Site Number], Test_sites[Location Name])","v":"Stretton-on-Fosse Village"},"Stour Stretton-on-Fosse village side",52.046506999999998,-1.6734880000000001,"Above",394,10.5,5,{"$f":"IF(MasterLog[[#This Row],[Nitrates (PPM)]]>2, \"Very high\", IF(MasterLog[[#This Row],[Nitrates (PPM)]]>1, \"High\", IF(MasterLog[[#This Row],[Nitrates (PPM)]]>0.5, \"Some evidence\", IF(MasterLog[[#This Row],[Nitrates (PPM)]]=0, \"\"))))","v":"Very high"},0.2,{"$f":"IF(MasterLog[[#This Row],[Phosphates (PPM)]]>0.5, \"Very high\", IF(MasterLog[[#This Row],[Phosphates (PPM)]]>0.1, \"High\", IF(MasterLog[[#This Row],[Phosphates (PPM)]]>0.05, \"Some evidence\", IF(MasterLog[[#This Row],[Phosphates (PPM)]]=0, \"\"))))","v":"High"},0.2]
[115,"11:30:00","2023-11-14","Martin Hicks",{"$f":"_xlfn.XLOOKUP(MasterLog[[#This Row],[Entry ID]],Fuzzy[Entry ID], Fuzzy[Test Site Number])","v":9},{"$f":"_xlfn.XLOOKUP(MasterLog[[#This Row],[Site Number]],Test_sites[Test Site Number], Test_sites[Location Name])","v":"Weston on Avon"},"Weston on Avon",52.167430000000003,-1.7744800000000001,"below",640,11.3,5,{"$f":"IF(MasterLog[[#This Row],[Nitrates (PPM)]]>2, \"Very high\", IF(MasterLog[[#This Row],[Nitrates (PPM)]]>1, \"High\", IF(MasterLog[[#This Row],[Nitrates (PPM)]]>0.5, \"Some evidence\", IF(MasterLog[[#This Row],[Nitrates (PPM)]]=0, \"\"))))","v":"Very high"},0.41,{"$f":"IF(MasterLog[[#This Row],[Phosphates (PPM)]]>0.5, \"Very high\", IF(MasterLog[[#This Row],[Phosphates (PPM)]]>0.1, \"High\", IF(MasterLog[[#This Row],[Phosphates (PPM)]]>0.05, \"Some evidence\", IF(MasterLog[[#This Row],[Phosphates (PPM)]]=0, \"\"))))","v":"High"},0]
[116,"16:00:00","2023-11-15","Stella Khan",{"$f":"_xlfn.XLOOKUP(MasterLog[[#This Row],[Entry ID]],Fuzzy[Entry ID], Fuzzy[Test Site Number])","v":4},{"$f":"_xlfn.XLOOKUP(MasterLog[[#This Row],[Site Number]],Test_sites[Test Site Number], Test_sites[Location Name])","v":"Newbold Mill Stour"},"Newbold Mill Stour",null,null,"Below",667,12.1,25,{"$f":"IF(MasterLog[[#This Row],[Nitrates (PPM)]]>2, \"Very high\", IF(MasterLog[[#This Row],[Nitrates (PPM)]]>1, \"High\", IF(MasterLog[[#This Row],[Nitrates (PPM)]]>0.5, \"Some evidence\", IF(MasterLog[[#This Row],[Nitrates (PPM)]]=0, \"\"))))","v":"Very high"},0.24,{"$f":"IF(MasterLog[[#This Row],[Phosphates (PPM)]]>0.5, \"Very high\", IF(MasterLog[[#This Row],[Phosphates (PPM)]]>0.1, \"High\", IF(MasterLog[[#This Row],[Phosphates (PPM)]]>0.05, \"Some evidence\", IF(MasterLog[[#This Row],[Phosphates (PPM)]]=0, \"\"))))","v":"High"},2.5,"Dry. Rain on preceding days"]
[117,"12:14:00","2023-11-16","Derek O'Rourke",{"$f":"_xlfn.XLOOKUP(MasterLog[[#This Row],[Entry ID]],Fuzzy[Entry ID], Fuzzy[Test Site Number])","v":6},{"$f":"_xlfn.XLOOKUP(MasterLog[[#This Row],[Site Number]],Test_sites[Test Site Number], Test_sites[Location Name])","v":"Preston- on- stour river bridge"},"Preston river bridge",52.146557999999999,-1.6991499999999999,"Below",609,9.4,5,{"$f":"IF(MasterLog[[#This Row],[Nitrates (PPM)]]>2, \"Very high\", IF(MasterLog[[#This Row],[Nitrates (PPM)]]>1, \"High\", IF(MasterLog[[#This Row],[Nitrates (PPM)]]>0.5, \"Some evidence\", IF(MasterLog[[#This Row],[Nitrates (PPM)]]=0, \"\"))))","v":"Very high"},0.2,{"$f":"IF(MasterLog[[#This Row],[Phosphates (PPM)]]>0.5, \"Very high\", IF(MasterLog[[#This Row],[Phosphates (PPM)]]>0.1, \"High\", IF(MasterLog[[#This Row],[Phosphates (PPM)]]>0.05, \"Some evidence\", IF(MasterLog[[#This Row],[Phosphates (PPM)]]=0, \"\"))))","v":"High"},1.5,"Fast flowing and swollen after sustained rainfall"]
[118,"10:40:00","2023-11-16","Mary Manandhar",{"$f":"_xlfn.XLOOKUP(MasterLog[[#This Row],[Entry ID]],Fuzzy[Entry ID], Fuzzy[Test Site Number])","v":19},{"$f":"_xlfn.XLOOKUP(MasterLog[[#This Row],[Site Number]],Test_sites[Test Site Number], Test_sites[Location Name])","v":"Swiffen Bank"},"Swiffen Bank",null,null,"Below",584,12.2,5,{"$f":"IF(MasterLog[[#This Row],[Nitrates (PPM)]]>2, \"Very high\", IF(MasterLog[[#This Row],[Nitrates (PPM)]]>1, \"High\", IF(MasterLog[[#This Row],[Nitrates (PPM)]]>0.5, \"Some evidence\", IF(MasterLog[[#This Row],[Nitrates (PPM)]]=0, \"\"))))","v":"Very high"},0.59,{"$f":"IF(MasterLog[[#This Row],[Phosphates (PPM)]]>0.5, \"Very high\", IF(MasterLog[[#This Row],[Phosphates (PPM)]]>0.1, \"High\", IF(MasterLog[[#This Row],[Phosphates (PPM)]]>0.05, \"Some evidence\", IF(MasterLog[[#This Row],[Phosphates (PPM)]]=0, \"\"))))","v":"Very high"},1,"Floods receding"]
[119,"09:03:00","2023-11-16","Kathryn Deaner",{"$f":"_xlfn.XLOOKUP(MasterLog[[#This Row],[Entry ID]],Fuzzy[Entry ID], Fuzzy[Test Site Number])","v":20},{"$f":"_xlfn.XLOOKUP(MasterLog[[#This Row],[Site Number]],Test_sites[Test Site Number], Test_sites[Location Name])","v":"Alveston Weir"},"Alveston Weir",52.207715999999998,-1.6586399999999999,"Below",568,16.100000000000001,5,{"$f":"IF(MasterLog[[#This Row],[Nitrates (PPM)]]>2, \"Very high\", IF(MasterLog[[#This Row],[Nitrates (PPM)]]>1, \"High\", IF(MasterLog[[#This Row],[Nitrates (PPM)]]>0.5, \"Some evidence\", IF(MasterLog[[#This Row],[Nitrates (PPM)]]=0, \"\"))))","v":"Very high"},0.51,{"$f":"IF(MasterLog[[#This Row],[Phosphates (PPM)]]>0.5, \"Very high\", IF(MasterLog[[#This Row],[Phosphates (PPM)]]>0.1, \"High\", IF(MasterLog[[#This Row],[Phosphates (PPM)]]>0.05, \"Some evidence\", IF(MasterLog[[#This Row],[Phosphates (PPM)]]=0, \"\"))))","v":"Very high"},1,"Visible copious quantities white foam"]
[120,"12:30:00","2023-11-18","Steve G",{"$f":"_xlfn.XLOOKUP(MasterLog[[#This Row],[Entry ID]],Fuzzy[Entry ID], Fuzzy[Test Site Number])","v":1},{"$f":"_xlfn.XLOOKUP(MasterLog[[#This Row],[Site Number]],Test_sites[Test Site Number], Test_sites[Location Name])","v":"Carrant Bredon rd"},"Carrant Bredon rd",null,null,"Na",652,12.1,6,{"$f":"IF(MasterLog[[#This Row],[Nitrates (PPM)]]>2, \"Very high\", IF(MasterLog[[#This Row],[Nitrates (PPM)]]>1, \"High\", IF(MasterLog[[#This Row],[Nitrates (PPM)]]>0.5, \"Some evidence\", IF(MasterLog[[#This Row],[Nitrates (PPM)]]=0, \"\"))))","v":"Very high"},0.32,{"$f":"IF(MasterLog[[#This Row],[Phosphates (PPM)]]>0.5, \"Very high\", IF(MasterLog[[#This Row],[Phosphates (PPM)]]>0.1, \"High\", IF(MasterLog[[#This Row],[Phosphates (PPM)]]>0.05, \"Some evidence\", IF(MasterLog[[#This Row],[Phosphates (PPM)]]=0, \"\"))))","v":"High"},1]
[121,"17:00:00","2023-11-18","Helen Carver",{"$f":"_xlfn.XLOOKUP(MasterLog[[#This Row],[Entry ID]],Fuzzy[Entry ID], Fuzzy[Test Site Number])","v":14},{"$f":"_xlfn.XLOOKUP(MasterLog[[#This Row],[Site Number]],Test_sites[Test Site Number], Test_sites[Location Name])","v":"Swillgate A38"},"Swillgate A38",null,null,"Na",857,14.6,5,{"$f":"IF(MasterLog[[#This Row],[Nitrates (PPM)]]>2, \"Very high\", IF(MasterLog[[#This Row],[Nitrates (PPM)]]>1, \"High\", IF(MasterLog[[#This Row],[Nitrates (PPM)]]>0.5, \"Some evidence\", IF(MasterLog[[#This Row],[Nitrates (PPM)]]=0, \"\"))))","v":"Very high"},0.42,{"$f":"IF(MasterLog[[#This Row],[Phosphates (PPM)]]>0.5, \"Very high\", IF(MasterLog[[#This Row],[Phosphates (PPM)]]>0.1, \"High\", IF(MasterLog[[#This Row],[Phosphates (PPM)]]>0.05, \"Some evidence\", IF(MasterLog[[#This Row],[Phosphates (PPM)]]=0, \"\"))))","v":"High"},1]
[122,"16:05:00","2023-11-18","Geoff",{"$f":"_xlfn.XLOOKUP(MasterLog[[#This Row],[Entry ID]],Fuzzy[Entry ID], Fuzzy[Test Site Number])","v":13},{"$f":"_xlfn.XLOOKUP(MasterLog[[#This Row],[Site Number]],Test_sites[Test Site Number], Test_sites[Location Name])","v":"Abbey mill"},"Abbey mill",51.991405,-2.16309,"Na",701,11.6,8,{"$f":"IF(MasterLog[[#This Row],[Nitrates (PPM)]]>2, \"Very high\", IF(MasterLog[[#This Row],[Nitrates (PPM)]]>1, \"High\", IF(MasterLog[[#This Row],[Nitrates (PPM)]]>0.5, \"Some evidence\", IF(MasterLog[[#This Row],[Nitrates (PPM)]]=0, \"\"))))","v":"Very high"},0.81,{"$f":"IF(MasterLog[[#This Row],[Phosphates (PPM)]]>0.5, \"Very high\", IF(MasterLog[[#This Row],[Phosphates (PPM)]]>0.1, \"High\", IF(MasterLog[[#This Row],[Phosphates (PPM)]]>0.05, \"Some evidence\", IF(MasterLog[[#This Row],[Phosphates (PPM)]]=0, \"\"))))","v":"Very high"},2]
[123,"14:00:00","2023-11-19","Trevor Acreman",{"$f":"_xlfn.XLOOKUP(MasterLog[[#This Row],[Entry ID]],Fuzzy[Entry ID], Fuzzy[Test Site Number])","v":15},{"$f":"_xlfn.XLOOKUP(MasterLog[[#This Row],[Site Number]],Test_sites[Test Site Number], Test_sites[Location Name])","v":"Clifford Chambers"},"Clifford Chambers mill bridge",52.166370000000001,-1.708032,"Dk",493,13.5,5,{"$f":"IF(MasterLog[[#This Row],[Nitrates (PPM)]]>2, \"Very high\", IF(MasterLog[[#This Row],[Nitrates (PPM)]]>1, \"High\", IF(MasterLog[[#This Row],[Nitrates (PPM)]]>0.5, \"Some evidence\", IF(MasterLog[[#This Row],[Nitrates (PPM)]]=0, \"\"))))","v":"Very high"},0.28000000000000003,{"$f":"IF(MasterLog[[#This Row],[Phosphates (PPM)]]>0.5, \"Very high\", IF(MasterLog[[#This Row],[Phosphates (PPM)]]>0.1, \"High\", IF(MasterLog[[#This Row],[Phosphates (PPM)]]>0.05, \"Some evidence\", IF(MasterLog[[#This Row],[Phosphates (PPM)]]=0, \"\"))))","v":"High"},1.3]
[124,"15:30:00","2023-11-19","Chris Fox",{"$f":"_xlfn.XLOOKUP(MasterLog[[#This Row],[Entry ID]],Fuzzy[Entry ID], Fuzzy[Test Site Number])","v":10},{"$f":"_xlfn.XLOOKUP(MasterLog[[#This Row],[Site Number]],Test_sites[Test Site Number], Test_sites[Location Name])","v":"Welford Boat Station"},"Welford Boat Station",52.175240000000002,-1.7918700000000001,"below",680,11.8,12,{"$f":"IF(MasterLog[[#This Row],[Nitrates (PPM)]]>2, \"Very high\", IF(MasterLog[[#This Row],[Nitrates (PPM)]]>1, \"High\", IF(MasterLog[[#This Row],[Nitrates (PPM)]]>0.5, \"Some evidence\", IF(MasterLog[[#This Row],[Nitrates (PPM)]]=0, \"\"))))","v":"Very high"},0.31,{"$f":"IF(MasterLog[[#This Row],[Phosphates (PPM)]]>0.5, \"Very high\", IF(MasterLog[[#This Row],[Phosphates (PPM)]]>0.1, \"High\", IF(MasterLog[[#This Row],[Phosphates (PPM)]]>0.05, \"Some evidence\", IF(MasterLog[[#This Row],[Phosphates (PPM)]]=0, \"\"))))","v":"High"},0,"Wet, river up, fast flow"]
[125,"12:45:00","2023-11-19","John Conchar",{"$f":"_xlfn.XLOOKUP(MasterLog[[#This Row],[Entry ID]],Fuzzy[Entry ID], Fuzzy[Test Site Number])","v":2},{"$f":"_xlfn.XLOOKUP(MasterLog[[#This Row],[Site Number]],Test_sites[Test Site Number], Test_sites[Location Name])","v":"Hampton Lucy Allotments"},"Hampton Lucy",52.211680000000001,-1.6244400000000001,"NA",636,12.6,7,{"$f":"IF(MasterLog[[#This Row],[Nitrates (PPM)]]>2, \"Very high\", IF(MasterLog[[#This Row],[Nitrates (PPM)]]>1, \"High\", IF(MasterLog[[#This Row],[Nitrates (PPM)]]>0.5, \"Some evidence\", IF(MasterLog[[#This Row],[Nitrates (PPM)]]=0, \"\"))))","v":"Very high"},0.44,{"$f":"IF(MasterLog[[#This Row],[Phosphates (PPM)]]>0.5, \"Very high\", IF(MasterLog[[#This Row],[Phosphates (PPM)]]>0.1, \"High\", IF(MasterLog[[#This Row],[Phosphates (PPM)]]>0.05, \"Some evidence\", IF(MasterLog[[#This Row],[Phosphates (PPM)]]=0, \"\"))))","v":"High"},0]
[126,"12:15:00","2023-11-19","Martin Hicks",{"$f":"_xlfn.XLOOKUP(MasterLog[[#This Row],[Entry ID]],Fuzzy[Entry ID], Fuzzy[Test Site Number])","v":3},{"$f":"_xlfn.XLOOKUP(MasterLog[[#This Row],[Site Number]],Test_sites[Test Site Number], Test_sites[Location Name])","v":"Hampton Wood Nature Reserve"},"Hampton Wood",52.238149999999997,-1.6245799999999999,"below",null,12.4,6,{"$f":"IF(MasterLog[[#This Row],[Nitrates (PPM)]]>2, \"Very high\", IF(MasterLog[[#This Row],[Nitrates (PPM)]]>1, \"High\", IF(MasterLog[[#This Row],[Nitrates (PPM)]]>0.5, \"Some evidence\", IF(MasterLog[[#This Row],[Nitrates (PPM)]]=0, \"\"))))","v":"Very high"},0.44,{"$f":"IF(MasterLog[[#This Row],[Phosphates (PPM)]]>0.5, \"Very high\", IF(MasterLog[[#This Row],[Phosphates (PPM)]]>0.1, \"High\", IF(MasterLog[[#This Row],[Phosphates (PPM)]]>0.05, \"Some evidence\", IF(MasterLog[[#This Row],[Phosphates (PPM)]]=0, \"\"))))","v":"High"},0]
[127,"15:10:00","2023-11-20","Martin Hicks",{"$f":"_xlfn.XLOOKUP(MasterLog[[#This Row],[Entry ID]],Fuzzy[Entry ID], Fuzzy[Test Site Number])","v":9},{"$f":"_xlfn.XLOOKUP(MasterLog[[#This Row],[Site Number]],Test_sites[Test Site Number], Test_sites[Location Name])","v":"Weston on Avon"},"Weston on Avon",52.167430000000003,-1.7744800000000001,"below",688,11.5,8,{"$f":"IF(MasterLog[[#This Row],[Nitrates (PPM)]]>2, \"Very high\", IF(MasterLog[[#This Row],[Nitrates (PPM)]]>1, \"High\", IF(MasterLog[[#This Row],[Nitrates (PPM)]]>0.5, \"Some evidence\", IF(MasterLog[[#This Row],[Nitrates (PPM)]]=0, \"\"))))","v":"Very high"},0.4,{"$f":"IF(MasterLog[[#This Row],[Phosphates (PPM)]]>0.5, \"Very high\", IF(MasterLog[[#This Row],[Phosphates (PPM)]]>0.1, \"High\", IF(MasterLog[[#This Row],[Phosphates (PPM)]]>0.05, \"Some evidence\", IF(MasterLog[[#This Row],[Phosphates (PPM)]]=0, \"\"))))","v":"High"},0]
[128,"09:56:00","2023-11-20","Anna Pike",{"$f":"_xlfn.XLOOKUP(MasterLog[[#This Row],[Entry ID]],Fuzzy[Entry ID], Fuzzy[Test Site Number])","v":21},{"$f":"_xlfn.XLOOKUP(MasterLog[[#This Row],[Site Number]],Test_sites[Test Site Number], Test_sites[Location Name])","v":"Stretton-on-Fosse Sewage"},"Stour Stretton-on-Fosse sewage",52.045651999999997,-1.6719360000000001,"Below",556,10.5,3.5,{"$f":"IF(MasterLog[[#This Row],[Nitrates (PPM)]]>2, \"Very high\", IF(MasterLog[[#This Row],[Nitrates (PPM)]]>1, \"High\", IF(MasterLog[[#This Row],[Nitrates (PPM)]]>0.5, \"Some evidence\", IF(MasterLog[[#This Row],[Nitrates (PPM)]]=0, \"\"))))","v":"Very high"},1.1200000000000001,{"$f":"IF(MasterLog[[#This Row],[Phosphates (PPM)]]>0.5, \"Very high\", IF(MasterLog[[#This Row],[Phosphates (PPM)]]>0.1, \"High\", IF(MasterLog[[#This Row],[Phosphates (PPM)]]>0.05, \"Some evidence\", IF(MasterLog[[#This Row],[Phosphates (PPM)]]=0, \"\"))))","v":"Very high"},0.3]
[129,"09:34:00","2023-11-20","Anna Pike",{"$f":"_xlfn.XLOOKUP(MasterLog[[#This Row],[Entry ID]],Fuzzy[Entry ID], Fuzzy[Test Site Number])","v":22},{"$f":"_xlfn.XLOOKUP(MasterLog[[#This Row],[Site Number]],Test_sites[Test Site Number], Test_sites[Location Name])","v":"Stretton-on-Fosse Village"},"Stour Stretton-on-Fosse village side",52.046506999999998,-1.6734880000000001,"Above",573,10.199999999999999,2,{"$f":"IF(MasterLog[[#This Row],[Nitrates (PPM)]]>2, \"Very high\", IF(MasterLog[[#This Row],[Nitrates (PPM)]]>1, \"High\", IF(MasterLog[[#This Row],[Nitrates (PPM)]]>0.5, \"Some evidence\", IF(MasterLog[[#This Row],[Nitrates (PPM)]]=0, \"\"))))","v":"High"},0.68,{"$f":"IF(MasterLog[[#This Row],[Phosphates (PPM)]]>0.5, \"Very high\", IF(MasterLog[[#This Row],[Phosphates (PPM)]]>0.1, \"High\", IF(MasterLog[[#This Row],[Phosphates (PPM)]]>0.05, \"Some evidence\", IF(MasterLog[[#This Row],[Phosphates (PPM)]]=0, \"\"))))","v":"Very high"},0.2]
[130,"10:00:00","2023-11-23","Helen Carver",{"$f":"_xlfn.XLOOKUP(MasterLog[[#This Row],[Entry ID]],Fuzzy[Entry ID], Fuzzy[Test Site Number])","v":14},{"$f":"_xlfn.XLOOKUP(MasterLog[[#This Row],[Site Number]],Test_sites[Test Site Number], Test_sites[Location Name])","v":"Swillgate A38"},"Swillgate A38",null,null,"Na",879,12.4,3,{"$f":"IF(MasterLog[[#This Row],[Nitrates (PPM)]]>2, \"Very high\", IF(MasterLog[[#This Row],[Nitrates (PPM)]]>1, \"High\", IF(MasterLog[[#This Row],[Nitrates (PPM)]]>0.5, \"Some evidence\", IF(MasterLog[[#This Row],[Nitrates (PPM)]]=0, \"\"))))","v":"Very high"},0.5,{"$f":"IF(MasterLog[[#This Row],[Phosphates (PPM)]]>0.5, \"Very high\", IF(MasterLog[[#This Row],[Phosphates (PPM)]]>0.1, \"High\", IF(MasterLog[[#This Row],[Phosphates (PPM)]]>0.05, \"Some evidence\", IF(MasterLog[[#This Row],[Phosphates (PPM)]]=0, \"\"))))","v":"High"},1]
[131,"10:15:00","2023-11-23","Kathryn Deaner",{"$f":"_xlfn.XLOOKUP(MasterLog[[#This Row],[Entry ID]],Fuzzy[Entry ID], Fuzzy[Test Site Number])","v":19},{"$f":"_xlfn.XLOOKUP(MasterLog[[#This Row],[Site Number]],Test_sites[Test Site Number], Test_sites[Location Name])","v":"Swiffen Bank"},"Swiffen Bank",52.207673,-1.6584449999999999,"Below",635,13,5,{"$f":"IF(MasterLog[[#This Row],[Nitrates (PPM)]]>2, \"Very high\", IF(MasterLog[[#This Row],[Nitrates (PPM)]]>1, \"High\", IF(MasterLog[[#This Row],[Nitrates (PPM)]]>0.5, \"Some evidence\", IF(MasterLog[[#This Row],[Nitrates (PPM)]]=0, \"\"))))","v":"Very high"},0.49,{"$f":"IF(MasterLog[[#This Row],[Phosphates (PPM)]]>0.5, \"Very high\", IF(MasterLog[[#This Row],[Phosphates (PPM)]]>0.1, \"High\", IF(MasterLog[[#This Row],[Phosphates (PPM)]]>0.05, \"Some evidence\", IF(MasterLog[[#This Row],[Phosphates (PPM)]]=0, \"\"))))","v":"High"},0]
[132,"10:42:00","2023-11-23","Renny Wodynska",{"$f":"_xlfn.XLOOKUP(MasterLog[[#This Row],[Entry ID]],Fuzzy[Entry ID], Fuzzy[Test Site Number])","v":20},{"$f":"_xlfn.XLOOKUP(MasterLog[[#This Row],[Site Number]],Test_sites[Test Site Number], Test_sites[Location Name])","v":"Alveston Weir"},"Alveston Weir",52.214275999999998,-1.6601459999999999,"Below",653,15.6,5,{"$f":"IF(MasterLog[[#This Row],[Nitrates (PPM)]]>2, \"Very high\", IF(MasterLog[[#This Row],[Nitrates (PPM)]]>1, \"High\", IF(MasterLog[[#This Row],[Nitrates (PPM)]]>0.5, \"Some evidence\", IF(MasterLog[[#This Row],[Nitrates (PPM)]]=0, \"\"))))","v":"Very high"},0.38,{"$f":"IF(MasterLog[[#This Row],[Phosphates (PPM)]]>0.5, \"Very high\", IF(MasterLog[[#This Row],[Phosphates (PPM)]]>0.1, \"High\", IF(MasterLog[[#This Row],[Phosphates (PPM)]]>0.05, \"Some evidence\", IF(MasterLog[[#This Row],[Phosphates (PPM)]]=0, \"\"))))","v":"High"},0,"River is quite a bit lower this week"]
[133,"12:00:00","2023-11-25","Steve G",{"$f":"_xlfn.XLOOKUP(MasterLog[[#This Row],[Entry ID]],Fuzzy[Entry ID], Fuzzy[Test Site Number])","v":1},{"$f":"_xlfn.XLOOKUP(MasterLog[[#This Row],[Site Number]],Test_sites[Test Site Number], Test_sites[Location Name])","v":"Carrant Bredon rd"},"Carrant Bredon rd",null,null,"Na",709,8.5,5,{"$f":"IF(MasterLog[[#This Row],[Nitrates (PPM)]]>2, \"Very high\", IF(MasterLog[[#This Row],[Nitrates (PPM)]]>1, \"High\", IF(MasterLog[[#This Row],[Nitrates (PPM)]]>0.5, \"Some evidence\", IF(MasterLog[[#This Row],[Nitrates (PPM)]]=0, \"\"))))","v":"Very high"},0.35,{"$f":"IF(MasterLog[[#This Row],[Phosphates (PPM)]]>0.5, \"Very high\", IF(MasterLog[[#This Row],[Phosphates (PPM)]]>0.1, \"High\", IF(MasterLog[[#This Row],[Phosphates (PPM)]]>0.05, \"Some evidence\", IF(MasterLog[[#This Row],[Phosphates (PPM)]]=0, \"\"))))","v":"High"},0]
[134,"01:55:00","2023-11-25","Richard Thomas",{"$f":"_xlfn.XLOOKUP(MasterLog[[#This Row],[Entry ID]],Fuzzy[Entry ID], Fuzzy[Test Site Number])","v":8},{"$f":"_xlfn.XLOOKUP(MasterLog[[#This Row],[Site Number]],Test_sites[Test Site Number], Test_sites[Location Name])","v":"Pitch 16"},"Pitch 16",null,null,"Below",894,9.3000000000000007,10,{"$f":"IF(MasterLog[[#This Row],[Nitrates (PPM)]]>2, \"Very high\", IF(MasterLog[[#This Row],[Nitrates (PPM)]]>1, \"High\", IF(MasterLog[[#This Row],[Nitrates (PPM)]]>0.5, \"Some evidence\", IF(MasterLog[[#This Row],[Nitrates (PPM)]]=0, \"\"))))","v":"Very high"},0.46,{"$f":"IF(MasterLog[[#This Row],[Phosphates (PPM)]]>0.5, \"Very high\", IF(MasterLog[[#This Row],[Phosphates (PPM)]]>0.1, \"High\", IF(MasterLog[[#This Row],[Phosphates (PPM)]]>0.05, \"Some evidence\", IF(MasterLog[[#This Row],[Phosphates (PPM)]]=0, \"\"))))","v":"High"},1]
[135,"11:39:00","2023-11-25","Geoff",{"$f":"_xlfn.XLOOKUP(MasterLog[[#This Row],[Entry ID]],Fuzzy[Entry ID], Fuzzy[Test Site Number])","v":13},{"$f":"_xlfn.XLOOKUP(MasterLog[[#This Row],[Site Number]],Test_sites[Test Site Number], Test_sites[Location Name])","v":"Abbey mill"},"Abbey mill",51.991453,-2.1629679999999998,"Na",773,9.6999999999999993,4,{"$f":"IF(MasterLog[[#This Row],[Nitrates (PPM)]]>2, \"Very high\", IF(MasterLog[[#This Row],[Nitrates (PPM)]]>1, \"High\", IF(MasterLog[[#This Row],[Nitrates (PPM)]]>0.5, \"Some evidence\", IF(MasterLog[[#This Row],[Nitrates (PPM)]]=0, \"\"))))","v":"Very high"},0.7,{"$f":"IF(MasterLog[[#This Row],[Phosphates (PPM)]]>0.5, \"Very high\", IF(MasterLog[[#This Row],[Phosphates (PPM)]]>0.1, \"High\", IF(MasterLog[[#This Row],[Phosphates (PPM)]]>0.05, \"Some evidence\", IF(MasterLog[[#This Row],[Phosphates (PPM)]]=0, \"\"))))","v":"Very high"},0]
[136,"13:00:00","2023-11-26","Trevor Acreman",{"$f":"_xlfn.XLOOKUP(MasterLog[[#This Row],[Entry ID]],Fuzzy[Entry ID], Fuzzy[Test Site Number])","v":15},{"$f":"_xlfn.XLOOKUP(MasterLog[[#This Row],[Site Number]],Test_sites[Test Site Number], Test_sites[Location Name])","v":"Clifford Chambers"},"Clifford Chambers mill bridge",52.166370000000001,-1.708032,"Dk",704,6.2,7,{"$f":"IF(MasterLog[[#This Row],[Nitrates (PPM)]]>2, \"Very high\", IF(MasterLog[[#This Row],[Nitrates (PPM)]]>1, \"High\", IF(MasterLog[[#This Row],[Nitrates (PPM)]]>0.5, \"Some evidence\", IF(MasterLog[[#This Row],[Nitrates (PPM)]]=0, \"\"))))","v":"Very high"},0.27,{"$f":"IF(MasterLog[[#This Row],[Phosphates (PPM)]]>0.5, \"Very high\", IF(MasterLog[[#This Row],[Phosphates (PPM)]]>0.1, \"High\", IF(MasterLog[[#This Row],[Phosphates (PPM)]]>0.05, \"Some evidence\", IF(MasterLog[[#This Row],[Phosphates (PPM)]]=0, \"\"))))","v":"High"},0.7]
[137,"15:15:00","2023-11-26","Paul Berry",{"$f":"_xlfn.XLOOKUP(MasterLog[[#This Row],[Entry ID]],Fuzzy[Entry ID], Fuzzy[Test Site Number])","v":11},{"$f":"_xlfn.XLOOKUP(MasterLog[[#This Row],[Site Number]],Test_sites[Test Site Number], Test_sites[Location Name])","v":"Barton"},"Barton",52.161209999999997,-1.8301499999999999,"below",868,7.1,7,{"$f":"IF(MasterLog[[#This Row],[Nitrates (PPM)]]>2, \"Very high\", IF(MasterLog[[#This Row],[Nitrates (PPM)]]>1, \"High\", IF(MasterLog[[#This Row],[Nitrates (PPM)]]>0.5, \"Some evidence\", IF(MasterLog[[#This Row],[Nitrates (PPM)]]=0, \"\"))))","v":"Very high"},0.67,{"$f":"IF(MasterLog[[#This Row],[Phosphates (PPM)]]>0.5, \"Very high\", IF(MasterLog[[#This Row],[Phosphates (PPM)]]>0.1, \"High\", IF(MasterLog[[#This Row],[Phosphates (PPM)]]>0.05, \"Some evidence\", IF(MasterLog[[#This Row],[Phosphates (PPM)]]=0, \"\"))))","v":"Very high"},0]
[138,"16:30:00","2023-11-26","Chris Fox",{"$f":"_xlfn.XLOOKUP(MasterLog[[#This Row],[Entry ID]],Fuzzy[Entry ID], Fuzzy[Test Site Number])","v":10},{"$f":"_xlfn.XLOOKUP(MasterLog[[#This Row],[Site Number]],Test_sites[Test Site Number], Test_sites[Location Name])","v":"Welford Boat Station"},"Welford Boat Station",52.175240000000002,-1.7918700000000001,"below",876,8.3000000000000007,20,{"$f":"IF(MasterLog[[#This Row],[Nitrates (PPM)]]>2, \"Very high\", IF(MasterLog[[#This Row],[Nitrates (PPM)]]>1, \"High\", IF(MasterLog[[#This Row],[Nitrates (PPM)]]>0.5, \"Some evidence\", IF(MasterLog[[#This Row],[Nitrates (PPM)]]=0, \"\"))))","v":"Very high"},0.5,{"$f":"IF(MasterLog[[#This Row],[Phosphates (PPM)]]>0.5, \"Very high\", IF(MasterLog[[#This Row],[Phosphates (PPM)]]>0.1, \"High\", IF(MasterLog[[#This Row],[Phosphates (PPM)]]>0.05, \"Some evidence\", IF(MasterLog[[#This Row],[Phosphates (PPM)]]=0, \"\"))))","v":"High"},0,"river down - slow flow"]
[139,"01:00:00","2023-11-26","John Conchar",{"$f":"_xlfn.XLOOKUP(MasterLog[[#This Row],[Entry ID]],Fuzzy[Entry ID], Fuzzy[Test Site Number])","v":2},{"$f":"_xlfn.XLOOKUP(MasterLog[[#This Row],[Site Number]],Test_sites[Test Site Number], Test_sites[Location Name])","v":"Hampton Lucy Allotments"},"Hampton Lucy",52.211680000000001,-1.6244400000000001,"NA",880,7.7,5,{"$f":"IF(MasterLog[[#This Row],[Nitrates (PPM)]]>2, \"Very high\", IF(MasterLog[[#This Row],[Nitrates (PPM)]]>1, \"High\", IF(MasterLog[[#This Row],[Nitrates (PPM)]]>0.5, \"Some evidence\", IF(MasterLog[[#This Row],[Nitrates (PPM)]]=0, \"\"))))","v":"Very high"},0.54,{"$f":"IF(MasterLog[[#This Row],[Phosphates (PPM)]]>0.5, \"Very high\", IF(MasterLog[[#This Row],[Phosphates (PPM)]]>0.1, \"High\", IF(MasterLog[[#This Row],[Phosphates (PPM)]]>0.05, \"Some evidence\", IF(MasterLog[[#This Row],[Phosphates (PPM)]]=0, \"\"))))","v":"Very high"},0]
[140,"12:00:00","2023-11-26","Martin Hicks",{"$f":"_xlfn.XLOOKUP(MasterLog[[#This Row],[Entry ID]],Fuzzy[Entry ID], Fuzzy[Test Site Number])","v":3},{"$f":"_xlfn.XLOOKUP(MasterLog[[#This Row],[Site Number]],Test_sites[Test Site Number], Test_sites[Location Name])","v":"Hampton Wood Nature Reserve"},"Hampton Wood",52.238149999999997,-1.6245799999999999,"below",870,7.6,8,{"$f":"IF(MasterLog[[#This Row],[Nitrates (PPM)]]>2, \"Very high\", IF(MasterLog[[#This Row],[Nitrates (PPM)]]>1, \"High\", IF(MasterLog[[#This Row],[Nitrates (PPM)]]>0.5, \"Some evidence\", IF(MasterLog[[#This Row],[Nitrates (PPM)]]=0, \"\"))))","v":"Very high"},0.81,{"$f":"IF(MasterLog[[#This Row],[Phosphates (PPM)]]>0.5, \"Very high\", IF(MasterLog[[#This Row],[Phosphates (PPM)]]>0.1, \"High\", IF(MasterLog[[#This Row],[Phosphates (PPM)]]>0.05, \"Some evidence\", IF(MasterLog[[#This Row],[Phosphates (PPM)]]=0, \"\"))))","v":"Very high"},0]
[141,"14:43:00","2023-11-27","Derek O'Rourke",{"$f":"_xlfn.XLOOKUP(MasterLog[[#This Row],[Entry ID]],Fuzzy[Entry ID], Fuzzy[Test Site Number])","v":6},{"$f":"_xlfn.XLOOKUP(MasterLog[[#This Row],[Site Number]],Test_sites[Test Site Number], Test_sites[Location Name])","v":"Preston- on- stour river bridge"},"Preston river bridge",52.134785000000001,-1.741296,"Below",659,11.1,5,{"$f":"IF(MasterLog[[#This Row],[Nitrates (PPM)]]>2, \"Very high\", IF(MasterLog[[#This Row],[Nitrates (PPM)]]>1, \"High\", IF(MasterLog[[#This Row],[Nitrates (PPM)]]>0.5, \"Some evidence\", IF(MasterLog[[#This Row],[Nitrates (PPM)]]=0, \"\"))))","v":"Very high"},0.28999999999999998,{"$f":"IF(MasterLog[[#This Row],[Phosphates (PPM)]]>0.5, \"Very high\", IF(MasterLog[[#This Row],[Phosphates (PPM)]]>0.1, \"High\", IF(MasterLog[[#This Row],[Phosphates (PPM)]]>0.05, \"Some evidence\", IF(MasterLog[[#This Row],[Phosphates (PPM)]]=0, \"\"))))","v":"High"},1.5]
[142,"10:05:00","2023-11-27","Anna Pike",{"$f":"_xlfn.XLOOKUP(MasterLog[[#This Row],[Entry ID]],Fuzzy[Entry ID], Fuzzy[Test Site Number])","v":21},{"$f":"_xlfn.XLOOKUP(MasterLog[[#This Row],[Site Number]],Test_sites[Test Site Number], Test_sites[Location Name])","v":"Stretton-on-Fosse Sewage"},"Stour Stretton-on-Fosse sewage",52.045659999999998,-1.671924,"Below",703,8.6,4,{"$f":"IF(MasterLog[[#This Row],[Nitrates (PPM)]]>2, \"Very high\", IF(MasterLog[[#This Row],[Nitrates (PPM)]]>1, \"High\", IF(MasterLog[[#This Row],[Nitrates (PPM)]]>0.5, \"Some evidence\", IF(MasterLog[[#This Row],[Nitrates (PPM)]]=0, \"\"))))","v":"Very high"},2.5,{"$f":"IF(MasterLog[[#This Row],[Phosphates (PPM)]]>0.5, \"Very high\", IF(MasterLog[[#This Row],[Phosphates (PPM)]]>0.1, \"High\", IF(MasterLog[[#This Row],[Phosphates (PPM)]]>0.05, \"Some evidence\", IF(MasterLog[[#This Row],[Phosphates (PPM)]]=0, \"\"))))","v":"Very high"},0.3]
[143,"09:48:00","2023-11-27","Anna Pike",{"$f":"_xlfn.XLOOKUP(MasterLog[[#This Row],[Entry ID]],Fuzzy[Entry ID], Fuzzy[Test Site Number])","v":22},{"$f":"_xlfn.XLOOKUP(MasterLog[[#This Row],[Site Number]],Test_sites[Test Site Number], Test_sites[Location Name])","v":"Stretton-on-Fosse Village"},"Stour Stretton-on-Fosse Village side",52.046472000000001,-1.673438,"Above",668,9.3000000000000007,2,{"$f":"IF(MasterLog[[#This Row],[Nitrates (PPM)]]>2, \"Very high\", IF(MasterLog[[#This Row],[Nitrates (PPM)]]>1, \"High\", IF(MasterLog[[#This Row],[Nitrates (PPM)]]>0.5, \"Some evidence\", IF(MasterLog[[#This Row],[Nitrates (PPM)]]=0, \"\"))))","v":"High"},0.93,{"$f":"IF(MasterLog[[#This Row],[Phosphates (PPM)]]>0.5, \"Very high\", IF(MasterLog[[#This Row],[Phosphates (PPM)]]>0.1, \"High\", IF(MasterLog[[#This Row],[Phosphates (PPM)]]>0.05, \"Some evidence\", IF(MasterLog[[#This Row],[Phosphates (PPM)]]=0, \"\"))))","v":"Very high"},0.2]
[144,"15:30:00","2023-11-28","Martin Hicks",{"$f":"_xlfn.XLOOKUP(MasterLog[[#This Row],[Entry ID]],Fuzzy[Entry ID], Fuzzy[Test Site Number])","v":9},{"$f":"_xlfn.XLOOKUP(MasterLog[[#This Row],[Site Number]],Test_sites[Test Site Number], Test_sites[Location Name])","v":"Weston on Avon"},"Weston on Avon",52.167430000000003,-1.7744800000000001,"below",900,7.4,12,{"$f":"IF(MasterLog[[#This Row],[Nitrates (PPM)]]>2, \"Very high\", IF(MasterLog[[#This Row],[Nitrates (PPM)]]>1, \"High\", IF(MasterLog[[#This Row],[Nitrates (PPM)]]>0.5, \"Some evidence\", IF(MasterLog[[#This Row],[Nitrates (PPM)]]=0, \"\"))))","v":"Very high"},0.53,{"$f":"IF(MasterLog[[#This Row],[Phosphates (PPM)]]>0.5, \"Very high\", IF(MasterLog[[#This Row],[Phosphates (PPM)]]>0.1, \"High\", IF(MasterLog[[#This Row],[Phosphates (PPM)]]>0.05, \"Some evidence\", IF(MasterLog[[#This Row],[Phosphates (PPM)]]=0, \"\"))))","v":"Very high"},0]
[145,"16:00:00","2023-11-29","Stella Khan",{"$f":"_xlfn.XLOOKUP(MasterLog[[#This Row],[Entry ID]],Fuzzy[Entry ID], Fuzzy[Test Site Number])","v":4},{"$f":"_xlfn.XLOOKUP(MasterLog[[#This Row],[Site Number]],Test_sites[Test Site Number], Test_sites[Location Name])","v":"Newbold Mill Stour"},"Newbold Mill Stour",52.112850999999999,-1.633435,"Below",667,12,5,{"$f":"IF(MasterLog[[#This Row],[Nitrates (PPM)]]>2, \"Very high\", IF(MasterLog[[#This Row],[Nitrates (PPM)]]>1, \"High\", IF(MasterLog[[#This Row],[Nitrates (PPM)]]>0.5, \"Some evidence\", IF(MasterLog[[#This Row],[Nitrates (PPM)]]=0, \"\"))))","v":"Very high"},0.2,{"$f":"IF(MasterLog[[#This Row],[Phosphates (PPM)]]>0.5, \"Very high\", IF(MasterLog[[#This Row],[Phosphates (PPM)]]>0.1, \"High\", IF(MasterLog[[#This Row],[Phosphates (PPM)]]>0.05, \"Some evidence\", IF(MasterLog[[#This Row],[Phosphates (PPM)]]=0, \"\"))))","v":"High"},2.5,"Dry sunny cold"]

{"sheet":"Site Summary","index":2,"n_rows":27,"n_cols":9,"rows_kept":27,"cut":false,"hidden":false,"merged":[]}
["Volunteer","(All)",null,null,null,null,"Volunteer","(All)"]
[]
["Row Labels","Average of Latitude","Average of Longitude","Count of Nitrates (PPM)","Count of Phosphates (PPM)",null,"Row Labels","Average of Nitrates (PPM)","Average of Phosphates (PPM)"]
["Abbey mill",51.991380999999997,-2.1628686666666668,13,13,null,"Abbey mill",7.9230769230769234,0.9276923076923077]
["Alveston Weir",52.212692500000003,-1.6597725000000001,4,4,null,"Alveston Weir",6.25,0.44750000000000001]
["Avonbank Drive",52.177231499999998,-1.7358285,7,7,null,"Avonbank Drive",10.714285714285714,0.80857142857142872]
["Barton",52.161210000000004,-1.8301499999999999,2,3,null,"Barton",5.5,0.72333333333333327]
["Carrant Bredon rd",51.994807999999999,-2.151078,9,9,null,"Carrant Bredon rd",6.5555555555555554,0.54333333333333345]
["Cherington",52.030172999999998,-1.5791440000000001,null,1,null,"Cherington",null,0.18]
["Clifford Chambers",52.166314499999999,-1.1386879999999999,6,6,null,"Clifford Chambers",6,0.33499999999999996]
["Clifford Mill Bridge",52.166370000000001,-1.7083200000000001,1,1,null,"Clifford Mill Bridge",8,0.36]
["Hampton Lucy Allotments",52.211680000000001,-1.6244400000000001,11,11,null,"Hampton Lucy Allotments",4.7272727272727275,0.62727272727272743]
["Hampton Wood Nature Reserve",52.238150000000012,-1.6245799999999997,11,11,null,"Hampton Wood Nature Reserve",5.5454545454545459,0.61545454545454559]
["Ilmington",52.090074000000001,-1.692588,1,1,null,"Ilmington",1,0.18]
["Newbold Mill Stour",52.113224299999999,-1.6333677999999998,8,11,null,"Newbold Mill Stour",20.625,0.5281818181818182]
["Pitch 16",52.172623333333341,-1.745304,7,7,null,"Pitch 16",10,0.79285714285714282]
["Preston- on- stour river bridge",52.145588750000002,-1.7028956666666664,12,12,null,"Preston- on- stour river bridge",5,0.47749999999999998]
["Shipston-on-Stour",52.062036200000001,-1.621799,5,5,null,"Shipston-on-Stour",8.8000000000000007,0.47399999999999992]
["Stretton-on-Fosse Sewage",52.045654666666657,-1.671932,3,3,null,"Stretton-on-Fosse Sewage",4.166666666666667,1.42]
["Stretton-on-Fosse Village",52.046495333333333,-1.6734713333333335,3,3,null,"Stretton-on-Fosse Village",3,0.60333333333333339]
["Swiffen Bank",52.206829999999997,-1.6557803333333332,4,4,null,"Swiffen Bank",5,0.51]
["Swillgate A38",null,null,11,11,null,"Swillgate A38",5.2727272727272725,0.55181818181818187]
["Trinity Church Stratford",52.187393,-1.706607,1,1,null,"Trinity Church Stratford",15,0.6]
["Twyning fleet",52.027050000000003,-2.1405919999999998,2,2,null,"Twyning fleet",10,1.135]
["Welford Boat Station",52.175240000000016,-1.7918699999999999,9,9,null,"Welford Boat Station",6.8888888888888893,0.52999999999999992]
["Weston on Avon",52.16743000000001,-1.7744800000000003,9,9,null,"Weston on Avon",5.2222222222222223,0.55111111111111122]
["Grand Total",52.147611336448591,-1.696100112149532,139,144,null,"Grand Total",7.2913669064748206,0.61951388888888925]

{"sheet":"Charts","index":3,"n_rows":7,"n_cols":5,"rows_kept":7,"cut":false,"hidden":false,"merged":[]}
["Site Name","(All)",null,"Site Name","(All)"]
[]
["Row Labels","Count of Nitrate Pollution Category",null,"Row Labels","Count of Phosphate Pollution Category"]
["High",7,null,"High",47]
["Some evidence",1,null,"Very high",96]
["Very high",131,null,"Grand Total",143]
["Grand Total",139]

{"sheet":"FuzzyLookup_AddIn_Undo_Sheet","index":4,"n_rows":145,"n_cols":12,"rows_kept":145,"cut":false,"hidden":true,"merged":[]}
["Test Site Number","Location Name","Nearest Town","(Lat,Long)",null,"Entry ID","Location Name","Latitude","Longitude","Test Site Number","Location Name","Similarity"]
[1,"Carrant Bredon rd",{"$error":"#VALUE!"},{"$f":"\"(\"&ROUND(AVERAGEIF([1]!Master_Log[Location Ref], [1]!Table28[[#This Row],[Location Name]], [1]!Master_Log[Latitude]), 4)&\", \"&ROUND(AVERAGEIF([1]!Master_Log[Location Ref], [1]!Table28[[#This Row],[Location Name]], [1]!Master_Log[Longitude]), 4)&\")\"","v":{"$error":"#REF!"}},null,2,"Carrant Bredon rd",null,null,1,"Carrant Bredon rd",1]
[{"$f":"A2+1","v":2},"Hampton Lucy Allotments",{"$error":"#VALUE!"},{"$f":"\"(\"&ROUND(AVERAGEIF([1]!Master_Log[Location Ref], [1]!Table28[[#This Row],[Location Name]], [1]!Master_Log[Latitude]), 4)&\", \"&ROUND(AVERAGEIF([1]!Master_Log[Location Ref], [1]!Table28[[#This Row],[Location Name]], [1]!Master_Log[Longitude]), 4)&\")\"","v":{"$error":"#REF!"}},null,3,"Abbey Mill",null,null,13,"Abbey mill",1]
[{"$f":"A3+1","v":3},"Hampton Wood Nature Reserve",{"$error":"#VALUE!"},{"$f":"\"(\"&ROUND(AVERAGEIF([1]!Master_Log[Location Ref], [1]!Table28[[#This Row],[Location Name]], [1]!Master_Log[Latitude]), 4)&\", \"&ROUND(AVERAGEIF([1]!Master_Log[Location Ref], [1]!Table28[[#This Row],[Location Name]], [1]!Master_Log[Longitude]), 4)&\")\"","v":{"$error":"#REF!"}},null,4,"Welford Boat Station",52.175240000000002,-1.7918700000000001,10,"Welford Boat Station",1]
[4,"Newbold Mill Stour",{"$error":"#VALUE!"},{"$f":"\"(\"&ROUND(AVERAGEIF([1]!Master_Log[Location Ref], [1]!Table28[[#This Row],[Location Name]], [1]!Master_Log[Latitude]), 4)&\", \"&ROUND(AVERAGEIF([1]!Master_Log[Location Ref], [1]!Table28[[#This Row],[Location Name]], [1]!Master_Log[Longitude]), 4)&\")\"","v":{"$error":"#REF!"}},null,5,"Hampton Lucy",52.211680000000001,-1.6244400000000001,2,"Hampton Lucy Allotments",0.92500000000000004]
[5,"Talton Lodge",{"$error":"#VALUE!"},{"$f":"\"(\"&ROUND(AVERAGEIF([1]!Master_Log[Location Ref], [1]!Table28[[#This Row],[Location Name]], [1]!Master_Log[Latitude]), 4)&\", \"&ROUND(AVERAGEIF([1]!Master_Log[Location Ref], [1]!Table28[[#This Row],[Location Name]], [1]!Master_Log[Longitude]), 4)&\")\"","v":{"$error":"#REF!"}},null,6,"Hampton Wood",52.238149999999997,-1.6245799999999999,3,"Hampton Wood Nature Reserve",0.89090909090909087]
[6,"Preston- on- stour river bridge",{"$error":"#VALUE!"},{"$f":"\"(\"&ROUND(AVERAGEIF([1]!Master_Log[Location Ref], [1]!Table28[[#This Row],[Location Name]], [1]!Master_Log[Latitude]), 4)&\", \"&ROUND(AVERAGEIF([1]!Master_Log[Location Ref], [1]!Table28[[#This Row],[Location Name]], [1]!Master_Log[Longitude]), 4)&\")\"","v":{"$error":"#REF!"}},null,7,"Weston on Avon",52.167430000000003,-1.7744800000000001,9,"Weston on Avon",1]
[7,"Avonbank Drive",{"$error":"#VALUE!"},{"$f":"\"(\"&ROUND(AVERAGEIF([1]!Master_Log[Location Ref], [1]!Table28[[#This Row],[Location Name]], [1]!Master_Log[Latitude]), 4)&\", \"&ROUND(AVERAGEIF([1]!Master_Log[Location Ref], [1]!Table28[[#This Row],[Location Name]], [1]!Master_Log[Longitude]), 4)&\")\"","v":{"$error":"#REF!"}},null,8,"Newbold Mill Stour",52.113444999999999,-1.6333759999999999,4,"Newbold Mill Stour",1]
[8,"Pitch 16",{"$error":"#VALUE!"},{"$f":"\"(\"&ROUND(AVERAGEIF([1]!Master_Log[Location Ref], [1]!Table28[[#This Row],[Location Name]], [1]!Master_Log[Latitude]), 4)&\", \"&ROUND(AVERAGEIF([1]!Master_Log[Location Ref], [1]!Table28[[#This Row],[Location Name]], [1]!Master_Log[Longitude]), 4)&\")\"","v":{"$error":"#REF!"}},null,9,"Swillgate A38",null,null,14,"Swillgate A38",1]
[9,"Weston on Avon",{"$error":"#VALUE!"},{"$f":"\"(\"&ROUND(AVERAGEIF([1]!Master_Log[Location Ref], [1]!Table28[[#This Row],[Location Name]], [1]!Master_Log[Latitude]), 4)&\", \"&ROUND(AVERAGEIF([1]!Master_Log[Location Ref], [1]!Table28[[#This Row],[Location Name]], [1]!Master_Log[Longitude]), 4)&\")\"","v":{"$error":"#REF!"}},null,10,"Preston- on- stour river bridge",52.146562000000003,-1.6991529999999999,6,"Preston- on- stour river bridge",1]
[10,"Welford Boat Station",{"$error":"#VALUE!"},{"$f":"\"(\"&ROUND(AVERAGEIF([1]!Master_Log[Location Ref], [1]!Table28[[#This Row],[Location Name]], [1]!Master_Log[Latitude]), 4)&\", \"&ROUND(AVERAGEIF([1]!Master_Log[Location Ref], [1]!Table28[[#This Row],[Location Name]], [1]!Master_Log[Longitude]), 4)&\")\"","v":{"$error":"#REF!"}},null,11,"Avonbank",null,null,7,"Avonbank Drive",0.9]
[11,"Barton",{"$error":"#VALUE!"},{"$f":"\"(\"&ROUND(AVERAGEIF([1]!Master_Log[Location Ref], [1]!Table28[[#This Row],[Location Name]], [1]!Master_Log[Latitude]), 4)&\", \"&ROUND(AVERAGEIF([1]!Master_Log[Location Ref], [1]!Table28[[#This Row],[Location Name]], [1]!Master_Log[Longitude]), 4)&\")\"","v":{"$error":"#REF!"}},null,12,"Pitch16",null,null,8,"Pitch 16",0.97087378640776689]
[12,"Twyning fleet",{"$error":"#VALUE!"},{"$f":"\"(\"&ROUND(AVERAGEIF([1]!Master_Log[Location Ref], [1]!Table28[[#This Row],[Location Name]], [1]!Master_Log[Latitude]), 4)&\", \"&ROUND(AVERAGEIF([1]!Master_Log[Location Ref], [1]!Table28[[#This Row],[Location Name]], [1]!Master_Log[Longitude]), 4)&\")\"","v":{"$error":"#REF!"}},null,13,"Carrant Bredon rd",null,null,1,"Carrant Bredon rd",1]
[13,"Abbey mill",{"$error":"#VALUE!"},{"$f":"\"(\"&ROUND(AVERAGEIF([1]!Master_Log[Location Ref], [1]!Table28[[#This Row],[Location Name]], [1]!Master_Log[Latitude]), 4)&\", \"&ROUND(AVERAGEIF([1]!Master_Log[Location Ref], [1]!Table28[[#This Row],[Location Name]], [1]!Master_Log[Longitude]), 4)&\")\"","v":{"$error":"#REF!"}},null,14,"Hampton Lucy",52.211680000000001,-1.6244400000000001,2,"Hampton Lucy Allotments",0.92500000000000004]
[14,"Swillgate A38",{"$error":"#VALUE!"},{"$f":"\"(\"&ROUND(AVERAGEIF([1]!Master_Log[Location Ref], [1]!Table28[[#This Row],[Location Name]], [1]!Master_Log[Latitude]), 4)&\", \"&ROUND(AVERAGEIF([1]!Master_Log[Location Ref], [1]!Table28[[#This Row],[Location Name]], [1]!Master_Log[Longitude]), 4)&\")\"","v":{"$error":"#REF!"}},null,15,"Hampton Wood",52.238149999999997,-1.6245799999999999,3,"Hampton Wood Nature Reserve",0.89090909090909087]
[15,"Clifford Chambers",{"$error":"#VALUE!"},{"$f":"\"(\"&ROUND(AVERAGEIF([1]!Master_Log[Location Ref], [1]!Table28[[#This Row],[Location Name]], [1]!Master_Log[Latitude]), 4)&\", \"&ROUND(AVERAGEIF([1]!Master_Log[Location Ref], [1]!Table28[[#This Row],[Location Name]], [1]!Master_Log[Longitude]), 4)&\")\"","v":{"$error":"#REF!"}},null,16,"Abbey Mill",51.99145,-2.1628319999999999,13,"Abbey mill",1]
[16,"Ilmington",{"$error":"#VALUE!"},{"$f":"\"(\"&ROUND(AVERAGEIF([1]!Master_Log[Location Ref], [1]!Table28[[#This Row],[Location Name]], [1]!Master_Log[Latitude]), 4)&\", \"&ROUND(AVERAGEIF([1]!Master_Log[Location Ref], [1]!Table28[[#This Row],[Location Name]], [1]!Master_Log[Longitude]), 4)&\")\"","v":{"$error":"#REF!"}},null,17,"Stour Shipston bridge",52.062027,-1.6216390000000001,17,"Shipston-on-Stour",0.67142857142857149]
[17,"Shipston-on-Stour",{"$error":"#VALUE!"},{"$f":"\"(\"&ROUND(AVERAGEIF([1]!Master_Log[Location Ref], [1]!Table28[[#This Row],[Location Name]], [1]!Master_Log[Latitude]), 4)&\", \"&ROUND(AVERAGEIF([1]!Master_Log[Location Ref], [1]!Table28[[#This Row],[Location Name]], [1]!Master_Log[Longitude]), 4)&\")\"","v":{"$error":"#REF!"}},null,18,"Stour, Mill House, Newbold",52.113387000000003,-1.6333120000000001,4,"Newbold Mill Stour",0.91666666666666674]
[18,"Trinity Church Stratford",{"$error":"#VALUE!"},{"$f":"\"(\"&ROUND(AVERAGEIF([1]!Master_Log[Location Ref], [1]!Table28[[#This Row],[Location Name]], [1]!Master_Log[Latitude]), 4)&\", \"&ROUND(AVERAGEIF([1]!Master_Log[Location Ref], [1]!Table28[[#This Row],[Location Name]], [1]!Master_Log[Longitude]), 4)&\")\"","v":{"$error":"#REF!"}},null,19,"Welford Boat Station",52.175240000000002,-1.7918700000000001,10,"Welford Boat Station",1]
[19,"Swiffen Bank",null,{"$f":"\"(\"&ROUND(AVERAGEIF([1]!Master_Log[Location Ref], [1]!Table28[[#This Row],[Location Name]], [1]!Master_Log[Latitude]), 4)&\", \"&ROUND(AVERAGEIF([1]!Master_Log[Location Ref], [1]!Table28[[#This Row],[Location Name]], [1]!Master_Log[Longitude]), 4)&\")\"","v":{"$error":"#REF!"}},null,20,"Preston river bridge",52.146673999999997,-1.6993199999999999,6,"Preston- on- stour river bridge",0.93846153846153846]
[20,"Alveston Weir",null,{"$f":"\"(\"&ROUND(AVERAGEIF([1]!Master_Log[Location Ref], [1]!Table28[[#This Row],[Location Name]], [1]!Master_Log[Latitude]), 4)&\", \"&ROUND(AVERAGEIF([1]!Master_Log[Location Ref], [1]!Table28[[#This Row],[Location Name]], [1]!Master_Log[Longitude]), 4)&\")\"","v":{"$error":"#REF!"}},null,21,"Stour Bridge Shipston",52.062075999999998,-1.621772,17,"Shipston-on-Stour",0.67142857142857149]
[21,"Stretton-on-Fosse Sewage",null,{"$f":"\"(\"&ROUND(AVERAGEIF([1]!Master_Log[Location Ref], [1]!Table28[[#This Row],[Location Name]], [1]!Master_Log[Latitude]), 4)&\", \"&ROUND(AVERAGEIF([1]!Master_Log[Location Ref], [1]!Table28[[#This Row],[Location Name]], [1]!Master_Log[Longitude]), 4)&\")\"","v":{"$error":"#REF!"}},null,22,"Abbey mill",51.991416000000001,-2.1629619999999998,13,"Abbey mill",1]
[22,"Stretton-on-Fosse Village",null,{"$f":"\"(\"&ROUND(AVERAGEIF([1]!Master_Log[Location Ref], [1]!Table28[[#This Row],[Location Name]], [1]!Master_Log[Latitude]), 4)&\", \"&ROUND(AVERAGEIF([1]!Master_Log[Location Ref], [1]!Table28[[#This Row],[Location Name]], [1]!Master_Log[Longitude]), 4)&\")\"","v":{"$error":"#REF!"}},null,23,"Avonbank",null,null,7,"Avonbank Drive",0.9]
[23,"Cherington",null,{"$f":"\"(\"&ROUND(AVERAGEIF([1]!Master_Log[Location Ref], [1]!Table28[[#This Row],[Location Name]], [1]!Master_Log[Latitude]), 4)&\", \"&ROUND(AVERAGEIF([1]!Master_Log[Location Ref], [1]!Table28[[#This Row],[Location Name]], [1]!Master_Log[Longitude]), 4)&\")\"","v":{"$error":"#REF!"}},null,24,"Pitch16",null,null,8,"Pitch 16",0.97087378640776689]
[null,null,null,null,null,25,"Twyning Fleet",52.027113,-2.1406619999999998,12,"Twyning fleet",1]
[null,null,null,null,null,26,"Welford Boat Station",52.175240000000002,-1.7918700000000001,10,"Welford Boat Station",1]
[null,null,null,null,null,27,"Hampton Lucy",52.211680000000001,-1.6244400000000001,2,"Hampton Lucy Allotments",0.92500000000000004]
[null,null,null,null,null,28,"Hampton Wood",52.238149999999997,-1.6245799999999999,3,"Hampton Wood Nature Reserve",0.89090909090909087]
[null,null,null,null,null,29,"Carrant Bredon rd",null,null,1,"Carrant Bredon rd",1]
[null,null,null,null,null,30,"Barton",52.161209999999997,-1.8301499999999999,11,"Barton",1]
[null,null,null,null,null,31,"Newbold Mill Stour",52.113469000000002,-1.6333439999999999,4,"Newbold Mill Stour",1]
[null,null,null,null,null,32,"Swillgate A38",null,null,14,"Swillgate A38",1]
[null,null,null,null,null,33,"Preston onStour river bridge",52.146552999999997,-1.6992370000000001,6,"Preston- on- stour river bridge",0.98939929328621901]
[null,null,null,null,null,34,"Abbey mill",null,null,13,"Abbey mill",1]
[null,null,null,null,null,35,"Carrant Bredon rd",null,null,1,"Carrant Bredon rd",1]
[null,null,null,null,null,36,"The Dell, TRINITY CHURCH",52.187393,-1.706607,null,null,0]
[null,null,null,null,null,37,"Avonbank Drive",52.177247999999999,-1.7358929999999999,7,"Avonbank Drive",1]
[null,null,null,null,null,38,"Pitch 16",52.172609000000001,-1.7454480000000001,8,"Pitch 16",1]
[null,null,null,null,null,39,"Newbold Mill Stour",52.113517000000002,-1.633219,4,"Newbold Mill Stour",1]
[null,null,null,null,null,40,"Swillgate A38",null,null,14,"Swillgate A38",1]
[null,null,null,null,null,41,"Preston river bridge",52.146639,-1.6990339999999999,6,"Preston- on- stour river bridge",0.93846153846153846]
[null,null,null,null,null,42,"Abbey Mill",null,null,13,"Abbey mill",1]
[null,null,null,null,null,43,"Stour, Mill Bridge, Shipston",52.062021999999999,-1.621729,17,"Shipston-on-Stour",0.65476190476190488]
[null,null,null,null,null,44,"Mill Stour Newbold",52.113486999999999,-1.6333500000000001,4,"Newbold Mill Stour",1]
[null,null,null,null,null,45,"Preston river bridge",52.146582000000002,-1.6992160000000001,6,"Preston- on- stour river bridge",0.93846153846153846]
[null,null,null,null,null,46,"Swillgate A38",null,null,14,"Swillgate A38",1]
[null,null,null,null,null,47,"Illmington middle st",52.090074000000001,-1.692588,null,null,0]
[null,null,null,null,null,48,"Welford Boat Station",52.175240000000002,-1.7918700000000001,10,"Welford Boat Station",1]
[null,null,null,null,null,49,"Hampton Lucy",52.211680000000001,-1.6244400000000001,2,"Hampton Lucy Allotments",0.92500000000000004]
[null,null,null,null,null,50,"Hampton Wood",52.238149999999997,-1.6245799999999999,3,"Hampton Wood Nature Reserve",0.89090909090909087]
[null,null,null,null,null,51,"Abbey mill",51.991534000000001,-2.1627879999999999,13,"Abbey mill",1]
[null,null,null,null,null,52,"Weston on Avon",52.167430000000003,-1.7744800000000001,9,"Weston on Avon",1]
[null,null,null,null,null,53,"Stour Shipston Mill bridge",52.062024999999998,-1.621747,17,"Shipston-on-Stour",0.65476190476190488]
[null,null,null,null,null,54,"Stour, Mill Newbold",52.113520000000001,-1.6333390000000001,4,"Newbold Mill Stour",1]
[null,null,null,null,null,55,"Barton",52.161209999999997,-1.8301499999999999,11,"Barton",1]
[null,null,null,null,null,56,"Swillgate A38",null,null,14,"Swillgate A38",1]
[null,null,null,null,null,57,"Preston River bridge",52.146481999999999,-1.699892,6,"Preston- on- stour river bridge",0.93846153846153846]
[null,null,null,null,null,58,"Twyning Fleet",52.026986999999998,-2.1405219999999998,12,"Twyning fleet",1]
[null,null,null,null,null,59,"Carrant Bredon rd",51.994807999999999,-2.151078,1,"Carrant Bredon rd",1]
[null,null,null,null,null,60,"Avonbank Drive",null,null,7,"Avonbank Drive",1]
[null,null,null,null,null,61,"Abbey mill",null,null,13,"Abbey mill",1]
[null,null,null,null,null,62,"Pitch 16",52.172694999999997,-1.745101,8,"Pitch 16",1]
[null,null,null,null,null,63,"Welford Boat Station",52.175240000000002,-1.7918700000000001,10,"Welford Boat Station",1]
[null,null,null,null,null,64,"Hampton Lucy",52.211680000000001,-1.6244400000000001,2,"Hampton Lucy Allotments",0.92500000000000004]
[null,null,null,null,null,65,"Hampton Wood",52.238149999999997,-1.6245799999999999,3,"Hampton Wood Nature Reserve",0.89090909090909087]
[null,null,null,null,null,66,"Weston on Avon",52.167430000000003,-1.7744800000000001,9,"Weston on Avon",1]
[null,null,null,null,null,67,"Clifford Chambers",52.166370000000001,-1.708032,15,"Clifford Chambers",1]
[null,null,null,null,null,68,"Mill Stour Newbold",52.112833000000002,-1.6334340000000001,4,"Newbold Mill Stour",1]
[null,null,null,null,null,69,"Swillgate A38",null,null,14,"Swillgate A38",1]
[null,null,null,null,null,70,"Preston river bridge",52.146563,-1.6999219999999999,6,"Preston- on- stour river bridge",0.93846153846153846]
[null,null,null,null,null,71,"Avonbank",null,null,7,"Avonbank Drive",0.9]
[null,null,null,null,null,72,"Abbey mill",null,null,13,"Abbey mill",1]
[null,null,null,null,null,73,"Hampton Lucy",52.211680000000001,-1.6244400000000001,2,"Hampton Lucy Allotments",0.92500000000000004]
[null,null,null,null,null,74,"Hampton Wood",52.238149999999997,-1.6245799999999999,3,"Hampton Wood Nature Reserve",0.89090909090909087]
[null,null,null,null,null,75,"Clifford Chambers mill bridge",52.166370000000001,-1.708032,15,"Clifford Chambers",0.90909090909090906]
[null,null,null,null,null,76,"Weston on Avon",52.167430000000003,-1.7744800000000001,9,"Weston on Avon",1]
[null,null,null,null,null,77,"Mill Stour Newbold",52.112869000000003,-1.633435,4,"Newbold Mill Stour",1]
[null,null,null,null,null,78,"Swillgate A38",null,null,14,"Swillgate A38",1]
[null,null,null,null,null,79,"Preston river bridge.",52.146653000000001,-1.699214,6,"Preston- on- stour river bridge",0.93846153846153846]
[null,null,null,null,null,80,"Carrant Bredon rd",null,null,1,"Carrant Bredon rd",1]
[null,null,null,null,null,81,"Hampton Lucy",52.211680000000001,-1.6244400000000001,2,"Hampton Lucy Allotments",0.92500000000000004]
[null,null,null,null,null,82,"Hampton Wood",52.238149999999997,-1.6245799999999999,3,"Hampton Wood Nature Reserve",0.89090909090909087]
[null,null,null,null,null,83,"Clifford Chambers mill bridge",52.166370000000001,-1.708032,15,"Clifford Chambers",0.90909090909090906]
[null,null,null,null,null,84,"Alveston Weir",52.214388999999997,-1.6601520000000001,null,null,0]
[null,null,null,null,null,85,"Swiffen Bank",52.206477999999997,-1.653894,null,null,0]
[null,null,null,null,null,86,"Abbey mill",51.991028,-2.1625719999999999,13,"Abbey mill",1]
[null,null,null,null,null,87,"Weston on Avon",52.167430000000003,-1.7744800000000001,9,"Weston on Avon",1]
[null,null,null,null,null,88,"Swillgate A38",null,null,14,"Swillgate A38",1]
[null,null,null,null,null,89,"Preston river bridge",52.146543000000001,-1.699527,6,"Preston- on- stour river bridge",0.93846153846153846]
[null,null,null,null,null,90,"Welford Boat Station",52.175240000000002,-1.7918700000000001,10,"Welford Boat Station",1]
[null,null,null,null,null,91,"Hampton Lucy",52.211680000000001,-1.6244400000000001,2,"Hampton Lucy Allotments",0.92500000000000004]
[null,null,null,null,null,92,"Hampton Wood",52.238149999999997,-1.6245799999999999,3,"Hampton Wood Nature Reserve",0.89090909090909087]
[null,null,null,null,null,93,"Clifford Chambers mill bridge",52.166037000000003,1.708032,15,"Clifford Chambers",0.90909090909090906]
[null,null,null,null,null,94,"Carrant Bredon rd",null,null,1,"Carrant Bredon rd",1]
[null,null,null,null,null,95,"Avonbank",null,null,7,"Avonbank Drive",0.9]
[null,null,null,null,null,96,"Pitch16",null,null,8,"Pitch 16",0.97087378640776689]
[null,null,null,null,null,97,"Abbey mill",null,null,13,"Abbey mill",1]
[null,null,null,null,null,98,"Weston on Avon",52.167430000000003,-1.7744800000000001,9,"Weston on Avon",1]
[null,null,null,null,null,99,"Swiffen Bank",52.206339,-1.6550020000000001,null,null,0]
[null,null,null,null,null,100,"Alveston Weir",52.214388999999997,-1.6601520000000001,null,null,0]
[null,null,null,null,null,101,"Newbold Mill Stour",52.112864999999999,-1.6334340000000001,4,"Newbold Mill Stour",1]
[null,null,null,null,null,102,"Swillgate A38",null,null,14,"Swillgate A38",1]
[null,null,null,null,null,103,"Stour, Cherington, bridge next to treatment plant",52.030172999999998,-1.5791440000000001,null,null,0]
[null,null,null,null,null,104,"Stour, Shipston, Mill bridge",52.062030999999998,-1.6221080000000001,17,"Shipston-on-Stour",0.65476190476190488]
[null,null,null,null,null,105,"Preston river bridge",52.146470999999998,-1.6997869999999999,6,"Preston- on- stour river bridge",0.93846153846153846]
[null,null,null,null,null,106,"Abbey mill",null,null,13,"Abbey mill",1]
[null,null,null,null,null,107,"Welford Boat Station",52.175240000000002,-1.7918700000000001,10,"Welford Boat Station",1]
[null,null,null,null,null,108,"Hampton Lucy",52.211680000000001,-1.6244400000000001,2,"Hampton Lucy Allotments",0.92500000000000004]
[null,null,null,null,null,109,"Hampton Wood",52.238149999999997,-1.6245799999999999,3,"Hampton Wood Nature Reserve",0.89090909090909087]
[null,null,null,null,null,110,"Avonbank drive",52.177214999999997,-1.7357640000000001,7,"Avonbank Drive",1]
[null,null,null,null,null,111,"Pitch 16",52.172566000000003,-1.745363,8,"Pitch 16",1]
[null,null,null,null,null,112,"Clifford mill bridge",52.166370000000001,-1.7083200000000001,null,null,0]
[null,null,null,null,null,113,"Stour Stretton-on-Fosse sewage",52.045651999999997,-1.6719360000000001,null,null,0]
[null,null,null,null,null,114,"Stour Stretton-on-Fosse village side",52.046506999999998,-1.6734880000000001,null,null,0]
[null,null,null,null,null,115,"Weston on Avon",52.167430000000003,-1.7744800000000001,9,"Weston on Avon",1]
[null,null,null,null,null,116,"Newbold Mill Stour",null,null,4,"Newbold Mill Stour",1]
[null,null,null,null,null,117,"Preston river bridge",52.146557999999999,-1.6991499999999999,6,"Preston- on- stour river bridge",0.93846153846153846]
[null,null,null,null,null,118,"Swiffen Bank",null,null,null,null,0]
[null,null,null,null,null,119,"Alveston Weir",52.207715999999998,-1.6586399999999999,null,null,0]
[null,null,null,null,null,120,"Carrant Bredon rd",null,null,1,"Carrant Bredon rd",1]
[null,null,null,null,null,121,"Swillgate A38",null,null,14,"Swillgate A38",1]
[null,null,null,null,null,122,"Abbey mill",51.991405,-2.16309,13,"Abbey mill",1]
[null,null,null,null,null,123,"Clifford Chambers mill bridge",52.166370000000001,-1.708032,15,"Clifford Chambers",0.90909090909090906]
[null,null,null,null,null,124,"Welford Boat Station",52.175240000000002,-1.7918700000000001,10,"Welford Boat Station",1]
[null,null,null,null,null,125,"Hampton Lucy",52.211680000000001,-1.6244400000000001,2,"Hampton Lucy Allotments",0.92500000000000004]
[null,null,null,null,null,126,"Hampton Wood",52.238149999999997,-1.6245799999999999,3,"Hampton Wood Nature Reserve",0.89090909090909087]
[null,null,null,null,null,127,"Weston on Avon",52.167430000000003,-1.7744800000000001,9,"Weston on Avon",1]
[null,null,null,null,null,128,"Stour Stretton-on-Fosse sewage",52.045651999999997,-1.6719360000000001,null,null,0]
[null,null,null,null,null,129,"Stour Stretton-on-Fosse village side",52.046506999999998,-1.6734880000000001,null,null,0]
[null,null,null,null,null,130,"Swillgate A38",null,null,14,"Swillgate A38",1]
[null,null,null,null,null,131,"Swiffen Bank",52.207673,-1.6584449999999999,null,null,0]
[null,null,null,null,null,132,"Alveston Weir",52.214275999999998,-1.6601459999999999,null,null,0]
[null,null,null,null,null,133,"Carrant Bredon rd",null,null,1,"Carrant Bredon rd",1]
[null,null,null,null,null,134,"Pitch 16",null,null,8,"Pitch 16",1]
[null,null,null,null,null,135,"Abbey mill",51.991453,-2.1629679999999998,13,"Abbey mill",1]
[null,null,null,null,null,136,"Clifford Chambers mill bridge",52.166370000000001,-1.708032,15,"Clifford Chambers",0.90909090909090906]
[null,null,null,null,null,137,"Barton",52.161209999999997,-1.8301499999999999,11,"Barton",1]
[null,null,null,null,null,138,"Welford Boat Station",52.175240000000002,-1.7918700000000001,10,"Welford Boat Station",1]
[null,null,null,null,null,139,"Hampton Lucy",52.211680000000001,-1.6244400000000001,2,"Hampton Lucy Allotments",0.92500000000000004]
[null,null,null,null,null,140,"Hampton Wood",52.238149999999997,-1.6245799999999999,3,"Hampton Wood Nature Reserve",0.89090909090909087]
[null,null,null,null,null,141,"Preston river bridge",52.134785000000001,-1.741296,6,"Preston- on- stour river bridge",0.93846153846153846]
[null,null,null,null,null,142,"Stour Stretton-on-Fosse sewage",52.045659999999998,-1.671924,null,null,0]
[null,null,null,null,null,143,"Stour Stretton-on-Fosse Village side",52.046472000000001,-1.673438,null,null,0]
[null,null,null,null,null,144,"Weston on Avon",52.167430000000003,-1.7744800000000001,9,"Weston on Avon",1]
[null,null,null,null,null,145,"Newbold Mill Stour",52.112850999999999,-1.633435,4,"Newbold Mill Stour",1]

{"sheet":"Locations","index":5,"n_rows":145,"n_cols":12,"rows_kept":145,"cut":false,"hidden":true,"merged":[]}
["Test Site Number","Location Name","Nearest Town","(Lat,Long)",null,"Entry ID","Location Name","Latitude","Longitude","Test Site Number","Location Name2","Similarity"]
[1,"Carrant Bredon rd",{"$error":"#VALUE!"},{"$f":"\"(\"&ROUND(AVERAGEIF([1]!Master_Log[Location Ref], [1]!Table28[[#This Row],[Location Name]], [1]!Master_Log[Latitude]), 4)&\", \"&ROUND(AVERAGEIF([1]!Master_Log[Location Ref], [1]!Table28[[#This Row],[Location Name]], [1]!Master_Log[Longitude]), 4)&\")\"","v":{"$error":"#REF!"}},null,2,"Carrant Bredon rd",null,null,1,"Carrant Bredon rd",1]
[{"$f":"A2+1","v":2},"Hampton Lucy Allotments",{"$error":"#VALUE!"},{"$f":"\"(\"&ROUND(AVERAGEIF([1]!Master_Log[Location Ref], [1]!Table28[[#This Row],[Location Name]], [1]!Master_Log[Latitude]), 4)&\", \"&ROUND(AVERAGEIF([1]!Master_Log[Location Ref], [1]!Table28[[#This Row],[Location Name]], [1]!Master_Log[Longitude]), 4)&\")\"","v":{"$error":"#REF!"}},null,3,"Abbey Mill",null,null,13,"Abbey mill",1]
[{"$f":"A3+1","v":3},"Hampton Wood Nature Reserve",{"$error":"#VALUE!"},{"$f":"\"(\"&ROUND(AVERAGEIF([1]!Master_Log[Location Ref], [1]!Table28[[#This Row],[Location Name]], [1]!Master_Log[Latitude]), 4)&\", \"&ROUND(AVERAGEIF([1]!Master_Log[Location Ref], [1]!Table28[[#This Row],[Location Name]], [1]!Master_Log[Longitude]), 4)&\")\"","v":{"$error":"#REF!"}},null,4,"Welford Boat Station",52.175240000000002,-1.7918700000000001,10,"Welford Boat Station",1]
[4,"Newbold Mill Stour",{"$error":"#VALUE!"},{"$f":"\"(\"&ROUND(AVERAGEIF([1]!Master_Log[Location Ref], [1]!Table28[[#This Row],[Location Name]], [1]!Master_Log[Latitude]), 4)&\", \"&ROUND(AVERAGEIF([1]!Master_Log[Location Ref], [1]!Table28[[#This Row],[Location Name]], [1]!Master_Log[Longitude]), 4)&\")\"","v":{"$error":"#REF!"}},null,5,"Hampton Lucy",52.211680000000001,-1.6244400000000001,2,"Hampton Lucy Allotments",0.92500000000000004]
[5,"Talton Lodge",{"$error":"#VALUE!"},{"$f":"\"(\"&ROUND(AVERAGEIF([1]!Master_Log[Location Ref], [1]!Table28[[#This Row],[Location Name]], [1]!Master_Log[Latitude]), 4)&\", \"&ROUND(AVERAGEIF([1]!Master_Log[Location Ref], [1]!Table28[[#This Row],[Location Name]], [1]!Master_Log[Longitude]), 4)&\")\"","v":{"$error":"#REF!"}},null,6,"Hampton Wood",52.238149999999997,-1.6245799999999999,3,"Hampton Wood Nature Reserve",0.89090909090909087]
[6,"Preston- on- stour river bridge",{"$error":"#VALUE!"},{"$f":"\"(\"&ROUND(AVERAGEIF([1]!Master_Log[Location Ref], [1]!Table28[[#This Row],[Location Name]], [1]!Master_Log[Latitude]), 4)&\", \"&ROUND(AVERAGEIF([1]!Master_Log[Location Ref], [1]!Table28[[#This Row],[Location Name]], [1]!Master_Log[Longitude]), 4)&\")\"","v":{"$error":"#REF!"}},null,7,"Weston on Avon",52.167430000000003,-1.7744800000000001,9,"Weston on Avon",1]
[7,"Avonbank Drive",{"$error":"#VALUE!"},{"$f":"\"(\"&ROUND(AVERAGEIF([1]!Master_Log[Location Ref], [1]!Table28[[#This Row],[Location Name]], [1]!Master_Log[Latitude]), 4)&\", \"&ROUND(AVERAGEIF([1]!Master_Log[Location Ref], [1]!Table28[[#This Row],[Location Name]], [1]!Master_Log[Longitude]), 4)&\")\"","v":{"$error":"#REF!"}},null,8,"Newbold Mill Stour",52.113444999999999,-1.6333759999999999,4,"Newbold Mill Stour",1]
[8,"Pitch 16",{"$error":"#VALUE!"},{"$f":"\"(\"&ROUND(AVERAGEIF([1]!Master_Log[Location Ref], [1]!Table28[[#This Row],[Location Name]], [1]!Master_Log[Latitude]), 4)&\", \"&ROUND(AVERAGEIF([1]!Master_Log[Location Ref], [1]!Table28[[#This Row],[Location Name]], [1]!Master_Log[Longitude]), 4)&\")\"","v":{"$error":"#REF!"}},null,9,"Swillgate A38",null,null,14,"Swillgate A38",1]
[9,"Weston on Avon",{"$error":"#VALUE!"},{"$f":"\"(\"&ROUND(AVERAGEIF([1]!Master_Log[Location Ref], [1]!Table28[[#This Row],[Location Name]], [1]!Master_Log[Latitude]), 4)&\", \"&ROUND(AVERAGEIF([1]!Master_Log[Location Ref], [1]!Table28[[#This Row],[Location Name]], [1]!Master_Log[Longitude]), 4)&\")\"","v":{"$error":"#REF!"}},null,10,"Preston- on- stour river bridge",52.146562000000003,-1.6991529999999999,6,"Preston- on- stour river bridge",1]
[10,"Welford Boat Station",{"$error":"#VALUE!"},{"$f":"\"(\"&ROUND(AVERAGEIF([1]!Master_Log[Location Ref], [1]!Table28[[#This Row],[Location Name]], [1]!Master_Log[Latitude]), 4)&\", \"&ROUND(AVERAGEIF([1]!Master_Log[Location Ref], [1]!Table28[[#This Row],[Location Name]], [1]!Master_Log[Longitude]), 4)&\")\"","v":{"$error":"#REF!"}},null,11,"Avonbank",null,null,7,"Avonbank Drive",0.9]
[11,"Barton",{"$error":"#VALUE!"},{"$f":"\"(\"&ROUND(AVERAGEIF([1]!Master_Log[Location Ref], [1]!Table28[[#This Row],[Location Name]], [1]!Master_Log[Latitude]), 4)&\", \"&ROUND(AVERAGEIF([1]!Master_Log[Location Ref], [1]!Table28[[#This Row],[Location Name]], [1]!Master_Log[Longitude]), 4)&\")\"","v":{"$error":"#REF!"}},null,12,"Pitch16",null,null,8,"Pitch 16",0.97087378640776689]
[12,"Twyning fleet",{"$error":"#VALUE!"},{"$f":"\"(\"&ROUND(AVERAGEIF([1]!Master_Log[Location Ref], [1]!Table28[[#This Row],[Location Name]], [1]!Master_Log[Latitude]), 4)&\", \"&ROUND(AVERAGEIF([1]!Master_Log[Location Ref], [1]!Table28[[#This Row],[Location Name]], [1]!Master_Log[Longitude]), 4)&\")\"","v":{"$error":"#REF!"}},null,13,"Carrant Bredon rd",null,null,1,"Carrant Bredon rd",1]
[13,"Abbey mill",{"$error":"#VALUE!"},{"$f":"\"(\"&ROUND(AVERAGEIF([1]!Master_Log[Location Ref], [1]!Table28[[#This Row],[Location Name]], [1]!Master_Log[Latitude]), 4)&\", \"&ROUND(AVERAGEIF([1]!Master_Log[Location Ref], [1]!Table28[[#This Row],[Location Name]], [1]!Master_Log[Longitude]), 4)&\")\"","v":{"$error":"#REF!"}},null,14,"Hampton Lucy",52.211680000000001,-1.6244400000000001,2,"Hampton Lucy Allotments",0.92500000000000004]
[14,"Swillgate A38",{"$error":"#VALUE!"},{"$f":"\"(\"&ROUND(AVERAGEIF([1]!Master_Log[Location Ref], [1]!Table28[[#This Row],[Location Name]], [1]!Master_Log[Latitude]), 4)&\", \"&ROUND(AVERAGEIF([1]!Master_Log[Location Ref], [1]!Table28[[#This Row],[Location Name]], [1]!Master_Log[Longitude]), 4)&\")\"","v":{"$error":"#REF!"}},null,15,"Hampton Wood",52.238149999999997,-1.6245799999999999,3,"Hampton Wood Nature Reserve",0.89090909090909087]
[15,"Clifford Chambers",{"$error":"#VALUE!"},{"$f":"\"(\"&ROUND(AVERAGEIF([1]!Master_Log[Location Ref], [1]!Table28[[#This Row],[Location Name]], [1]!Master_Log[Latitude]), 4)&\", \"&ROUND(AVERAGEIF([1]!Master_Log[Location Ref], [1]!Table28[[#This Row],[Location Name]], [1]!Master_Log[Longitude]), 4)&\")\"","v":{"$error":"#REF!"}},null,16,"Abbey Mill",51.99145,-2.1628319999999999,13,"Abbey mill",1]
[16,"Ilmington",{"$error":"#VALUE!"},{"$f":"\"(\"&ROUND(AVERAGEIF([1]!Master_Log[Location Ref], [1]!Table28[[#This Row],[Location Name]], [1]!Master_Log[Latitude]), 4)&\", \"&ROUND(AVERAGEIF([1]!Master_Log[Location Ref], [1]!Table28[[#This Row],[Location Name]], [1]!Master_Log[Longitude]), 4)&\")\"","v":{"$error":"#REF!"}},null,17,"Stour Shipston bridge",52.062027,-1.6216390000000001,17,"Shipston-on-Stour",0.67142857142857149]
[17,"Shipston-on-Stour",{"$error":"#VALUE!"},{"$f":"\"(\"&ROUND(AVERAGEIF([1]!Master_Log[Location Ref], [1]!Table28[[#This Row],[Location Name]], [1]!Master_Log[Latitude]), 4)&\", \"&ROUND(AVERAGEIF([1]!Master_Log[Location Ref], [1]!Table28[[#This Row],[Location Name]], [1]!Master_Log[Longitude]), 4)&\")\"","v":{"$error":"#REF!"}},null,18,"Stour, Mill House, Newbold",52.113387000000003,-1.6333120000000001,4,"Newbold Mill Stour",0.91666666666666674]
[18,"Trinity Church Stratford",{"$error":"#VALUE!"},{"$f":"\"(\"&ROUND(AVERAGEIF([1]!Master_Log[Location Ref], [1]!Table28[[#This Row],[Location Name]], [1]!Master_Log[Latitude]), 4)&\", \"&ROUND(AVERAGEIF([1]!Master_Log[Location Ref], [1]!Table28[[#This Row],[Location Name]], [1]!Master_Log[Longitude]), 4)&\")\"","v":{"$error":"#REF!"}},null,19,"Welford Boat Station",52.175240000000002,-1.7918700000000001,10,"Welford Boat Station",1]
[19,"Swiffen Bank",null,{"$f":"\"(\"&ROUND(AVERAGEIF([1]!Master_Log[Location Ref], [1]!Table28[[#This Row],[Location Name]], [1]!Master_Log[Latitude]), 4)&\", \"&ROUND(AVERAGEIF([1]!Master_Log[Location Ref], [1]!Table28[[#This Row],[Location Name]], [1]!Master_Log[Longitude]), 4)&\")\"","v":{"$error":"#REF!"}},null,20,"Preston river bridge",52.146673999999997,-1.6993199999999999,6,"Preston- on- stour river bridge",0.93846153846153846]
[20,"Alveston Weir",null,{"$f":"\"(\"&ROUND(AVERAGEIF([1]!Master_Log[Location Ref], [1]!Table28[[#This Row],[Location Name]], [1]!Master_Log[Latitude]), 4)&\", \"&ROUND(AVERAGEIF([1]!Master_Log[Location Ref], [1]!Table28[[#This Row],[Location Name]], [1]!Master_Log[Longitude]), 4)&\")\"","v":{"$error":"#REF!"}},null,21,"Stour Bridge Shipston",52.062075999999998,-1.621772,17,"Shipston-on-Stour",0.67142857142857149]
[21,"Stretton-on-Fosse Sewage",null,{"$f":"\"(\"&ROUND(AVERAGEIF([1]!Master_Log[Location Ref], [1]!Table28[[#This Row],[Location Name]], [1]!Master_Log[Latitude]), 4)&\", \"&ROUND(AVERAGEIF([1]!Master_Log[Location Ref], [1]!Table28[[#This Row],[Location Name]], [1]!Master_Log[Longitude]), 4)&\")\"","v":{"$error":"#REF!"}},null,22,"Abbey mill",51.991416000000001,-2.1629619999999998,13,"Abbey mill",1]
[22,"Stretton-on-Fosse Village",null,{"$f":"\"(\"&ROUND(AVERAGEIF([1]!Master_Log[Location Ref], [1]!Table28[[#This Row],[Location Name]], [1]!Master_Log[Latitude]), 4)&\", \"&ROUND(AVERAGEIF([1]!Master_Log[Location Ref], [1]!Table28[[#This Row],[Location Name]], [1]!Master_Log[Longitude]), 4)&\")\"","v":{"$error":"#REF!"}},null,23,"Avonbank",null,null,7,"Avonbank Drive",0.9]
[23,"Cherington",null,{"$f":"\"(\"&ROUND(AVERAGEIF([1]!Master_Log[Location Ref], [1]!Table28[[#This Row],[Location Name]], [1]!Master_Log[Latitude]), 4)&\", \"&ROUND(AVERAGEIF([1]!Master_Log[Location Ref], [1]!Table28[[#This Row],[Location Name]], [1]!Master_Log[Longitude]), 4)&\")\"","v":{"$error":"#REF!"}},null,24,"Pitch16",null,null,8,"Pitch 16",0.97087378640776689]
[24,"Clifford Mill Bridge",null,{"$f":"\"(\"&ROUND(AVERAGEIF([1]!Master_Log[Location Ref], [1]!Table28[[#This Row],[Location Name]], [1]!Master_Log[Latitude]), 4)&\", \"&ROUND(AVERAGEIF([1]!Master_Log[Location Ref], [1]!Table28[[#This Row],[Location Name]], [1]!Master_Log[Longitude]), 4)&\")\"","v":{"$error":"#REF!"}},null,25,"Twyning Fleet",52.027113,-2.1406619999999998,12,"Twyning fleet",1]
[null,null,null,null,null,26,"Welford Boat Station",52.175240000000002,-1.7918700000000001,10,"Welford Boat Station",1]
[null,null,null,null,null,27,"Hampton Lucy",52.211680000000001,-1.6244400000000001,2,"Hampton Lucy Allotments",0.92500000000000004]
[null,null,null,null,null,28,"Hampton Wood",52.238149999999997,-1.6245799999999999,3,"Hampton Wood Nature Reserve",0.89090909090909087]
[null,null,null,null,null,29,"Carrant Bredon rd",null,null,1,"Carrant Bredon rd",1]
[null,null,null,null,null,30,"Barton",52.161209999999997,-1.8301499999999999,11,"Barton",1]
[null,null,null,null,null,31,"Newbold Mill Stour",52.113469000000002,-1.6333439999999999,4,"Newbold Mill Stour",1]
[null,null,null,null,null,32,"Swillgate A38",null,null,14,"Swillgate A38",1]
[null,null,null,null,null,33,"Preston onStour river bridge",52.146552999999997,-1.6992370000000001,6,"Preston- on- stour river bridge",0.98939929328621901]
[null,null,null,null,null,34,"Abbey mill",null,null,13,"Abbey mill",1]
[null,null,null,null,null,35,"Carrant Bredon rd",null,null,1,"Carrant Bredon rd",1]
[null,null,null,null,null,36,"The Dell, TRINITY CHURCH",52.187393,-1.706607,18,"Trinity Church Stratford",0]
[null,null,null,null,null,37,"Avonbank Drive",52.177247999999999,-1.7358929999999999,7,"Avonbank Drive",1]
[null,null,null,null,null,38,"Pitch 16",52.172609000000001,-1.7454480000000001,8,"Pitch 16",1]
[null,null,null,null,null,39,"Newbold Mill Stour",52.113517000000002,-1.633219,4,"Newbold Mill Stour",1]
[null,null,null,null,null,40,"Swillgate A38",null,null,14,"Swillgate A38",1]
[null,null,null,null,null,41,"Preston river bridge",52.146639,-1.6990339999999999,6,"Preston- on- stour river bridge",0.93846153846153846]
[null,null,null,null,null,42,"Abbey Mill",null,null,13,"Abbey mill",1]
[null,null,null,null,null,43,"Stour, Mill Bridge, Shipston",52.062021999999999,-1.621729,17,"Shipston-on-Stour",0.65476190476190488]
[null,null,null,null,null,44,"Mill Stour Newbold",52.113486999999999,-1.6333500000000001,4,"Newbold Mill Stour",1]
[null,null,null,null,null,45,"Preston river bridge",52.146582000000002,-1.6992160000000001,6,"Preston- on- stour river bridge",0.93846153846153846]
[null,null,null,null,null,46,"Swillgate A38",null,null,14,"Swillgate A38",1]
[null,null,null,null,null,47,"Illmington middle st",52.090074000000001,-1.692588,16,"Ilmington",0]
[null,null,null,null,null,48,"Welford Boat Station",52.175240000000002,-1.7918700000000001,10,"Welford Boat Station",1]
[null,null,null,null,null,49,"Hampton Lucy",52.211680000000001,-1.6244400000000001,2,"Hampton Lucy Allotments",0.92500000000000004]
[null,null,null,null,null,50,"Hampton Wood",52.238149999999997,-1.6245799999999999,3,"Hampton Wood Nature Reserve",0.89090909090909087]
[null,null,null,null,null,51,"Abbey mill",51.991534000000001,-2.1627879999999999,13,"Abbey mill",1]
[null,null,null,null,null,52,"Weston on Avon",52.167430000000003,-1.7744800000000001,9,"Weston on Avon",1]
[null,null,null,null,null,53,"Stour Shipston Mill bridge",52.062024999999998,-1.621747,17,"Shipston-on-Stour",0.65476190476190488]
[null,null,null,null,null,54,"Stour, Mill Newbold",52.113520000000001,-1.6333390000000001,4,"Newbold Mill Stour",1]
[null,null,null,null,null,55,"Barton",52.161209999999997,-1.8301499999999999,11,"Barton",1]
[null,null,null,null,null,56,"Swillgate A38",null,null,14,"Swillgate A38",1]
[null,null,null,null,null,57,"Preston River bridge",52.146481999999999,-1.699892,6,"Preston- on- stour river bridge",0.93846153846153846]
[null,null,null,null,null,58,"Twyning Fleet",52.026986999999998,-2.1405219999999998,12,"Twyning fleet",1]
[null,null,null,null,null,59,"Carrant Bredon rd",51.994807999999999,-2.151078,1,"Carrant Bredon rd",1]
[null,null,null,null,null,60,"Avonbank Drive",null,null,7,"Avonbank Drive",1]
[null,null,null,null,null,61,"Abbey mill",null,null,13,"Abbey mill",1]
[null,null,null,null,null,62,"Pitch 16",52.172694999999997,-1.745101,8,"Pitch 16",1]
[null,null,null,null,null,63,"Welford Boat Station",52.175240000000002,-1.7918700000000001,10,"Welford Boat Station",1]
[null,null,null,null,null,64,"Hampton Lucy",52.211680000000001,-1.6244400000000001,2,"Hampton Lucy Allotments",0.92500000000000004]
[null,null,null,null,null,65,"Hampton Wood",52.238149999999997,-1.6245799999999999,3,"Hampton Wood Nature Reserve",0.89090909090909087]
[null,null,null,null,null,66,"Weston on Avon",52.167430000000003,-1.7744800000000001,9,"Weston on Avon",1]
[null,null,null,null,null,67,"Clifford Chambers",52.166370000000001,-1.708032,15,"Clifford Chambers",1]
[null,null,null,null,null,68,"Mill Stour Newbold",52.112833000000002,-1.6334340000000001,4,"Newbold Mill Stour",1]
[null,null,null,null,null,69,"Swillgate A38",null,null,14,"Swillgate A38",1]
[null,null,null,null,null,70,"Preston river bridge",52.146563,-1.6999219999999999,6,"Preston- on- stour river bridge",0.93846153846153846]
[null,null,null,null,null,71,"Avonbank",null,null,7,"Avonbank Drive",0.9]
[null,null,null,null,null,72,"Abbey mill",null,null,13,"Abbey mill",1]
[null,null,null,null,null,73,"Hampton Lucy",52.211680000000001,-1.6244400000000001,2,"Hampton Lucy Allotments",0.92500000000000004]
[null,null,null,null,null,74,"Hampton Wood",52.238149999999997,-1.6245799999999999,3,"Hampton Wood Nature Reserve",0.89090909090909087]
[null,null,null,null,null,75,"Clifford Chambers mill bridge",52.166370000000001,-1.708032,15,"Clifford Chambers",0.90909090909090906]
[null,null,null,null,null,76,"Weston on Avon",52.167430000000003,-1.7744800000000001,9,"Weston on Avon",1]
[null,null,null,null,null,77,"Mill Stour Newbold",52.112869000000003,-1.633435,4,"Newbold Mill Stour",1]
[null,null,null,null,null,78,"Swillgate A38",null,null,14,"Swillgate A38",1]
[null,null,null,null,null,79,"Preston river bridge.",52.146653000000001,-1.699214,6,"Preston- on- stour river bridge",0.93846153846153846]
[null,null,null,null,null,80,"Carrant Bredon rd",null,null,1,"Carrant Bredon rd",1]
[null,null,null,null,null,81,"Hampton Lucy",52.211680000000001,-1.6244400000000001,2,"Hampton Lucy Allotments",0.92500000000000004]
[null,null,null,null,null,82,"Hampton Wood",52.238149999999997,-1.6245799999999999,3,"Hampton Wood Nature Reserve",0.89090909090909087]
[null,null,null,null,null,83,"Clifford Chambers mill bridge",52.166370000000001,-1.708032,15,"Clifford Chambers",0.90909090909090906]
[null,null,null,null,null,84,"Alveston Weir",52.214388999999997,-1.6601520000000001,20,"Alveston Weir",1]
[null,null,null,null,null,85,"Swiffen Bank",52.206477999999997,-1.653894,19,"Swiffen Bank",1]
[null,null,null,null,null,86,"Abbey mill",51.991028,-2.1625719999999999,13,"Abbey mill",1]
[null,null,null,null,null,87,"Weston on Avon",52.167430000000003,-1.7744800000000001,9,"Weston on Avon",1]
[null,null,null,null,null,88,"Swillgate A38",null,null,14,"Swillgate A38",1]
[null,null,null,null,null,89,"Preston river bridge",52.146543000000001,-1.699527,6,"Preston- on- stour river bridge",0.93846153846153846]
[null,null,null,null,null,90,"Welford Boat Station",52.175240000000002,-1.7918700000000001,10,"Welford Boat Station",1]
[null,null,null,null,null,91,"Hampton Lucy",52.211680000000001,-1.6244400000000001,2,"Hampton Lucy Allotments",0.92500000000000004]
[null,null,null,null,null,92,"Hampton Wood",52.238149999999997,-1.6245799999999999,3,"Hampton Wood Nature Reserve",0.89090909090909087]
[null,null,null,null,null,93,"Clifford Chambers mill bridge",52.166037000000003,1.708032,15,"Clifford Chambers",0.90909090909090906]
[null,null,null,null,null,94,"Carrant Bredon rd",null,null,1,"Carrant Bredon rd",1]
[null,null,null,null,null,95,"Avonbank",null,null,7,"Avonbank Drive",0.9]
[null,null,null,null,null,96,"Pitch16",null,null,8,"Pitch 16",0.97087378640776689]
[null,null,null,null,null,97,"Abbey mill",null,null,13,"Abbey mill",1]
[null,null,null,null,null,98,"Weston on Avon",52.167430000000003,-1.7744800000000001,9,"Weston on Avon",1]
[null,null,null,null,null,99,"Swiffen Bank",52.206339,-1.6550020000000001,19,"Swiffen Bank",1]
[null,null,null,null,null,100,"Alveston Weir",52.214388999999997,-1.6601520000000001,20,"Alveston Weir",1]
[null,null,null,null,null,101,"Newbold Mill Stour",52.112864999999999,-1.6334340000000001,4,"Newbold Mill Stour",1]
[null,null,null,null,null,102,"Swillgate A38",null,null,14,"Swillgate A38",1]
[null,null,null,null,null,103,"Stour, Cherington, bridge next to treatment plant",52.030172999999998,-1.5791440000000001,23,"Cherington",0]
[null,null,null,null,null,104,"Stour, Shipston, Mill bridge",52.062030999999998,-1.6221080000000001,17,"Shipston-on-Stour",0.65476190476190488]
[null,null,null,null,null,105,"Preston river bridge",52.146470999999998,-1.6997869999999999,6,"Preston- on- stour river bridge",0.93846153846153846]
[null,null,null,null,null,106,"Abbey mill",null,null,13,"Abbey mill",1]
[null,null,null,null,null,107,"Welford Boat Station",52.175240000000002,-1.7918700000000001,10,"Welford Boat Station",1]
[null,null,null,null,null,108,"Hampton Lucy",52.211680000000001,-1.6244400000000001,2,"Hampton Lucy Allotments",0.92500000000000004]
[null,null,null,null,null,109,"Hampton Wood",52.238149999999997,-1.6245799999999999,3,"Hampton Wood Nature Reserve",0.89090909090909087]
[null,null,null,null,null,110,"Avonbank drive",52.177214999999997,-1.7357640000000001,7,"Avonbank Drive",1]
[null,null,null,null,null,111,"Pitch 16",52.172566000000003,-1.745363,8,"Pitch 16",1]
[null,null,null,null,null,112,"Clifford mill bridge",52.166370000000001,-1.7083200000000001,24,"Clifford Mill Bridge",0]
[null,null,null,null,null,113,"Stour Stretton-on-Fosse sewage",52.045651999999997,-1.6719360000000001,21,"Stretton-on-Fosse Sewage",0.96363636363636362]
[null,null,null,null,null,114,"Stour Stretton-on-Fosse village side",52.046506999999998,-1.6734880000000001,22,"Stretton-on-Fosse Village",0.91249999999999998]
[null,null,null,null,null,115,"Weston on Avon",52.167430000000003,-1.7744800000000001,9,"Weston on Avon",1]
[null,null,null,null,null,116,"Newbold Mill Stour",null,null,4,"Newbold Mill Stour",1]
[null,null,null,null,null,117,"Preston river bridge",52.146557999999999,-1.6991499999999999,6,"Preston- on- stour river bridge",0.93846153846153846]
[null,null,null,null,null,118,"Swiffen Bank",null,null,19,"Swiffen Bank",1]
[null,null,null,null,null,119,"Alveston Weir",52.207715999999998,-1.6586399999999999,20,"Alveston Weir",1]
[null,null,null,null,null,120,"Carrant Bredon rd",null,null,1,"Carrant Bredon rd",1]
[null,null,null,null,null,121,"Swillgate A38",null,null,14,"Swillgate A38",1]
[null,null,null,null,null,122,"Abbey mill",51.991405,-2.16309,13,"Abbey mill",1]
[null,null,null,null,null,123,"Clifford Chambers mill bridge",52.166370000000001,-1.708032,15,"Clifford Chambers",0.90909090909090906]
[null,null,null,null,null,124,"Welford Boat Station",52.175240000000002,-1.7918700000000001,10,"Welford Boat Station",1]
[null,null,null,null,null,125,"Hampton Lucy",52.211680000000001,-1.6244400000000001,2,"Hampton Lucy Allotments",0.92500000000000004]
[null,null,null,null,null,126,"Hampton Wood",52.238149999999997,-1.6245799999999999,3,"Hampton Wood Nature Reserve",0.89090909090909087]
[null,null,null,null,null,127,"Weston on Avon",52.167430000000003,-1.7744800000000001,9,"Weston on Avon",1]
[null,null,null,null,null,128,"Stour Stretton-on-Fosse sewage",52.045651999999997,-1.6719360000000001,21,"Stretton-on-Fosse Sewage",0.96363636363636362]
[null,null,null,null,null,129,"Stour Stretton-on-Fosse village side",52.046506999999998,-1.6734880000000001,22,"Stretton-on-Fosse Village",0.91249999999999998]
[null,null,null,null,null,130,"Swillgate A38",null,null,14,"Swillgate A38",1]
[null,null,null,null,null,131,"Swiffen Bank",52.207673,-1.6584449999999999,19,"Swiffen Bank",1]
[null,null,null,null,null,132,"Alveston Weir",52.214275999999998,-1.6601459999999999,20,"Alveston Weir",1]
[null,null,null,null,null,133,"Carrant Bredon rd",null,null,1,"Carrant Bredon rd",1]
[null,null,null,null,null,134,"Pitch 16",null,null,8,"Pitch 16",1]
[null,null,null,null,null,135,"Abbey mill",51.991453,-2.1629679999999998,13,"Abbey mill",1]
[null,null,null,null,null,136,"Clifford Chambers mill bridge",52.166370000000001,-1.708032,15,"Clifford Chambers",0.90909090909090906]
[null,null,null,null,null,137,"Barton",52.161209999999997,-1.8301499999999999,11,"Barton",1]
[null,null,null,null,null,138,"Welford Boat Station",52.175240000000002,-1.7918700000000001,10,"Welford Boat Station",1]
[null,null,null,null,null,139,"Hampton Lucy",52.211680000000001,-1.6244400000000001,2,"Hampton Lucy Allotments",0.92500000000000004]
[null,null,null,null,null,140,"Hampton Wood",52.238149999999997,-1.6245799999999999,3,"Hampton Wood Nature Reserve",0.89090909090909087]
[null,null,null,null,null,141,"Preston river bridge",52.134785000000001,-1.741296,6,"Preston- on- stour river bridge",0.93846153846153846]
[null,null,null,null,null,142,"Stour Stretton-on-Fosse sewage",52.045659999999998,-1.671924,21,"Stretton-on-Fosse Sewage",0.96363636363636362]
[null,null,null,null,null,143,"Stour Stretton-on-Fosse Village side",52.046472000000001,-1.673438,22,"Stretton-on-Fosse Village",0.91249999999999998]
[null,null,null,null,null,144,"Weston on Avon",52.167430000000003,-1.7744800000000001,9,"Weston on Avon",1]
[null,null,null,null,null,145,"Newbold Mill Stour",52.112850999999999,-1.633435,4,"Newbold Mill Stour",1]